{"text_format":"1","workbook":"xlsx","n_sheets":2,"sheets":["Sheet1","ورقة1"],"not_rendered":{"charts":0,"images":1,"macros":1,"external_links":0,"defined_names":3,"comments":0,"pivot_tables":0},"unopened":[],"bounds":{"document_bytes":16777216,"sheet_cells":100000,"rows_first":2000,"rows_last":500,"rows_between":2000,"halvings":0,"cell_chars":16384,"cell_head_chars":4096},"cells_cut":0,"cells_raw":0,"read":"whole","date_system":"1900"}

{"sheet":"Sheet1","index":0,"n_rows":99,"n_cols":16,"rows_kept":99,"cut":false,"hidden":false,"merged":[[0,4,0,7]]}
[null,null,null,null,"استعلام بيانات شخص بين تاريخين"]
[null,null,null,null,"العمر","المهنة","الراتب","المكافأة"]
[null,null,"احمد","2017-01-01",23,"موظف 1",250,200,null,"الاسم","احمد"]
[null,null,"احمد","2017-01-02",24,"موظف 2",251,201,null,"من ","2017-01-01"]
[null,null,"احمد","2017-01-03",25,"موظف 3",252,202,null,"الى","2017-01-13"]
[null,null,"احمد","2017-01-04",26,"موظف 4",253,203,null,null,null,null,"العمر","المهنة","الراتب","المكافأة"]
[null,null,"احمد","2017-01-05",27,"موظف 5",254,204,null,null,null,null,23,"موظف 1",250,200]
[null,null,"احمد","2017-01-06",28,"موظف 6",255,205,null,null,null,null,24,"موظف 2",251,201]
[null,null,"احمد","2017-01-07",29,"موظف 7",256,206,null,null,null,null,25,"موظف 3",252,202]
[null,null,"احمد","2017-01-08",30,"موظف 8",257,207,null,null,null,null,26,"موظف 4",253,203]
[null,null,"احمد","2017-01-09",31,"موظف 9",258,208,null,null,null,null,27,"موظف 5",254,204]
[null,null,"احمد","2017-01-10",32,"موظف 10",259,209,null,null,null,null,28,"موظف 6",255,205]
[null,null,"احمد","2017-01-11",33,"موظف 11",260,210,null,null,null,null,29,"موظف 7",256,206]
[null,null,"احمد","2017-01-12",34,"موظف 12",261,211,null,null,null,null,30,"موظف 8",257,207]
[null,null,"احمد","2017-01-13",35,"موظف 13",262,212,null,null,null,null,31,"موظف 9",258,208]
[null,null,"احمد","2017-01-14",36,"موظف 14",263,213,null,null,null,null,32,"موظف 10",259,209]
[null,null,"احمد","2017-01-15",37,"موظف 15",264,214,null,null,null,null,33,"موظف 11",260,210]
[null,null,"احمد","2017-01-16",38,"موظف 16",265,215,null,null,null,null,34,"موظف 12",261,211]
[null,null,"احمد","2017-01-17",39,"موظف 17",266,216,null,null,null,null,35,"موظف 13",262,212]
[null,null,"احمد","2017-01-18",40,"موظف 18",267,217]
[null,null,"احمد","2017-01-19",41,"موظف 19",268,218]
[null,null,"احمد","2017-01-20",42,"موظف 20",269,219]
[null,null,"احمد","2017-01-21",43,"موظف 21",270,220]
[null,null,"احمد","2017-01-22",44,"موظف 22",271,221]
[null,null,"احمد","2017-01-23",45,"موظف 23",272,222]
[null,null,"احمد","2017-01-24",46,"موظف 24",273,223]
[null,null,"احمد","2017-01-25",47,"موظف 25",274,224]
[null,null,"احمد","2017-01-26",48,"موظف 26",275,225]
[null,null,"احمد","2017-01-27",49,"موظف 27",276,226]
[null,null,"احمد","2017-01-28",50,"موظف 28",277,227]
[null,null,"احمد","2017-01-29",51,"موظف 29",278,228]
[null,null,"احمد","2017-01-30",52,"موظف 30",279,229]
[null,null,"احمد","2017-01-31",53,"موظف 31",280,230]
[null,null,"احمد","2017-02-01",54,"موظف 32",281,231]
[null,null,"احمد","2017-02-02",55,"موظف 33",282,232]
[null,null,"احمد","2017-02-03",56,"موظف 34",283,233]
[null,null,"احمد","2017-02-04",57,"موظف 35",284,234]
[null,null,"احمد","2017-02-05",58,"موظف 36",285,235]
[null,null,"احمد","2017-02-06",59,"موظف 37",286,236]
[null,null,"احمد","2017-02-07",60,"موظف 38",287,237]
[null,null,"احمد","2017-02-08",61,"موظف 39",288,238]
[null,null,"احمد","2017-02-09",62,"موظف 40",289,239]
[null,null,"احمد","2017-02-10",63,"موظف 41",290,240]
[null,null,"احمد","2017-02-11",64,"موظف 42",291,241]
[null,null,"احمد","2017-02-12",65,"موظف 43",292,242]
[null,null,"احمد","2017-02-13",66,"موظف 44",293,243]
[null,null,"احمد","2017-02-14",67,"موظف 45",294,244]
[null,null,"احمد","2017-02-15",68,"موظف 46",295,245]
[null,null,"احمد","2017-02-16",69,"موظف 47",296,246]
[null,null,"احمد","2017-02-17",70,"موظف 48",297,247]
[null,null,"احمد","2017-02-18",71,"موظف 49",298,248]
[null,null,"احمد","2017-02-19",72,"موظف 50",299,249]
[null,null,"احمد","2017-02-20",73,"موظف 51",300,250]
[null,null,"احمد","2017-02-21",74,"موظف 52",301,251]
[null,null,"احمد","2017-02-22",75,"موظف 53",302,252]
[null,null,"احمد","2017-02-23",76,"موظف 54",303,253]
[null,null,"احمد","2017-02-24",77,"موظف 55",304,254]
[null,null,"احمد","2017-02-25",78,"موظف 56",305,255]
[null,null,"احمد","2017-02-26",79,"موظف 57",306,256]
[null,null,"احمد","2017-02-27",80,"موظف 58",307,257]
[null,null,"احمد","2017-02-28",81,"موظف 59",308,258]
[null,null,"احمد","2017-03-01",82,"موظف 60",309,259]
[null,null,"احمد","2017-03-02",83,"موظف 61",310,260]
[null,null,"احمد","2017-03-03",84,"موظف 62",311,261]
[null,null,"احمد","2017-03-04",85,"موظف 63",312,262]
[null,null,"احمد","2017-03-05",86,"موظف 64",313,263]
[null,null,"احمد","2017-03-06",87,"موظف 65",314,264]
[null,null,"احمد","2017-03-07",88,"موظف 66",315,265]
[null,null,"احمد","2017-03-08",89,"موظف 67",316,266]
[null,null,"احمد","2017-03-09",90,"موظف 68",317,267]
[null,null,"احمد","2017-03-10",91,"موظف 69",318,268]
[null,null,"احمد","2017-03-11",92,"موظف 70",319,269]
[null,null,"احمد","2017-03-12",93,"موظف 71",320,270]
[null,null,"احمد","2017-03-13",94,"موظف 72",321,271]
[null,null,"احمد","2017-03-14",95,"موظف 73",322,272]
[null,null,"احمد","2017-03-15",96,"موظف 74",323,273]
[null,null,"احمد","2017-03-16",97,"موظف 75",324,274]
[null,null,"احمد","2017-03-17",98,"موظف 76",325,275]
[null,null,"احمد","2017-03-18",99,"موظف 77",326,276]
[null,null,"احمد","2017-03-19",100,"موظف 78",327,277]
[null,null,"احمد","2017-03-20",101,"موظف 79",328,278]
[null,null,"احمد","2017-03-21",102,"موظف 80",329,279]
[null,null,"احمد","2017-03-22",103,"موظف 81",330,280]
[null,null,"احمد","2017-03-23",104,"موظف 82",331,281]
[null,null,"احمد","2017-03-24",105,"موظف 83",332,282]
[null,null,"احمد","2017-03-25",106,"موظف 84",333,283]
[null,null,"احمد","2017-03-26",107,"موظف 85",334,284]
[null,null,"احمد","2017-03-27",108,"موظف 86",335,285]
[null,null,"احمد","2017-03-28",109,"موظف 87",336,286]
[null,null,"احمد","2017-03-29",110,"موظف 88",337,287]
[null,null,"احمد","2017-03-30",111,"موظف 89",338,288]
[null,null,"احمد","2017-03-31",112,"موظف 90",339,289]
[null,null,"احمد","2017-04-01",113,"موظف 91",340,290]
[null,null,"احمد","2017-04-02",114,"موظف 92",341,291]
[null,null,"احمد","2017-04-03",115,"موظف 93",342,292]
[null,null,"احمد","2017-04-04",116,"موظف 94",343,293]
[null,null,"احمد","2017-04-05",117,"موظف 95",344,294]
[null,null,"احمد","2017-04-06",118,"موظف 96",345,295]
[null,null,"احمد","2017-04-07",119,"موظف 97",346,296]

{"sheet":"ورقة1","index":1,"n_rows":1460,"n_cols":28,"rows_kept":1460,"cut":false,"hidden":true,"merged":[]}
["ت","رقم الموظف","رقم الاضبارة","تاريخ التعيين","اسم الموظف","العنوان الوظيفي","الشهادة","مقر العمل","الراتب الحالي","د","م","الراتب المستحق","د","م","تاريخ الاستحقاق","الملاحظات","الشهر",null,null,null,null,null,null,null,null,null,"2017-01-01",1]
[{"$f":"SUBTOTAL(3,$E$2:E2)","v":0},null,null,"2011-03-16","ابا ذر عمران موسى حسن الحسن",null,"دون الابتدائية ","قسم التوزيع",null,null,null,null,null,null,"2018-07-27",null,{"$f":"VLOOKUP(O2,AA1:AB730,2,FALSE)","v":7},null,null,null,null,null,null,null,null,null,"2017-01-02",1]
[{"$f":"SUBTOTAL(3,$E$2:E3)","v":0},null,null,"2010-06-28","ابراهيم جاسم محمد حسين  البتريكي",null,"دون الابتدائية ","شعبة النقل",null,null,null,null,null,null,"2018-07-28",null,7,null,null,null,null,null,null,null,null,null,"2017-01-03",1]
[{"$f":"SUBTOTAL(3,$E$2:E4)","v":0},null,null,"2016-08-21","ابراهيم كريم حمزة لفتة المياحي ",null,"دبلوم /قسم ميكانيك /سلامة صناعية ","شعبة السلامة والاطفاء",null,null,null,null,null,null,"2018-07-29",null,7,null,null,null,null,null,null,null,null,null,"2017-01-04",1]
[{"$f":"SUBTOTAL(3,$E$2:E5)","v":0},null,null,"1999-12-01","ابو ذر قيس عطشان عباس الفتلاوي",null,"معهد نفط / كهرباء ","شعبة الرقابة والتدقيق الداخلي ",null,null,null,null,null,null,"2018-07-30",null,7,null,null,null,null,null,null,null,null,null,"2017-01-05",1]
[{"$f":"SUBTOTAL(3,$E$2:E6)","v":0},null,null,"2008-09-24","اثير فاضل راضي مشتت العيداني",null,"معهد نفط / ميكانيك","قسم التوزيع",null,null,null,null,null,null,"2018-07-31",null,7,null,null,null,null,null,null,null,null,null,"2017-01-06",1]
[{"$f":"SUBTOTAL(3,$E$2:E7)","v":0},null,null,"2013-09-30","احسان عبدالرضا نصيف جاسم البيضاني",null,"ابتدائية","شعبة النقل",null,null,null,null,null,null,"2018-08-01",null,8,null,null,null,null,null,null,null,null,null,"2017-01-07",1]
[{"$f":"SUBTOTAL(3,$E$2:E8)","v":0},null,null,"1993-01-17","احمد بشير مطرود بدر الحسناوي ",null,"معهد نفط / بناء وانشاءات","القسم الفني ",null,null,null,null,null,null,"2018-08-02",null,8,null,null,null,null,null,null,null,null,null,"2017-01-08",1]
[{"$f":"SUBTOTAL(3,$E$2:E9)","v":0},null,null,"2007-08-07","احمد جبار غياض خليفة السعدي",null,"بكالوريوس / هندسة نفط ","قسم التوزيع",null,null,null,null,null,null,"2018-08-03",null,8,null,null,null,null,null,null,null,null,null,"2017-01-09",1]
[{"$f":"SUBTOTAL(3,$E$2:E10)","v":0},null,null,"2003-02-09","احمد جواد كاظم غانم الجبوري",null,"معهد نفط / قياس وسيطرة ","قسم الحسابات ",null,null,null,null,null,null,"2018-08-04",null,8,null,null,null,null,null,null,null,null,null,"2017-01-10",1]
[{"$f":"SUBTOTAL(3,$E$2:E11)","v":0},null,null,"2002-10-10","احمد حكيم جبارة علوان الربيعي ",null,"ابتدائية","شعبة النقل",null,null,null,null,null,null,"2018-08-05",null,8,null,null,null,null,null,null,null,null,null,"2017-01-11",1]
[{"$f":"SUBTOTAL(3,$E$2:E12)","v":0},null,null,"2011-04-25","احمد حمزة حسون ثويني المسافر",null,"دون الابتدائية ","قسم التوزيع",null,null,null,null,null,null,"2018-08-06",null,8,null,null,null,null,null,null,null,null,null,"2017-01-12",1]
[{"$f":"SUBTOTAL(3,$E$2:E13)","v":0},null,null,"2006-06-14","احمد حمزة حسين عبد العبودي",null,"معهد فني / ميكانيك ","شعبة التنسيق والمتابعة",null,null,null,null,null,null,"2018-08-07",null,8,null,null,null,null,null,null,null,null,null,"2017-01-13",1]
[{"$f":"SUBTOTAL(3,$E$2:E14)","v":0},null,null,"2015-03-23","احمد حمزة طعمة خضير الغانمي",null,"معهد / قياس وسيطرة","قسم التوزيع",null,null,null,null,null,null,"2018-08-08",null,8,null,null,null,null,null,null,null,null,null,"2017-01-14",1]
[{"$f":"SUBTOTAL(3,$E$2:E15)","v":0},null,null,"2012-12-29","احمد خلف كوطي زناد الشميلاوي",null,"بكالوريوس / ادارة واقتصاد / ادارة اعمال","شعبة الرقابة والتدقيق الداخلي ",null,null,null,null,null,null,"2018-08-09",null,8,null,null,null,null,null,null,null,null,null,"2017-01-15",1]
[{"$f":"SUBTOTAL(3,$E$2:E16)","v":0},null,null,"2009-10-27","احمد رزاق حميد صيوان الابراهيمي ",null,"هندسه تبريد وتكيف ","القسم الفني ",null,null,null,null,null,null,"2018-08-10",null,8,null,null,null,null,null,null,null,null,null,"2017-01-16",1]
[{"$f":"SUBTOTAL(3,$E$2:E17)","v":0},null,null,"2015-05-24","احمد رشيد ابوالشون حمود كريطي",null,"اعدادية صناعة / كهرباء ","شعبة صيانة السيارات الخفيفة والثقيلة",null,null,null,null,null,null,"2018-08-11",null,8,null,null,null,null,null,null,null,null,null,"2017-01-17",1]
[{"$f":"SUBTOTAL(3,$E$2:E18)","v":0},null,null,"2008-03-02","احمد شاكر عبدالرضا نعمة الحسناوي ",null,"دبلوم /كهرباء ","شعبة المولدات ",null,null,null,null,null,null,"2018-08-12",null,8,null,null,null,null,null,null,null,null,null,"2017-01-18",1]
[{"$f":"SUBTOTAL(3,$E$2:E19)","v":0},null,null,"2010-11-02","احمد شاكر عبيد محمد ال ستار",null,"بكالوريوس / ادارة واقتصاد / ادارة اعمال","شعبة الرقابة والتدقيق الداخلي ",null,null,null,null,null,null,"2018-08-13",null,8,null,null,null,null,null,null,null,null,null,"2017-01-19",1]
[{"$f":"SUBTOTAL(3,$E$2:E20)","v":0},null,null,"2000-05-13","احمد شهاب عبدالحميد  عبد النبي الربيعي ",null,"ابتدائية ","شعبة النقل ",null,null,null,null,null,null,"2018-08-14",null,8,null,null,null,null,null,null,null,null,null,"2017-01-20",1]
[{"$f":"SUBTOTAL(3,$E$2:E21)","v":0},null,null,"2012-01-24","احمد صالح مهدي مكطاف الزغبي",null,"ابتدائية","قسم التوزيع",null,null,null,null,null,null,"2018-08-15",null,8,null,null,null,null,null,null,null,null,null,"2017-01-21",1]
[{"$f":"SUBTOTAL(3,$E$2:E22)","v":0},null,null,"2006-02-15","احمد عاصم عبدالرسول ابوالقاسم  العطار ",null,"بكالوريوس / ميكانيك عام  ","القسم الفني",null,null,null,null,null,null,"2018-08-16",null,8,null,null,null,null,null,null,null,null,null,"2017-01-22",1]
[{"$f":"SUBTOTAL(3,$E$2:E23)","v":0},null,null,"2012-03-12","احمد عبدالحرعلي حسين علي ال حمد ",null,"دون الابتدائية","شعبة صيانة السيارات الخفيفة والثقيلة",null,null,null,null,null,null,"2018-08-17",null,8,null,null,null,null,null,null,null,null,null,"2017-01-23",1]
[{"$f":"SUBTOTAL(3,$E$2:E24)","v":0},null,null,"2006-06-14","احمد عبدالحسن حسين عبدالحسين الدجيلي",null,"بكالوريوس / تربية فنية / تربية تشكيلية ","قسم التوزيع ",null,null,null,null,null,null,"2018-08-18",null,8,null,null,null,null,null,null,null,null,null,"2017-01-24",1]
[{"$f":"SUBTOTAL(3,$E$2:E25)","v":0},null,null,"2012-09-25","احمد عبدالحسين فاضل محمد العلي",null,"بكالوريوس / ادارة واقتصاد / ادارة اعمال","القسم الفني",null,null,null,null,null,null,"2018-08-19",null,8,null,null,null,null,null,null,null,null,null,"2017-01-25",1]
[{"$f":"SUBTOTAL(3,$E$2:E26)","v":0},null,null,"2008-03-11","احمد عبدالسجاد سلمان عبود الجبوري",null,"بكالوريوس / هندسة مدني","وحدة متابعة تنفيذ المشاريع",null,null,null,null,null,null,"2018-08-20",null,8,null,null,null,null,null,null,null,null,null,"2017-01-26",1]
[{"$f":"SUBTOTAL(3,$E$2:E27)","v":0},null,null,"2013-03-28","احمد عبداللطيف عبدالله عيسى الموسوي",null,"ابتدائية","تنسيب الى التصاريح الامنية",null,null,null,null,null,null,"2018-08-21",null,8,null,null,null,null,null,null,null,null,null,"2017-01-27",1]
[{"$f":"SUBTOTAL(3,$E$2:E28)","v":0},null,null,"2010-03-17","احمد عبدالله سباهي علي الجادري",null,"بكالوريوس / هندسة الكترونيك","القسم الفني ",null,null,null,null,null,null,"2018-08-22",null,8,null,null,null,null,null,null,null,null,null,"2017-01-28",1]
[{"$f":"SUBTOTAL(3,$E$2:E29)","v":0},null,null,"2012-03-13","احمد علي زباري قاسم الفياض",null,"ابتدائية","قسم التوزيع",null,null,null,null,null,null,"2018-08-23",null,8,null,null,null,null,null,null,null,null,null,"2017-01-29",1]
[{"$f":"SUBTOTAL(3,$E$2:E30)","v":0},null,null,"2015-03-23","احمد علي صالح مصطفى الياس",null,"معهد / تشغيل وسيطرة","قسم التوزيع",null,null,null,null,null,null,"2018-08-24",null,8,null,null,null,null,null,null,null,null,null,"2017-01-30",1]
[{"$f":"SUBTOTAL(3,$E$2:E31)","v":0},null,null,"2015-09-06","احمد علي عبدالله جبر احمد التميمي ",null,"ابتدائية","قسم التوزيع ",null,null,null,null,null,null,"2018-08-25",null,8,null,null,null,null,null,null,null,null,null,"2017-01-31",1]
[{"$f":"SUBTOTAL(3,$E$2:E32)","v":0},null,null,"2016-08-21","احمد علي معصي عبدالحسين الكريطي ",null,"دبلوم /قسم الكهرباء قياس وسيطرة ","شعبة السلامة والاطفاء",null,null,null,null,null,null,"2018-08-26",null,8,null,null,null,null,null,null,null,null,null,"2017-02-01",2]
[{"$f":"SUBTOTAL(3,$E$2:E33)","v":0},null,null,"2013-11-18","احمد عمادالدين محمدعلي حسن الموسوي",null,"اعدادية / صناعة / الكترون","القسم الفني",null,null,null,null,null,null,"2018-08-27",null,8,null,null,null,null,null,null,null,null,null,"2017-02-02",2]
[{"$f":"SUBTOTAL(3,$E$2:E34)","v":0},null,null,"2012-07-18","احمد فاضل عباس نعمة الموسوي",null,"معهد نفط / ميكانيك المعدات النفطية الثابتة","شعبة المولدات",null,null,null,null,null,null,"2018-08-28",null,8,null,null,null,null,null,null,null,null,null,"2017-02-03",2]
[{"$f":"SUBTOTAL(3,$E$2:E35)","v":0},null,null,"2008-02-01","احمد كاظم ملوح باذر الكريطي ",null,"بكالوريوس / ادارة واقتصاد / ادارة اعمال","اجازة دراسية",null,null,null,null,null,null,"2018-08-29",null,8,null,null,null,null,null,null,null,null,null,"2017-02-04",2]
[{"$f":"SUBTOTAL(3,$E$2:E36)","v":0},null,null,"2009-01-13","احمد كامل علوان عبود حلاوي",null,"بكالوريوس / هندسة نظم وسيطرة حاسبات","القسم الفني ",null,null,null,null,null,null,"2018-08-30",null,8,null,null,null,null,null,null,null,null,null,"2017-02-05",2]
[{"$f":"SUBTOTAL(3,$E$2:E37)","v":0},null,null,"2013-01-13","احمد كامل هادي عباس الخفاجي",null,"ابتدائية","القسم الفني",null,null,null,null,null,null,"2018-08-31",null,8,null,null,null,null,null,null,null,null,null,"2017-02-06",2]
[{"$f":"SUBTOTAL(3,$E$2:E38)","v":0},null,null,"2009-01-13","احمد ماجد جعفر سلمان الخفاجي ",null,"بكالوريوس / ادارة واقتصاد / ادارة اعمال","شعبة الرقابة والتدقيق الداخلي ",null,null,null,null,null,null,"2018-09-01",null,9,null,null,null,null,null,null,null,null,null,"2017-02-07",2]
[{"$f":"SUBTOTAL(3,$E$2:E39)","v":0},null,null,"2013-01-10","احمد مجيد صالح  هادي ال خرسان",null,"ابتدائية","وحدة ادارة المكتب ",null,null,null,null,null,null,"2018-09-02",null,9,null,null,null,null,null,null,null,null,null,"2017-02-08",2]
[{"$f":"SUBTOTAL(3,$E$2:E40)","v":0},null,null,"2010-01-23","احمد مخلف مبارك عميش المغري",null,"دون الابتدائية ","شعبة النقل",null,null,null,null,null,null,"2018-09-03",null,9,null,null,null,null,null,null,null,null,null,"2017-02-09",2]
[{"$f":"SUBTOTAL(3,$E$2:E41)","v":0},null,null,"2005-03-16","احمد مهدي رشيد صالح التميمي ",null,"تقنية غاز ","شعبة البحوث والسيطرة النوعية",null,null,null,null,null,null,"2018-09-04",null,9,null,null,null,null,null,null,null,null,null,"2017-02-10",2]
[{"$f":"SUBTOTAL(3,$E$2:E42)","v":0},null,null,"2007-03-26","احمد موسى محمد حسن خضر الموسوي",null,"معهد / مضخات و ضاغطات","القسم الفني",null,null,null,null,null,null,"2018-09-05",null,9,null,null,null,null,null,null,null,null,null,"2017-02-11",2]
[{"$f":"SUBTOTAL(3,$E$2:E43)","v":0},null,null,"2010-06-29","احمد نعمة حسين شرهان القريشي",null,"دون الابتدائية ","شعبة السلامة والاطفاء",null,null,null,null,null,null,"2018-09-06",null,9,null,null,null,null,null,null,null,null,null,"2017-02-12",2]
[{"$f":"SUBTOTAL(3,$E$2:E44)","v":0},null,null,"2014-11-02","احمد وحيد شناوة عبد ال عبد ",null,"ابتدائية","قسم التوزيع ",null,null,null,null,null,null,"2018-09-07",null,9,null,null,null,null,null,null,null,null,null,"2017-02-13",2]
[{"$f":"SUBTOTAL(3,$E$2:E45)","v":0},null,null,"2016-08-21","احمد ياس عبدالجبار صاحب الهر ",null,"دبلوم /قسم تصفية ","شعبة البحوث والسيطرة النوعية",null,null,null,null,null,null,"2018-09-08",null,9,null,null,null,null,null,null,null,null,null,"2017-02-14",2]
[{"$f":"SUBTOTAL(3,$E$2:E46)","v":0},null,null,"2013-02-05","احمد يحيى عبدالله علي ال جويبر",null,"ابتدائية","شعبة النقل",null,null,null,null,null,null,"2018-09-09",null,9,null,null,null,null,null,null,null,null,null,"2017-02-15",2]
[{"$f":"SUBTOTAL(3,$E$2:E47)","v":0},null,null,"2010-03-30","ادم عطية عودة جبر الدراوشة",null,"اعدادية صناعة / كهرباء ","القسم الفني ",null,null,null,null,null,null,"2018-09-10",null,9,null,null,null,null,null,null,null,null,null,"2017-02-16",2]
[{"$f":"SUBTOTAL(3,$E$2:E48)","v":0},null,null,"2009-01-17","اديم حسن ياس خضير الغانمي ",null,"بكالوريوس / علوم كيمياء ","القسم الفني",null,null,null,null,null,null,"2018-09-11",null,9,null,null,null,null,null,null,null,null,null,"2017-02-17",2]
[{"$f":"SUBTOTAL(3,$E$2:E49)","v":0},null,null,"2012-02-09","اركان حسون عليوي مشحوت الحسيني",null,"دون الابتدائية ","القسم الفني",null,null,null,null,null,null,"2018-09-12",null,9,null,null,null,null,null,null,null,null,null,"2017-02-18",2]
[{"$f":"SUBTOTAL(3,$E$2:E50)","v":0},null,null,"2007-10-03","ازهار مهدي صاحب عبدالحسين ال صالح ",null,"بكالوريوس / تربية / تأريخ ","القسم الاداري",null,null,null,null,null,null,"2018-09-13",null,9,null,null,null,null,null,null,null,null,null,"2017-02-19",2]
[{"$f":"SUBTOTAL(3,$E$2:E51)","v":0},null,null,"2007-03-19","ازهر عبد نايف مهاوش الجنابي",null,"بكالوريوس / علوم فيزياء ","وحدة القياس والمعايرة",null,null,null,null,null,null,"2018-09-14",null,9,null,null,null,null,null,null,null,null,null,"2017-02-20",2]
[{"$f":"SUBTOTAL(3,$E$2:E52)","v":0},null,null,"2008-03-27","اسامة حميد ناجي  سلمان الفتلاوي ",null,"ابتدائية ","القسم الفني",null,null,null,null,null,null,"2018-09-15",null,9,null,null,null,null,null,null,null,null,null,"2017-02-21",2]
[{"$f":"SUBTOTAL(3,$E$2:E53)","v":0},null,null,"2013-03-24","اسامة ناصر حسين علي الميالي",null,"دون الابتدائية","قسم التوزيع",null,null,null,null,null,null,"2018-09-16",null,9,null,null,null,null,null,null,null,null,null,"2017-02-22",2]
[{"$f":"SUBTOTAL(3,$E$2:E54)","v":0},null,null,"2006-06-11","اسراء محسن عبدالمجيد  حسن الشيبي",null,"بكالوريوس / هندسة ميكانيك ","القسم الفني",null,null,null,null,null,null,"2018-09-17",null,9,null,null,null,null,null,null,null,null,null,"2017-02-23",2]
[{"$f":"SUBTOTAL(3,$E$2:E55)","v":0},null,null,"2006-01-24","اسعد حسين جبار حسين الموسوي ",null,"بكالوريوس / تقنية هندسة مضخات ","القسم الفني ",null,null,null,null,null,null,"2018-09-18",null,9,null,null,null,null,null,null,null,null,null,"2017-02-24",2]
[{"$f":"SUBTOTAL(3,$E$2:E56)","v":0},null,null,"1997-12-21","اسعد كاظم نصير غضيب الشموسي ",null,"معهد نفط /انتاج /نفط","قسم التوزيع ",null,null,null,null,null,null,"2018-09-19",null,9,null,null,null,null,null,null,null,null,null,"2017-02-25",2]
[{"$f":"SUBTOTAL(3,$E$2:E57)","v":0},null,null,"2006-09-28","اسعد هادي جبر راضي الشمري",null,"ابتدائية ","شعبة النقل ",null,null,null,null,null,null,"2018-09-20",null,9,null,null,null,null,null,null,null,null,null,"2017-02-26",2]
[{"$f":"SUBTOTAL(3,$E$2:E58)","v":0},null,null,"2015-05-20","اسماعيل جبر جاسم حمادي حمداني",null,"الاعدادية الصناعية / تجارة ","القسم الفني",null,null,null,null,null,null,"2018-09-21",null,9,null,null,null,null,null,null,null,null,null,"2017-02-27",2]
[{"$f":"SUBTOTAL(3,$E$2:E59)","v":0},null,null,"2013-05-14","اسماعيل حميد حمزة شدة ال شدة",null,"اعدادية صناعة / كهرباء ","شعبة السلامة والاطفاء",null,null,null,null,null,null,"2018-09-22",null,9,null,null,null,null,null,null,null,null,null,"2017-02-28",2]
[{"$f":"SUBTOTAL(3,$E$2:E60)","v":0},null,null,"2015-08-13","اشرف رشيد حميد هاشم الياسري",null,"متوسطة","قسم التوزيع",null,null,null,null,null,null,"2018-09-23",null,9,null,null,null,null,null,null,null,null,null,"2017-03-01",3]
[{"$f":"SUBTOTAL(3,$E$2:E61)","v":0},null,null,"2009-12-14","اشرف مشير عبدالهادي عبدالمنعم الفواز",null,"بكالوريوس / علوم مالية ومصرفية","شعبة الرقابة والتدقيق الداخلي ",null,null,null,null,null,null,"2018-09-24",null,9,null,null,null,null,null,null,null,null,null,"2017-03-02",3]
[{"$f":"SUBTOTAL(3,$E$2:E62)","v":0},null,null,"1987-07-26","المثنى عبدالصمد مهدي حسن الشرشاوي",null,"اعدادية / ميكانيك ","وحدة الفحص الهندسي ",null,null,null,null,null,null,"2018-09-25",null,9,null,null,null,null,null,null,null,null,null,"2017-03-03",3]
[{"$f":"SUBTOTAL(3,$E$2:E63)","v":0},null,null,"2015-07-08","امال عبدالرحيم كاظم محمد الحسيني",null,"معهد / كهرباء / معدات نفطية","القسم الفني ",null,null,null,null,null,null,"2018-09-26",null,9,null,null,null,null,null,null,null,null,null,"2017-03-04",3]
[{"$f":"SUBTOTAL(3,$E$2:E64)","v":0},null,null,"2016-08-21","امير ابراهيم عباس بريس الغانمي ",null,"دبلوم /قسم ميكانيك /سلامة صناعية ","شعبة السلامة والاطفاء",null,null,null,null,null,null,"2018-09-27",null,9,null,null,null,null,null,null,null,null,null,"2017-03-05",3]
[{"$f":"SUBTOTAL(3,$E$2:E65)","v":0},null,null,"2017-04-20","امير جبار عواد صياح الجبوري",null,"معهد / تشغيل وسيطرة / تصفية","شعبة السلامة والاطفاء",null,null,null,null,null,null,"2018-09-28",null,9,null,null,null,null,null,null,null,null,null,"2017-03-06",3]
[{"$f":"SUBTOTAL(3,$E$2:E66)","v":0},null,null,"2006-06-26","امير حسون شهاب احمد العزاوي",null,"بكالوريوس / تربية فنية / فنون جميلة","قسم التوزيع",null,null,null,null,null,null,"2018-09-29",null,{"$f":"VLOOKUP(O66,AA65:AB794,2,FALSE)","v":9},null,null,null,null,null,null,null,null,null,"2017-03-07",3]
[{"$f":"SUBTOTAL(3,$E$2:E67)","v":0},null,null,"2017-04-20","امير سلمان فارس جاسم الغانمي",null,"معهد / تشغيل وسيطرة / تصفية","شعبة البحوث والسيطرة النوعية",null,null,null,null,null,null,"2018-09-30",null,9,null,null,null,null,null,null,null,null,null,"2017-03-08",3]
[{"$f":"SUBTOTAL(3,$E$2:E68)","v":0},null,null,"2016-08-28","امير عادل مهدي عبدالحسين قطان",null,"متوسطة","قسم التوزيع ",null,null,null,null,null,null,"2018-10-01",null,10,null,null,null,null,null,null,null,null,null,"2017-03-09",3]
[{"$f":"SUBTOTAL(3,$E$2:E69)","v":0},null,null,"2013-05-01","امير عدنان عباس عبود الطائي",null,"دبلوم نفط / تشغيل وسيطرة","شعبة البحوث والسيطرة النوعية",null,null,null,null,null,null,"2018-10-02",null,10,null,null,null,null,null,null,null,null,null,"2017-03-10",3]
[{"$f":"SUBTOTAL(3,$E$2:E70)","v":0},null,null,"2017-04-20","امير علي عبدالكاظم كركي الطهمازي",null,"معهد / اللحام الغازي والكهربائي ","القسم الفني",null,null,null,null,null,null,"2018-10-03",null,10,null,null,null,null,null,null,null,null,null,"2017-03-11",3]
[{"$f":"SUBTOTAL(3,$E$2:E71)","v":0},null,null,"1994-08-27","انتصار حبيب ظاهر عبد الرماحي",null,"بكالوريوس / ادارة واقتصاد / ادارة اعمال","القسم الاداري",null,null,null,null,null,null,"2018-10-04",null,10,null,null,null,null,null,null,null,null,null,"2017-03-12",3]
[{"$f":"SUBTOTAL(3,$E$2:E72)","v":0},null,null,"2011-07-28","انتصار حمود جياد سرحان الزيادي",null,"بكالوريوس / قسم اللغة العربية","القسم الاداري",null,null,null,null,null,null,"2018-10-05",null,10,null,null,null,null,null,null,null,null,null,"2017-03-13",3]
[{"$f":"SUBTOTAL(3,$E$2:E73)","v":0},null,null,"2011-07-28","انتصار حنتوش ابراهيم محمود الخزعلي",null,"اعدادية تجارة / ادارة اعمال","قسم الحسابات",null,null,null,null,null,null,"2018-10-06",null,10,null,null,null,null,null,null,null,null,null,"2017-03-14",3]
[{"$f":"SUBTOTAL(3,$E$2:E74)","v":0},null,null,"2012-09-05","انتظار سهم عبدالزهرة مرزوق الشرع",null,"ابتدائية","شعبة الرقابة والتدقيق الداخلي ",null,null,null,null,null,null,"2018-10-07",null,10,null,null,null,null,null,null,null,null,null,"2017-03-15",3]
[{"$f":"SUBTOTAL(3,$E$2:E75)","v":0},null,null,"2010-10-31","انوار عباس محمد جاسم القصاب",null,"اعدادية / علمي","تنسيب الى التصاريح الامنية",null,null,null,null,null,null,"2018-10-08",null,10,null,null,null,null,null,null,null,null,null,"2017-03-16",3]
[{"$f":"SUBTOTAL(3,$E$2:E76)","v":0},null,null,"2007-05-09","انور نور محمد جاسم الموسوي",null,"بكالوريوس هندسة تقنيات الحاسوب ","قسم التوزيع",null,null,null,null,null,null,"2018-10-09",null,10,null,null,null,null,null,null,null,null,null,"2017-03-17",3]
[{"$f":"SUBTOTAL(3,$E$2:E77)","v":0},null,null,"2011-07-28","انيسة محمدرضا محمد بحرالعلوم",null,"اعدادية / محاسبة","قسم الحسابات",null,null,null,null,null,null,"2018-10-10",null,10,null,null,null,null,null,null,null,null,null,"2017-03-18",3]
[{"$f":"SUBTOTAL(3,$E$2:E78)","v":0},null,null,"2006-05-10","اوراد عبدالكاظم عبد حسين الابراهيمي",null,"بكالوريوس / قانون","الشعبة القانونية",null,null,null,null,null,null,"2018-10-11",null,10,null,null,null,null,null,null,null,null,null,"2017-03-19",3]
[{"$f":"SUBTOTAL(3,$E$2:E79)","v":0},null,null,"2015-07-08","ايات عطية موسى خضير الزبيدي",null,"معهد / تشغيل وسيطرة","الشعبة القانونية",null,null,null,null,null,null,"2018-10-12",null,10,null,null,null,null,null,null,null,null,null,"2017-03-20",3]
[{"$f":"SUBTOTAL(3,$E$2:E80)","v":0},null,null,"2011-02-20","اياد كاظم محسن حمادي ال عبود",null,"بكالوريوس ادارة اعمال ","وحدة ادارة المكتب ",null,null,null,null,null,null,"2018-10-13",null,10,null,null,null,null,null,null,null,null,null,"2017-03-21",3]
[{"$f":"SUBTOTAL(3,$E$2:E81)","v":0},null,null,"2012-01-23","اياد محمد شنور عبد الدجيلي",null,"ابتدائية","قسم التوزيع",null,null,null,null,null,null,"2018-10-14",null,10,null,null,null,null,null,null,null,null,null,"2017-03-22",3]
[{"$f":"SUBTOTAL(3,$E$2:E82)","v":0},null,null,"2012-03-25","اياد هادي جاسم احمد الحسيني",null,"ابتدائية","قسم التوزيع ",null,null,null,null,null,null,"2018-10-15",null,10,null,null,null,null,null,null,null,null,null,"2017-03-23",3]
[{"$f":"SUBTOTAL(3,$E$2:E83)","v":0},null,null,"1992-01-14","ايار جبار خضير مشري البدران ",null,"اعدادية / صناعة ","شعبة التنسيق والمتابعة",null,null,null,null,null,null,"2018-10-16",null,10,null,null,null,null,null,null,null,null,null,"2017-03-24",3]
[{"$f":"SUBTOTAL(3,$E$2:E84)","v":0},null,null,"1981-11-15","ايمان رشيد حسن حسين الشماع",null,"اعدادية صناعة / كهرباء ","القسم الفني ",null,null,null,null,null,null,"2018-10-17",null,10,null,null,null,null,null,null,null,null,null,"2017-03-25",3]
[{"$f":"SUBTOTAL(3,$E$2:E85)","v":0},null,null,"2004-09-25","ايمان عبدالجبار رزوقي صالح المرجاني",null,"اعدادية /علمي","شعبة تطبيق الموجودات",null,null,null,null,null,null,"2018-10-18",null,10,null,null,null,null,null,null,null,null,null,"2017-03-26",3]
[{"$f":"SUBTOTAL(3,$E$2:E86)","v":0},null,null,"1979-10-11","ايمان مهدي حمود عبداللة الاسدي",null,"ابتدائية","وحدة متابعة الموقوفات ",null,null,null,null,null,null,"2018-10-19",null,10,null,null,null,null,null,null,null,null,null,"2017-03-27",3]
[{"$f":"SUBTOTAL(3,$E$2:E87)","v":0},null,null,"2011-07-27","ايمن محمد ناصر حسون العبادي",null,"متوسطة ","القسم الفني",null,null,null,null,null,null,"2018-10-20",null,10,null,null,null,null,null,null,null,null,null,"2017-03-28",3]
[{"$f":"SUBTOTAL(3,$E$2:E88)","v":0},null,null,"2011-12-31","باسم جبار عبدالواحد هادي الوائلي",null,"بكالوريوس / قانون ","الشعبة القانونية",null,null,null,null,null,null,"2018-10-21",null,10,null,null,null,null,null,null,null,null,null,"2017-03-29",3]
[{"$f":"SUBTOTAL(3,$E$2:E89)","v":0},null,null,"2013-01-09","باسم صادق عبدالحسين جعفر الحسيني",null,"معهد تقني / كهرباء","شعبة النقل",null,null,null,null,null,null,"2018-10-22",null,10,null,null,null,null,null,null,null,null,null,"2017-03-30",3]
[{"$f":"SUBTOTAL(3,$E$2:E90)","v":0},null,null,"2013-09-30","باسم محمد جعفر حسين الموسوي",null,"ابتدائية","شعبة النقل ",null,null,null,null,null,null,"2018-10-23",null,10,null,null,null,null,null,null,null,null,null,"2017-03-31",3]
[{"$f":"SUBTOTAL(3,$E$2:E91)","v":0},null,null,"2017-09-19","باقر كاطع خلف محمد الوحيلات",null,"مضخات وتوربينات","القسم الفني",null,null,null,null,null,null,"2018-10-24",null,10,null,null,null,null,null,null,null,null,null,"2017-04-01",4]
[{"$f":"SUBTOTAL(3,$E$2:E92)","v":0},null,null,"1995-04-16","بان عبدالحسين عناد علي الحربي",null,"معهد فني / محاسبة ","قسم الحسابات ",null,null,null,null,null,null,"2018-10-25",null,10,null,null,null,null,null,null,null,null,null,"2017-04-02",4]
[{"$f":"SUBTOTAL(3,$E$2:E93)","v":0},null,null,"2011-08-02","براء محمد ناصر عباس مباري",null,"متوسطة ","قسم التوزيع",null,null,null,null,null,null,"2018-10-26",null,10,null,null,null,null,null,null,null,null,null,"2017-04-03",4]
[{"$f":"SUBTOTAL(3,$E$2:E94)","v":0},null,null,"1984-05-17","بشرى حسون شهاب احمد العزاوي ",null,"معهد فني / محاسبة ","قسم الحسابات",null,null,null,null,null,null,"2018-10-27",null,10,null,null,null,null,null,null,null,null,null,"2017-04-04",4]
[{"$f":"SUBTOTAL(3,$E$2:E95)","v":0},null,null,"2014-04-09","بنين محمد مسلم حسن التميمي",null,"معهد / الكترون ","شعبة التخطيط  ",null,null,null,null,null,null,"2018-10-28",null,10,null,null,null,null,null,null,null,null,null,"2017-04-05",4]
[{"$f":"SUBTOTAL(3,$E$2:E96)","v":0},null,null,"2015-05-27","بهاء حسين عبدالزهرة حسين الفرح ",null,"ابتدائية","شعبة صيانة السيارات الخفيفة والثقيلة",null,null,null,null,null,null,"2018-10-29",null,10,null,null,null,null,null,null,null,null,null,"2017-04-06",4]
[{"$f":"SUBTOTAL(3,$E$2:E97)","v":0},null,null,"2011-08-11","بهجت عباس يوسف عبيس البو راضي ",null,"ميكانيك اجهزة  الحفر ","شعبة السلامة والاطفاء",null,null,null,null,null,null,"2018-10-30",null,10,null,null,null,null,null,null,null,null,null,"2017-04-07",4]
[{"$f":"SUBTOTAL(3,$E$2:E98)","v":0},null,null,"2013-01-08","بيداء محمد حسن جاسم البهادلي ",null,"معهد تقني / محاسبة","قسم الحسابات",null,null,null,null,null,null,"2018-10-31",null,10,null,null,null,null,null,null,null,null,null,"2017-04-08",4]
[{"$f":"SUBTOTAL(3,$E$2:E99)","v":0},null,null,"2009-01-13","تحسين علي أحمد علوان الشروفي ",null,"بكالوريوس / ادارة واقتصاد / ادارة اعمال","تنسيب الى مركز الوزارة",null,null,null,null,null,null,"2018-11-01",null,11,null,null,null,null,null,null,null,null,null,"2017-04-09",4]
[{"$f":"SUBTOTAL(3,$E$2:E100)","v":0},null,null,"2008-03-12","تغريد ناصر حسين علوان لزام ",null,"ماجستير  / قانون ","الشعبة القانونية ",null,null,null,null,null,null,"2018-11-02",null,11,null,null,null,null,null,null,null,null,null,"2017-04-10",4]
[{"$f":"SUBTOTAL(3,$E$2:E101)","v":0},null,null,"2013-05-14","تكليف جبير باشي داود العامري",null,"اعدادية صناعة / كهرباء ","شعبة السلامة والاطفاء",null,null,null,null,null,null,"2018-11-03",null,11,null,null,null,null,null,null,null,null,null,"2017-04-11",4]
[{"$f":"SUBTOTAL(3,$E$2:E102)","v":0},null,null,"2016-09-27","ثامر رضا راهي حسين الاعرجي",null,"محو الامية","قسم التوزيع ",null,null,null,null,null,null,"2018-11-04",null,11,null,null,null,null,null,null,null,null,null,"2017-04-12",4]
[{"$f":"SUBTOTAL(3,$E$2:E103)","v":0},null,null,"2008-06-01","ثامر شاكر عليوي ناصر العامري",null," معهد نفط / مضخات","قسم التوزيع",null,null,null,null,null,null,"2018-11-05",null,11,null,null,null,null,null,null,null,null,null,"2017-04-13",4]
[{"$f":"SUBTOTAL(3,$E$2:E104)","v":0},null,null,"2010-06-29","ثامر عطية لفتة خضير الكعبي",null,"دون الابتدائية ","شعبة النقل",null,null,null,null,null,null,"2018-11-06",null,11,null,null,null,null,null,null,null,null,null,"2017-04-14",4]
[{"$f":"SUBTOTAL(3,$E$2:E105)","v":0},null,null,"2012-02-22","ثامر غانم هادي شاكر الفتلاوي",null,"اعدادية / ميكانيك","قسم التوزيع",null,null,null,null,null,null,"2018-11-07",null,11,null,null,null,null,null,null,null,null,null,"2017-04-15",4]
[{"$f":"SUBTOTAL(3,$E$2:E106)","v":0},null,null,"2010-06-28","ثامر محمد سعيد حسن محمد الشمري",null,"دون الابتدائية ","شعبة النقل",null,null,null,null,null,null,"2018-11-08",null,11,null,null,null,null,null,null,null,null,null,"2017-04-16",4]
[{"$f":"SUBTOTAL(3,$E$2:E107)","v":0},null,null,"2013-09-30","ثائر راهي عزيز محرج الخزعلي",null,"ابتدائية","شعبة النقل",null,null,null,null,null,null,"2018-11-09",null,11,null,null,null,null,null,null,null,null,null,"2017-04-17",4]
[{"$f":"SUBTOTAL(3,$E$2:E108)","v":0},null,null,"1979-07-07","جابر حمزة عبود عيسى الكريطي",null,"معهد نفط / تقنية الالكترون/ قسم الكهرباء ","قسم التوزيع",null,null,null,null,null,null,"2018-11-10",null,11,null,null,null,null,null,null,null,null,null,"2017-04-18",4]
[{"$f":"SUBTOTAL(3,$E$2:E109)","v":0},null,null,"2011-09-07","جابر عبدالرضا حسن مكدار الزيادي",null,"متوسطة ","قسم التوزيع",null,null,null,null,null,null,"2018-11-11",null,11,null,null,null,null,null,null,null,null,null,"2017-04-19",4]
[{"$f":"SUBTOTAL(3,$E$2:E110)","v":0},null,null,"2015-10-28","جابر عبدالله لفته حسن الميالي ",null,"ابتدائية","قسم التوزيع ",null,null,null,null,null,null,"2018-11-12",null,11,null,null,null,null,null,null,null,null,null,"2017-04-20",4]
[{"$f":"SUBTOTAL(3,$E$2:E111)","v":0},null,null,"1991-07-30","جابر محمود حسين احمد العجيمي",null," معهد نفط / معادلة لاعدادية الصناعة/ خراطة وتفريز","شعبة المخازن والمشتريات",null,null,null,null,null,null,"2018-11-13",null,11,null,null,null,null,null,null,null,null,null,"2017-04-21",4]
[{"$f":"SUBTOTAL(3,$E$2:E112)","v":0},null,null,"2006-02-01","جاسم جابر عبود داعي الماجدي",null,"معهد نفط / ميكانيك سيارات","القسم الفني",null,null,null,null,null,null,"2018-11-14",null,11,null,null,null,null,null,null,null,null,null,"2017-04-22",4]
[{"$f":"SUBTOTAL(3,$E$2:E113)","v":0},null,null,"2011-03-28","جاسم علاوي بدر جابر البلعوطي",null,"معهد تقني / ميكانيك","القسم الفني ",null,null,null,null,null,null,"2018-11-15",null,11,null,null,null,null,null,null,null,null,null,"2017-04-23",4]
[{"$f":"SUBTOTAL(3,$E$2:E114)","v":0},null,null,"1994-01-10","جاسم فضيل مهدي جاسم العفلوكي",null,"معهد نفط / كهرباء ","وحدة الكهرباء والغرامات",null,null,null,null,null,null,"2018-11-16",null,11,null,null,null,null,null,null,null,null,null,"2017-04-24",4]
[{"$f":"SUBTOTAL(3,$E$2:E115)","v":0},null,null,"2010-10-24","جاسم محمد عبادي مريدي آل مريدي",null,"معهد نفط / قسم الكهرباء / قياس وسيطرة","وحدة الفحص الهندسي ",null,null,null,null,null,null,"2018-11-17",null,11,null,null,null,null,null,null,null,null,null,"2017-04-25",4]
[{"$f":"SUBTOTAL(3,$E$2:E116)","v":0},null,null,"2013-11-18","جاسم محمد عبيد عباس الكلابي",null,"اعدادية / صناعة / ميكانيك / سيارات","القسم الفني",null,null,null,null,null,null,"2018-11-18",null,11,null,null,null,null,null,null,null,null,null,"2017-04-26",4]
[{"$f":"SUBTOTAL(3,$E$2:E117)","v":0},null,null,"2011-08-24","جبار عبدالرزاق علي شكري الصفار",null,"دون الابتدائية ","شعبة المخازن والمشتريات",null,null,null,null,null,null,"2018-11-19",null,11,null,null,null,null,null,null,null,null,null,"2017-04-27",4]
[{"$f":"SUBTOTAL(3,$E$2:E118)","v":0},null,null,"1979-08-01","جبار عبدالرضا حمزة  حبيب الجبوري",null,"متوسطة ","وحدة البيئة",null,null,null,null,null,null,"2018-11-20",null,11,null,null,null,null,null,null,null,null,null,"2017-04-28",4]
[{"$f":"SUBTOTAL(3,$E$2:E119)","v":0},null,null,"1979-10-10","جبار مهندس كاظم سعود خمساوي",null,"ابتدائية ","قسم التوزيع",null,null,null,null,null,null,"2018-11-21",null,11,null,null,null,null,null,null,null,null,null,"2017-04-29",4]
[{"$f":"SUBTOTAL(3,$E$2:E120)","v":0},null,null,"1979-08-18","جعفر محمد رضا محمد بحرالعلوم ",null,"بكالوريوس / هندسة ميكانيك ","قسم التوزيع",null,null,null,null,null,null,"2018-11-22",null,11,null,null,null,null,null,null,null,null,null,"2017-04-30",4]
[{"$f":"SUBTOTAL(3,$E$2:E121)","v":0},null,null,"2009-01-13","جعفر محمود عبد محمود السعدي  ",null,"بكالوريوس / علوم حاسبات  ","قسم الحسابات ",null,null,null,null,null,null,"2018-11-23",null,11,null,null,null,null,null,null,null,null,null,"2017-05-01",5]
[{"$f":"SUBTOTAL(3,$E$2:E122)","v":0},null,null,"1991-09-17","جلال احمد حمود محمود التميمي",null,"معهد نفط / سيارات ومعدات ثقيلة/ قسم ميكانيك ","وحدة السيطرة على حركة الاطارات",null,null,null,null,null,null,"2018-11-24",null,11,null,null,null,null,null,null,null,null,null,"2017-05-02",5]
[{"$f":"SUBTOTAL(3,$E$2:E123)","v":0},null,null,"1983-03-11","جمهورية مهدي جبار حسن البحر",null,"بكالوريوس / ادارة واقتصاد / محاسبة ","قسم الحسابات",null,null,null,null,null,null,"2018-11-25",null,11,null,null,null,null,null,null,null,null,null,"2017-05-03",5]
[{"$f":"SUBTOTAL(3,$E$2:E124)","v":0},null,null,"2014-11-02","جميل باقرعلي عبدالله النجار",null,"ابتدائية","القسم الفني",null,null,null,null,null,null,"2018-11-26",null,11,null,null,null,null,null,null,null,null,null,"2017-05-04",5]
[{"$f":"SUBTOTAL(3,$E$2:E125)","v":0},null,null,"2015-05-21","جهاد كاظم ابراهيم كريم كريم",null,"اعدادية صناعة / ميكانيك","شعبة صيانة السيارات الخفيفة والثقيلة",null,null,null,null,null,null,"2018-11-27",null,11,null,null,null,null,null,null,null,null,null,"2017-05-05",5]
[{"$f":"SUBTOTAL(3,$E$2:E126)","v":0},null,null,"2011-04-22","جواد خلف يوسف محمد اليوسف",null,"معهد نفط  / ادارة مواد","اجازة اربع سنوات",null,null,null,null,null,null,"2018-11-28",null,11,null,null,null,null,null,null,null,null,null,"2017-05-06",5]
[{"$f":"SUBTOTAL(3,$E$2:E127)","v":0},null,null,"2016-04-06","جواد كاظم حسن حسين الحسناوي",null,"اعدادية /علمي ","قسم التوزيع ",null,null,null,null,null,null,"2018-11-29",null,11,null,null,null,null,null,null,null,null,null,"2017-05-07",5]
[{"$f":"SUBTOTAL(3,$E$2:E128)","v":0},null,null,"2009-11-01","جواد كاظم حسن شمخي النصراوي",null,"ابتدائية","شعبة النقل ",null,null,null,null,null,null,"2018-11-30",null,11,null,null,null,null,null,null,null,null,null,"2017-05-08",5]
[{"$f":"SUBTOTAL(3,$E$2:E129)","v":0},null,null,"2011-03-23","جودي كاظم عليوي مهدي المهدي",null,"دون الابتدائية","شعبة السلامة والأطفاء",null,null,null,null,null,null,"2018-12-01",null,12,null,null,null,null,null,null,null,null,null,"2017-05-09",5]
[{"$f":"SUBTOTAL(3,$E$2:E130)","v":0},null,null,"2002-02-28","حازم صالح عبيد حسين العنيسي",null,"دبلوم نفط / تبريد وتكييف","شعبة تطبيق الموجودات",null,null,null,null,null,null,"2018-12-02",null,{"$f":"VLOOKUP(O130,AA129:AB858,2,FALSE)","v":12},null,null,null,null,null,null,null,null,null,"2017-05-10",5]
[{"$f":"SUBTOTAL(3,$E$2:E131)","v":0},null,null,"2008-07-02","حازم طارق عبود علي النجار",null,"بكالوريوس / هندسة ميكانيك سيارات","قسم التوزيع",null,null,null,null,null,null,"2018-12-03",null,12,null,null,null,null,null,null,null,null,null,"2017-05-11",5]
[{"$f":"SUBTOTAL(3,$E$2:E132)","v":0},null,null,"2009-09-15","حازم محمد كاظم فليح الفليفل",null,"معهد تقني / محاسبة","قسم الحسابات ",null,null,null,null,null,null,"2018-12-04",null,12,null,null,null,null,null,null,null,null,null,"2017-05-12",5]
[{"$f":"SUBTOTAL(3,$E$2:E133)","v":0},null,null,"2012-02-14","حافظ حسين جاسم حاجم المسعودي",null,"ابتدائية","شعبة السلامة والاطفاء",null,null,null,null,null,null,"2018-12-05",null,12,null,null,null,null,null,null,null,null,null,"2017-05-13",5]
[{"$f":"SUBTOTAL(3,$E$2:E134)","v":0},null,null,"2013-10-02","حامد مشكور عبد محمد الياسري",null,"ابتدائية","شعبة النقل",null,null,null,null,null,null,"2018-12-06",null,12,null,null,null,null,null,null,null,null,null,"2017-05-14",5]
[{"$f":"SUBTOTAL(3,$E$2:E135)","v":0},null,null,"2008-01-08","حبيب عبدالزهرة جوده كطان الاسدي ",null,"بكالوريوس / ميكانيك مضخات","اجازة اربع سنوات",null,null,null,null,null,null,"2018-12-07",null,12,null,null,null,null,null,null,null,null,null,"2017-05-15",5]
[{"$f":"SUBTOTAL(3,$E$2:E136)","v":0},null,null,"2009-11-01","حبيب عبدالزهرة نور سلمان ال سلمان",null,"ابتدائية","شعبة البحوث والسيطرة النوعية",null,null,null,null,null,null,"2018-12-08",null,12,null,null,null,null,null,null,null,null,null,"2017-05-16",5]
[{"$f":"SUBTOTAL(3,$E$2:E137)","v":0},null,null,"2010-06-27","حبيب مطر عباس المسعودي",null,"ابتدائية","القسم الفني",null,null,null,null,null,null,"2018-12-09",null,12,null,null,null,null,null,null,null,null,null,"2017-05-17",5]
[{"$f":"SUBTOTAL(3,$E$2:E138)","v":0},null,null,"2006-07-27","حسام صادق عبدالحسن  جعفر الحسيني",null,"معهد نفط / تحليلات كيمياوية /تصفية ","شعبة البحوث والسيطرة النوعية",null,null,null,null,null,null,"2018-12-10",null,12,null,null,null,null,null,null,null,null,null,"2017-05-18",5]
[{"$f":"SUBTOTAL(3,$E$2:E139)","v":0},null,null,"2017-04-20","حسام علي عبدالامير عباس الاسدي",null,"معهد / اللحام الغازي والكهربائي ","القسم الفني",null,null,null,null,null,null,"2018-12-11",null,12,null,null,null,null,null,null,null,null,null,"2017-05-19",5]
[{"$f":"SUBTOTAL(3,$E$2:E140)","v":0},null,null,"2010-11-04","حسام كاظم خلف فرج المالكي",null,"معهد نفط / تشغيل وسيطرة","قسم التوزيع",null,null,null,null,null,null,"2018-12-12",null,12,null,null,null,null,null,null,null,null,null,"2017-05-20",5]
[{"$f":"SUBTOTAL(3,$E$2:E141)","v":0},null,null,"2013-05-13","حسام محمدعلي كاظم حسن العبودي",null,"اعدادية / ميكانيك","شعبة البحوث والسيطرة النوعية",null,null,null,null,null,null,"2018-12-13",null,12,null,null,null,null,null,null,null,null,null,"2017-05-21",5]
[{"$f":"SUBTOTAL(3,$E$2:E142)","v":0},null,null,"2012-01-23","حسام مرزوك نعمة سربوت الزغيبي",null,"ابتدائية","قسم التوزيع",null,null,null,null,null,null,"2018-12-14",null,12,null,null,null,null,null,null,null,null,null,"2017-05-22",5]
[{"$f":"SUBTOTAL(3,$E$2:E143)","v":0},null,null,"1986-11-20","حسن جاسم محمد صافي الشبلاوي",null,"ابتدائية ","قسم التوزيع ",null,null,null,null,null,null,"2018-12-15",null,12,null,null,null,null,null,null,null,null,null,"2017-05-23",5]
[{"$f":"SUBTOTAL(3,$E$2:E144)","v":0},null,null,"2011-04-06","حسن حاكم هاشم حسون  شرموطي",null,"ابتدائية","القسم الاداري",null,null,null,null,null,null,"2018-12-16",null,12,null,null,null,null,null,null,null,null,null,"2017-05-24",5]
[{"$f":"SUBTOTAL(3,$E$2:E145)","v":0},null,null,"2015-07-08","حسن سالم حسن علي المزين",null,"معهد / ميكانيك  معدات نفطية","قسم التوزيع",null,null,null,null,null,null,"2018-12-17",null,12,null,null,null,null,null,null,null,null,null,"2017-05-25",5]
[{"$f":"SUBTOTAL(3,$E$2:E146)","v":0},null,null,"2012-12-29","حسن سعيد حسن حسين الاعرجي",null,"بكالوريوس / ادارة واقتصاد / علوم مالية ومصرفية","قسم الحسابات",null,null,null,null,null,null,"2018-12-18",null,12,null,null,null,null,null,null,null,null,null,"2017-05-26",5]
[{"$f":"SUBTOTAL(3,$E$2:E147)","v":0},null,null,"2011-08-29","حسن طالب عبد مظلوم الجميعاوي",null,"ابتدائية","قسم التوزيع",null,null,null,null,null,null,"2018-12-19",null,12,null,null,null,null,null,null,null,null,null,"2017-05-27",5]
[{"$f":"SUBTOTAL(3,$E$2:E148)","v":0},null,null,"2010-01-07","حسن عبد عون لفتة حافظ وزني",null,"اعدادية الزراعة / نباتي","وحدة القياس والمعايرة",null,null,null,null,null,null,"2018-12-20",null,12,null,null,null,null,null,null,null,null,null,"2017-05-28",5]
[{"$f":"SUBTOTAL(3,$E$2:E149)","v":0},null,null,"2006-04-24","حسن عبدالجبار عبد الوهاب علي الربيعي",null,"بكالوريوس / علوم كيمياء ","اجازة دراسية",null,null,null,null,null,null,"2018-12-21",null,12,null,null,null,null,null,null,null,null,null,"2017-05-29",5]
[{"$f":"SUBTOTAL(3,$E$2:E150)","v":0},null,null,"2015-10-18","حسن عبدالصاحب عباس حسين البدراني ",null,"ابتدائية","شعبة النقل ",null,null,null,null,null,null,"2018-12-22",null,12,null,null,null,null,null,null,null,null,null,"2017-05-30",5]
[{"$f":"SUBTOTAL(3,$E$2:E151)","v":0},null,null,"2008-12-23","حسن عجمي سالم خنياب الزبيدي",null,"بكالوريوس / علوم حاسبات  ","القسم الاداري",null,null,null,null,null,null,"2018-12-23",null,12,null,null,null,null,null,null,null,null,null,"2017-05-31",5]
[{"$f":"SUBTOTAL(3,$E$2:E152)","v":0},null,null,"2009-07-14","حسن فاضل كنعان ياسين الحيدري ",null,"اعدادية صناعة / سيارات ","قسم التوزيع ",null,null,null,null,null,null,"2018-12-24",null,12,null,null,null,null,null,null,null,null,null,"2017-06-01",6]
[{"$f":"SUBTOTAL(3,$E$2:E153)","v":0},null,null,"2009-06-14","حسن فتحي علوان حمد الاسدي ",null,"بكالوريوس / هندسة ميكانيك ","اجازة دراسية",null,null,null,null,null,null,"2018-12-25",null,12,null,null,null,null,null,null,null,null,null,"2017-06-02",6]
[{"$f":"SUBTOTAL(3,$E$2:E154)","v":0},null,null,"2011-08-03","حسن كاظم خلف علوان الوزني",null,"ابتدائية","قسم التوزيع ",null,null,null,null,null,null,"2018-12-26",null,12,null,null,null,null,null,null,null,null,null,"2017-06-03",6]
[{"$f":"SUBTOTAL(3,$E$2:E155)","v":0},null,null,"2007-05-29","حسن كاظم فتنان عبدالحسين العبودي",null,"بكالوريوس / هندسة كيمياوية ","وحدة الصحة المهنية",null,null,null,null,null,null,"2018-12-27",null,12,null,null,null,null,null,null,null,null,null,"2017-06-04",6]
[{"$f":"SUBTOTAL(3,$E$2:E156)","v":0},null,null,"2013-01-13","حسن نوري عبود هادي ال خرسان ",null,"معهد تقني  / تبريد","القسم الفني",null,null,null,null,null,null,"2018-12-28",null,12,null,null,null,null,null,null,null,null,null,"2017-06-05",6]
[{"$f":"SUBTOTAL(3,$E$2:E157)","v":0},null,null,"2013-12-30","حسنين حامد شاكر محمود المرخت ",null,"بكالوريوس / ادارة واقتصاد / ادارة اعمال","اجازة دراسية",null,null,null,null,null,null,"2018-12-29",null,12,null,null,null,null,null,null,null,null,null,"2017-06-06",6]
[{"$f":"SUBTOTAL(3,$E$2:E158)","v":0},null,null,"2007-09-04","حسنين عبدالامير سعد سلطان ال سلمان",null,"معهد نفط / كهرباء / قياس وسيطرة","القسم الفني",null,null,null,null,null,null,"2018-12-30",null,12,null,null,null,null,null,null,null,null,null,"2017-06-07",6]
[{"$f":"SUBTOTAL(3,$E$2:E159)","v":0},null,null,"2009-01-13","حسنين عدنان خضير كاظم الشمري  ",null,"بكالوريوس / علوم حاسبات  ","اجازة اربع سنوات",null,null,null,null,null,null,"2018-12-31",null,12,null,null,null,null,null,null,null,null,null,"2017-06-08",6]
[{"$f":"SUBTOTAL(3,$E$2:E160)","v":0},null,null,"2013-01-16","حسنين عيسى كاظم عداي الساعدي",null,"اعدادية صناعة / كهرباء ","شعبة السلامة والاطفاء",null,null,null,null,null,null,"2019-01-01",null,1,null,null,null,null,null,null,null,null,null,"2017-06-09",6]
[{"$f":"SUBTOTAL(3,$E$2:E161)","v":0},null,null,"2010-08-11","حسنين قاسم حسن حمود الاسدي",null,"ماجستير / تصاميم في الهندسة الميكانيكية","اجازة دراسية",null,null,null,null,null,null,"2019-01-02",null,1,null,null,null,null,null,null,null,null,null,"2017-06-10",6]
[{"$f":"SUBTOTAL(3,$E$2:E162)","v":0},null,null,"2015-09-01","حسين ابراهيم تكليف نوح الفتلاوي ",null,"ابتدائية","قسم التوزيع ",null,null,null,null,null,null,"2019-01-03",null,1,null,null,null,null,null,null,null,null,null,"2017-06-11",6]
[{"$f":"SUBTOTAL(3,$E$2:E163)","v":0},null,null,"2015-05-20","حسين جابر غالي سلمان الحسناوي",null,"اعدادية صناعة / ميكانيك","شعبة صيانة السيارات الخفيفة والثقيلة",null,null,null,null,null,null,"2019-01-04",null,1,null,null,null,null,null,null,null,null,null,"2017-06-12",6]
[{"$f":"SUBTOTAL(3,$E$2:E164)","v":0},null,null,"2008-03-13","حسين جبار عبدعلي عباس النصراوي ",null,"بكالوريوس / قانون ","الشعبة القانونية",null,null,null,null,null,null,"2019-01-05",null,1,null,null,null,null,null,null,null,null,null,"2017-06-13",6]
[{"$f":"SUBTOTAL(3,$E$2:E165)","v":0},null,null,"2002-03-16","حسين حمزة عبيد هاشم الموسوي",null,"ابتدائية ","القسم الفني",null,null,null,null,null,null,"2019-01-06",null,1,null,null,null,null,null,null,null,null,null,"2017-06-14",6]
[{"$f":"SUBTOTAL(3,$E$2:E166)","v":0},null,null,"2006-08-20","حسين حيدر راضي عباس الشرفه",null,"معهد نفط / قياس وسيطرة ","وحدة القياس والمعايرة",null,null,null,null,null,null,"2019-01-07",null,1,null,null,null,null,null,null,null,null,null,"2017-06-15",6]
[{"$f":"SUBTOTAL(3,$E$2:E167)","v":0},null,null,"2012-03-19","حسين رزاق بكان حسين عبودة",null,"ابتدائية","شعبة التنسيق والمتابعة",null,null,null,null,null,null,"2019-01-08",null,1,null,null,null,null,null,null,null,null,null,"2017-06-16",6]
[{"$f":"SUBTOTAL(3,$E$2:E168)","v":0},null,null,"2015-05-31","حسين رزاق عبدعون جاسم الحسناوي",null,"اعدادية ","شعبة صيانة السيارات الخفيفة والثقيلة",null,null,null,null,null,null,"2019-01-09",null,1,null,null,null,null,null,null,null,null,null,"2017-06-17",6]
[{"$f":"SUBTOTAL(3,$E$2:E169)","v":0},null,null,"2013-01-13","حسين شناوة عبد فراك العبودي",null,"ابتدائية","القسم الاداري",null,null,null,null,null,null,"2019-01-10",null,1,null,null,null,null,null,null,null,null,null,"2017-06-18",6]
[{"$f":"SUBTOTAL(3,$E$2:E170)","v":0},null,null,"2007-05-27","حسين صالح مهدي عباس العلي",null,"معهد نفط / تحليلات /تصفية ","وحدة القياس والمعايرة",null,null,null,null,null,null,"2019-01-11",null,1,null,null,null,null,null,null,null,null,null,"2017-06-19",6]
[{"$f":"SUBTOTAL(3,$E$2:E171)","v":0},null,null,"2009-11-22","حسين صالح هادي صالح الطائي",null,"معهد تقني / رسم هندسي","القسم الفني ",null,null,null,null,null,null,"2019-01-12",null,1,null,null,null,null,null,null,null,null,null,"2017-06-20",6]
[{"$f":"SUBTOTAL(3,$E$2:E172)","v":0},null,null,"2015-10-13","حسين صكبان كوير سلطان الجعباوي",null,"ابتدائية","قسم التوزيع",null,null,null,null,null,null,"2019-01-13",null,1,null,null,null,null,null,null,null,null,null,"2017-06-21",6]
[{"$f":"SUBTOTAL(3,$E$2:E173)","v":0},null,null,"22/10/2012","حسين طارق مرتضى حميد الياسري",null,"ابتدائية","قسم التوزيع",null,null,null,null,null,null,"2019-01-14",null,1,null,null,null,null,null,null,null,null,null,"2017-06-22",6]
[{"$f":"SUBTOTAL(3,$E$2:E174)","v":0},null,null,"2008-05-27","حسين طالب عبدالكاظم حسين الزميلي",null,"بكالوريوس ادارة واقتصاد /احصاء ","مكتب المفتش العام",null,null,null,null,null,null,"2019-01-15",null,1,null,null,null,null,null,null,null,null,null,"2017-06-23",6]
[{"$f":"SUBTOTAL(3,$E$2:E175)","v":0},null,null,"2015-09-01","حسين عبدالرسول محي فهد العبادي ",null,"ابتدائية","قسم التوزيع ",null,null,null,null,null,null,"2019-01-16",null,1,null,null,null,null,null,null,null,null,null,"2017-06-24",6]
[{"$f":"SUBTOTAL(3,$E$2:E176)","v":0},null,null,"1991-10-02","حسين عبدالعالي حسين الحجي",null,"معهد فني / كهرباء / مكائن ","قسم التوزيع",null,null,null,null,null,null,"2019-01-17",null,1,null,null,null,null,null,null,null,null,null,"2017-06-25",6]
[{"$f":"SUBTOTAL(3,$E$2:E177)","v":0},null,null,"2010-10-14","حسين عبدالفتاح عبدالحميد خضر السنيد",null,"معهد نفط / ميكانيك / سيارات","قسم التوزيع",null,null,null,null,null,null,"2019-01-18",null,1,null,null,null,null,null,null,null,null,null,"2017-06-26",6]
[{"$f":"SUBTOTAL(3,$E$2:E178)","v":0},null,null,"2008-03-02","حسين عبدالكاظم عباس علي العنبكي",null,"بكالوريوس / هندسة كيمياوية ","القسم الفني ",null,null,null,null,null,null,"2019-01-19",null,1,null,null,null,null,null,null,null,null,null,"2017-06-27",6]
[{"$f":"SUBTOTAL(3,$E$2:E179)","v":0},null,null,"2015-07-08","حسين علي  رحيم حسين ال جميل",null,"معهد / ميكانيك  معدات نفطية","قسم التوزيع",null,null,null,null,null,null,"2019-01-20",null,1,null,null,null,null,null,null,null,null,null,"2017-06-28",6]
[{"$f":"SUBTOTAL(3,$E$2:E180)","v":0},null,null,"2009-01-13","حسين علي جاسم عبد علوان الخزعلي ",null,"بكالوريوس / اعلام ","شعبة العلاقات العامة ",null,null,null,null,null,null,"2019-01-21",null,1,null,null,null,null,null,null,null,null,null,"2017-06-29",6]
[{"$f":"SUBTOTAL(3,$E$2:E181)","v":0},null,null,"2013-09-30","حسين علي حسين هجول الوزني",null,"ابتدائية","شعبة النقل",null,null,null,null,null,null,"2019-01-22",null,1,null,null,null,null,null,null,null,null,null,"2017-06-30",6]
[{"$f":"SUBTOTAL(3,$E$2:E182)","v":0},null,null,"2012-11-07","حسين علي عبد حسون ابوشبع",null,"معهد نفط / قياس وسيطرة / كهرباء","قسم التوزيع",null,null,null,null,null,null,"2019-01-23",null,1,null,null,null,null,null,null,null,null,null,"2017-07-01",7]
[{"$f":"SUBTOTAL(3,$E$2:E183)","v":0},null,null,"2010-06-29","حسين علي محمد ياسين المسعودي",null,"دون الابتدائية ","شعبة النقل",null,null,null,null,null,null,"2019-01-24",null,1,null,null,null,null,null,null,null,null,null,"2017-07-02",7]
[{"$f":"SUBTOTAL(3,$E$2:E184)","v":0},null,null,"2009-10-06","حسين عليوي عبد راهي الكريطي ",null,"ابتدائية","شعبة النقل ",null,null,null,null,null,null,"2019-01-25",null,1,null,null,null,null,null,null,null,null,null,"2017-07-03",7]
[{"$f":"SUBTOTAL(3,$E$2:E185)","v":0},null,null,"2012-05-14","حسين فاضل كنعان ياسين الحيدري ",null,"ابتدائية","قسم التوزيع",null,null,null,null,null,null,"2019-01-26",null,1,null,null,null,null,null,null,null,null,null,"2017-07-04",7]
[{"$f":"SUBTOTAL(3,$E$2:E186)","v":0},null,null,"1996-02-10","حسين فرحان جبارة راضي الجزائري",null,"معهد نفط / تشغيل وسيطرة / تصفية ","قسم التوزيع ",null,null,null,null,null,null,"2019-01-27",null,1,null,null,null,null,null,null,null,null,null,"2017-07-05",7]
[{"$f":"SUBTOTAL(3,$E$2:E187)","v":0},null,null,"1989-01-16","حسين كاظم معين ناصر اليساري ",null,"بكالوريوس / اداب / مكتبات ","وحدة الارشفة الالكترونية",null,null,null,null,null,null,"2019-01-28",null,1,null,null,null,null,null,null,null,null,null,"2017-07-06",7]
[{"$f":"SUBTOTAL(3,$E$2:E188)","v":0},null,null,"2004-08-15","حسين مجيد صالح هادي ال خرسان",null,"بكالوريوس / هندسة نفط ","مدير الفرع",null,null,null,null,null,null,"2019-01-29",null,1,null,null,null,null,null,null,null,null,null,"2017-07-07",7]
[{"$f":"SUBTOTAL(3,$E$2:E189)","v":0},null,null,"1994-03-19","حسين محسن كتون  عبود الحساني",null,"ابتدائية ","شعبة السلامة والاطفاء",null,null,null,null,null,null,"2019-01-30",null,1,null,null,null,null,null,null,null,null,null,"2017-07-08",7]
[{"$f":"SUBTOTAL(3,$E$2:E190)","v":0},null,null,"2006-06-08","حسين محمد خليل  محمد علي ال سيد",null,"اعدادية صناعة / الكترون","شعبة المولدات",null,null,null,null,null,null,"2019-01-31",null,1,null,null,null,null,null,null,null,null,null,"2017-07-09",7]
[{"$f":"SUBTOTAL(3,$E$2:E191)","v":0},null,null,"2011-03-01","حسين ناصر حسين محسن الكلابي",null,"ابتدائية","قسم التوزيع",null,null,null,null,null,null,"2019-02-01",null,2,null,null,null,null,null,null,null,null,null,"2017-07-10",7]
[{"$f":"SUBTOTAL(3,$E$2:E192)","v":0},null,null,"2011-03-01","حسين ناصر عطية عطية الاسدي",null,"ابتدائية","قسم التوزيع",null,null,null,null,null,null,"2019-02-02",null,2,null,null,null,null,null,null,null,null,null,"2017-07-11",7]
[{"$f":"SUBTOTAL(3,$E$2:E193)","v":0},null,null,"2013-11-28","حسين هادي عبدالامير علوان الفتلاوي",null,"دون الابتدائية","قسم التوزيع",null,null,null,null,null,null,"2019-02-03",null,2,null,null,null,null,null,null,null,null,null,"2017-07-12",7]
[{"$f":"SUBTOTAL(3,$E$2:E194)","v":0},null,null,"2013-09-10","حسين هاشم شني عبدالله الخرسان",null,"معهد نفط / ميكانيك /معدات ثقيلة","وحدة الارشفة الالكترونية",null,null,null,null,null,null,"2019-02-04",null,{"$f":"VLOOKUP(O194,AA193:AB922,2,FALSE)","v":2},null,null,null,null,null,null,null,null,null,"2017-07-13",7]
[{"$f":"SUBTOTAL(3,$E$2:E195)","v":0},null,null,"2006-01-04","حسين هاشم عبدالكاظم عبيس ال حسون",null,"معهد نفط / ميكانيك","شعبة التنسيق والمتابعة",null,null,null,null,null,null,"2019-02-05",null,2,null,null,null,null,null,null,null,null,null,"2017-07-14",7]
[{"$f":"SUBTOTAL(3,$E$2:E196)","v":0},null,null,"2012-02-15","حقي اسماعيل كاظم ناصر الدراوشة",null,"ابتدائية","قسم التوزيع",null,null,null,null,null,null,"2019-02-06",null,2,null,null,null,null,null,null,null,null,null,"2017-07-15",7]
[{"$f":"SUBTOTAL(3,$E$2:E197)","v":0},null,null,"2011-07-25","حكمت باقر علي عبدالله النجار",null,"ابتدائية","القسم الفني",null,null,null,null,null,null,"2019-02-07",null,2,null,null,null,null,null,null,null,null,null,"2017-07-16",7]
[{"$f":"SUBTOTAL(3,$E$2:E198)","v":0},null,null,"2001-12-23","حمزة عباس علي  شريدة السعدي",null,"اعدادية تجارة ","قسم الحسابات ",null,null,null,null,null,null,"2019-02-08",null,2,null,null,null,null,null,null,null,null,null,"2017-07-17",7]
[{"$f":"SUBTOTAL(3,$E$2:E199)","v":0},null,null,"2011-03-03","حمزة علي حسين حمد آل حمد",null,"متوسطة ","القسم الفني",null,null,null,null,null,null,"2019-02-09",null,2,null,null,null,null,null,null,null,null,null,"2017-07-18",7]
[{"$f":"SUBTOTAL(3,$E$2:E200)","v":0},null,null,"2009-01-13","حمودي علي زويني محمد الجليحاوي ",null,"بكالوريوس / هندسة ميكانيك ","شعبة النقل ",null,null,null,null,null,null,"2019-02-10",null,2,null,null,null,null,null,null,null,null,null,"2017-07-19",7]
[{"$f":"SUBTOTAL(3,$E$2:E201)","v":0},null,null,"2009-10-04","حميد حسن حاوي جبار الكريطي ",null,"متوسطة ","شعبة النقل",null,null,null,null,null,null,"2019-02-11",null,2,null,null,null,null,null,null,null,null,null,"2017-07-20",7]
[{"$f":"SUBTOTAL(3,$E$2:E202)","v":0},null,null,"2003-07-23","حميد خضير جاسم محمد اليساري",null,"دبلوم عالي / معادل للماجستير","قسم التوزيع",null,null,null,null,null,null,"2019-02-12",null,2,null,null,null,null,null,null,null,null,null,"2017-07-21",7]
[{"$f":"SUBTOTAL(3,$E$2:E203)","v":0},null,null,"1992-01-26","حميد خضير عبد عبد الله الغانمي",null,"بكالوريوس / هندسة نفط ","شعبة تقنية المعلومات ",null,null,null,null,null,null,"2019-02-13",null,2,null,null,null,null,null,null,null,null,null,"2017-07-22",7]
[{"$f":"SUBTOTAL(3,$E$2:E204)","v":0},null,null,"2007-12-27","حميد علي بجاي علي العلي",null,"بكالوريوس / هندسة ميكانيك ","القسم الفني",null,null,null,null,null,null,"2019-02-14",null,2,null,null,null,null,null,null,null,null,null,"2017-07-23",7]
[{"$f":"SUBTOTAL(3,$E$2:E205)","v":0},null,null,"1987-07-18","حميدة عبدالله منخي جبارة المصطفى ",null,"معهد فني / رسم هندسي","القسم الفني",null,null,null,null,null,null,"2019-02-15",null,2,null,null,null,null,null,null,null,null,null,"2017-07-24",7]
[{"$f":"SUBTOTAL(3,$E$2:E206)","v":0},null,null,"2005-12-07","حيدر احمد غائب  محسن الموسوي",null,"معهد نفط / قياس وسيطرة /كهرباء ","شعبة البحوث والسيطرة النوعية",null,null,null,null,null,null,"2019-02-16",null,2,null,null,null,null,null,null,null,null,null,"2017-07-25",7]
[{"$f":"SUBTOTAL(3,$E$2:E207)","v":0},null,null,"2012-07-01","حيدر اميري عبود جاسم سلومي",null,"دون الابتدائية","قسم التوزيع",null,null,null,null,null,null,"2019-02-17",null,2,null,null,null,null,null,null,null,null,null,"2017-07-26",7]
[{"$f":"SUBTOTAL(3,$E$2:E208)","v":0},null,null,"2008-02-24","حيدر تركي عباس سلمان المسلماوي",null,"بكالوريوس / ميكانيك / تصميم قوالب وعلب","القسم الفني",null,null,null,null,null,null,"2019-02-18",null,2,null,null,null,null,null,null,null,null,null,"2017-07-27",7]
[{"$f":"SUBTOTAL(3,$E$2:E209)","v":0},null,null,"2013-05-20","حيدر جبار عبدعون سكان العامري",null,"ابتدائية","قسم التوزيع",null,null,null,null,null,null,"2019-02-19",null,2,null,null,null,null,null,null,null,null,null,"2017-07-28",7]
[{"$f":"SUBTOTAL(3,$E$2:E210)","v":0},null,null,"2006-06-14","حيدر جفيت جواد  كاظم الحسناوي",null,"معهد تقني / ميكانيك ","قسم التوزيع",null,null,null,null,null,null,"2019-02-20",null,2,null,null,null,null,null,null,null,null,null,"2017-07-29",7]
[{"$f":"SUBTOTAL(3,$E$2:E211)","v":0},null,null,"2012-10-24","حيدر جواد كاظم عزيز الطائي",null,"اعدادية الصناعة / ميكانيك","قسم التوزيع",null,null,null,null,null,null,"2019-02-21",null,2,null,null,null,null,null,null,null,null,null,"2017-07-30",7]
[{"$f":"SUBTOTAL(3,$E$2:E212)","v":0},null,null,"2011-04-01","حيدر حسين عبدالامير كاظم الكلابي",null,"دون الابتدائية ","القسم الاداري",null,null,null,null,null,null,"2019-02-22",null,2,null,null,null,null,null,null,null,null,null,"2017-07-31",7]
[{"$f":"SUBTOTAL(3,$E$2:E213)","v":0},null,null,"2012-01-12","حيدر حسين عبدالرزاق عبدالحسين الحداد",null,"ابتدائية","شعبة المولدات",null,null,null,null,null,null,"2019-02-23",null,2,null,null,null,null,null,null,null,null,null,"2017-08-01",8]
[{"$f":"SUBTOTAL(3,$E$2:E214)","v":0},null,null,"2005-12-06","حيدر حميد كاظم غضيب مسعودي",null,"معهد نفط / تقنية اللحام /ميكانيك ","شعبة البحوث والسيطرة النوعية",null,null,null,null,null,null,"2019-02-24",null,2,null,null,null,null,null,null,null,null,null,"2017-08-02",8]
[{"$f":"SUBTOTAL(3,$E$2:E215)","v":0},null,null,"2002-05-22","حيدر خليل ابراهيم عباس الجبوري",null,"بكالوريوس / هندسة بناء وانشاءت ","القسم الفني",null,null,null,null,null,null,"2019-02-25",null,2,null,null,null,null,null,null,null,null,null,"2017-08-03",8]
[{"$f":"SUBTOTAL(3,$E$2:E216)","v":0},null,null,"2011-09-11","حيدر داخل كشكول كاظم الشريفي",null,"ابتدائية","قسم التوزيع",null,null,null,null,null,null,"2019-02-26",null,2,null,null,null,null,null,null,null,null,null,"2017-08-04",8]
[{"$f":"SUBTOTAL(3,$E$2:E217)","v":0},null,null,"2013-04-28","حيدر رياض نوح حسن الموسوي",null,"بكالوريوس / ادارة واقتصاد","وحدة تقييم الاداء",null,null,null,null,null,null,"2019-02-27",null,2,null,null,null,null,null,null,null,null,null,"2017-08-05",8]
[{"$f":"SUBTOTAL(3,$E$2:E218)","v":0},null,null,"2013-01-09","حيدر صافي عبود فرج الجبوري",null,"معهد تقني / تقنيات ميكانيكية","القسم الفني",null,null,null,null,null,null,"2019-02-28",null,2,null,null,null,null,null,null,null,null,null,"2017-08-06",8]
[{"$f":"SUBTOTAL(3,$E$2:E219)","v":0},null,null,"2012-01-30","حيدر طالب جاسم يعقوب الحضيري",null,"ابتدائية","قسم التوزيع",null,null,null,null,null,null,"2019-03-01",null,3,null,null,null,null,null,null,null,null,null,"2017-08-07",8]
[{"$f":"SUBTOTAL(3,$E$2:E220)","v":0},null,null,"2013-05-20","حيدر عباس علي شريدة السعدي",null,"ابتدائية","قسم التوزيع",null,null,null,null,null,null,"2019-03-02",null,3,null,null,null,null,null,null,null,null,null,"2017-08-08",8]
[{"$f":"SUBTOTAL(3,$E$2:E221)","v":0},null,null,"2013-06-12","حيدر عباس محسن عبدالحسن العبادي ",null,"دبلوم /نفط /ميكانيك /لحام ","القسم الفني ",null,null,null,null,null,null,"2019-03-03",null,3,null,null,null,null,null,null,null,null,null,"2017-08-09",8]
[{"$f":"SUBTOTAL(3,$E$2:E222)","v":0},null,null,"2013-05-20","حيدر عبدالاله مسلم علي الفتلاوي",null,"ابتدائية","الشعبة القانونية",null,null,null,null,null,null,"2019-03-04",null,3,null,null,null,null,null,null,null,null,null,"2017-08-10",8]
[{"$f":"SUBTOTAL(3,$E$2:E223)","v":0},null,null,"1996-12-25","حيدر عبدالامير جاسم محمد الكبيسي ",null,"معهد نفط / كهرباء عام/ الكهرباء ","القسم الفني",null,null,null,null,null,null,"2019-03-05",null,3,null,null,null,null,null,null,null,null,null,"2017-08-11",8]
[{"$f":"SUBTOTAL(3,$E$2:E224)","v":0},null,null,"2005-12-21","حيدر عبدالامير جواد علي الحكيم",null,"معهد نفط / ميكانيك","شعبة المخازن والمشتريات",null,null,null,null,null,null,"2019-03-06",null,3,null,null,null,null,null,null,null,null,null,"2017-08-12",8]
[{"$f":"SUBTOTAL(3,$E$2:E225)","v":0},null,null,"2012-03-19","حيدر عبدالامير رشيد كريم ابووالده",null,"بكالوريوس / علوم كيمياء ","وحدة الصحة المهنية",null,null,null,null,null,null,"2019-03-07",null,3,null,null,null,null,null,null,null,null,null,"2017-08-13",8]
[{"$f":"SUBTOTAL(3,$E$2:E226)","v":0},null,null,"2014-11-02","حيدر عبدالحسن طارق عبدالكريم الخفاجي",null,"ابتدائية","القسم الفني",null,null,null,null,null,null,"2019-03-08",null,3,null,null,null,null,null,null,null,null,null,"2017-08-14",8]
[{"$f":"SUBTOTAL(3,$E$2:E227)","v":0},null,null,"2006-05-11","حيدر عبدالحميد صبار كاظم الاعرجي",null,"بكالوريوس / ادارة واقتصاد / ادارة اعمال","قسم الحسابات ",null,null,null,null,null,null,"2019-03-09",null,3,null,null,null,null,null,null,null,null,null,"2017-08-15",8]
[{"$f":"SUBTOTAL(3,$E$2:E228)","v":0},null,null,"2005-12-26","حيدر عبدالرزاق كريم جواد النصراوي",null,"بكالوريوس / هندسة ميكانيك ","شعبة السلامة والاطفاء",null,null,null,null,null,null,"2019-03-10",null,3,null,null,null,null,null,null,null,null,null,"2017-08-16",8]
[{"$f":"SUBTOTAL(3,$E$2:E229)","v":0},null,null,"2012-02-21","حيدر عبدالهادي كاظم هادي الحسناوي",null,"دون الابتدائية ","قسم التوزيع",null,null,null,null,null,null,"2019-03-11",null,3,null,null,null,null,null,null,null,null,null,"2017-08-17",8]
[{"$f":"SUBTOTAL(3,$E$2:E230)","v":0},null,null,"2010-06-28","حيدر عزيز عبدعلي جياد الفتلاوي",null,"ابتدائية","شعبة النقل",null,null,null,null,null,null,"2019-03-12",null,3,null,null,null,null,null,null,null,null,null,"2017-08-18",8]
[{"$f":"SUBTOTAL(3,$E$2:E231)","v":0},null,null,"2012-01-26","حيدر عطية عبود شمخي الفتلاوي",null,"ابتدائية","قسم التوزيع",null,null,null,null,null,null,"2019-03-13",null,3,null,null,null,null,null,null,null,null,null,"2017-08-19",8]
[{"$f":"SUBTOTAL(3,$E$2:E232)","v":0},null,null,"2011-10-06","حيدر علي سيد حسين الياسري",null,"معهد نفط  / ميكانيك معدات نفطية","القسم الفني",null,null,null,null,null,null,"2019-03-14",null,3,null,null,null,null,null,null,null,null,null,"2017-08-20",8]
[{"$f":"SUBTOTAL(3,$E$2:E233)","v":0},null,null,"2012-02-01","حيدر فليح حسن اسد دندل",null,"اعدادية / سيارات","القسم الفني",null,null,null,null,null,null,"2019-03-15",null,3,null,null,null,null,null,null,null,null,null,"2017-08-21",8]
[{"$f":"SUBTOTAL(3,$E$2:E234)","v":0},null,null,"2006-06-13","حيدر قاسم محمد هادي حسون العزاوي",null,"بكالوريوس / هندسة كيمياوية ","وحدة الكلف التخمينية",null,null,null,null,null,null,"2019-03-16",null,3,null,null,null,null,null,null,null,null,null,"2017-08-22",8]
[{"$f":"SUBTOTAL(3,$E$2:E235)","v":0},null,null,"2006-05-28","حيدر مامور خشن وادي العزاوي",null,"معهد نفط / تشغيل وسيطرة ","قسم التوزيع ",null,null,null,null,null,null,"2019-03-17",null,3,null,null,null,null,null,null,null,null,null,"2017-08-23",8]
[{"$f":"SUBTOTAL(3,$E$2:E236)","v":0},null,null,"2006-06-13","حيدر محمد حسن  علي الحسن ",null,"معهد تقني / كهرباء ","القسم الفني ",null,null,null,null,null,null,"2019-03-18",null,3,null,null,null,null,null,null,null,null,null,"2017-08-24",8]
[{"$f":"SUBTOTAL(3,$E$2:E237)","v":0},null,null,"2012-02-08","حيدر مدلول مشكور حسين العبودي",null,"متوسطة ","القسم الفني",null,null,null,null,null,null,"2019-03-19",null,3,null,null,null,null,null,null,null,null,null,"2017-08-25",8]
[{"$f":"SUBTOTAL(3,$E$2:E238)","v":0},null,null,"2006-05-17","حيدر ناصر حسين جواد ابو السبح",null,"اعدادية صناعة / كهرباء ","القسم الاداري",null,null,null,null,null,null,"2019-03-20",null,3,null,null,null,null,null,null,null,null,null,"2017-08-26",8]
[{"$f":"SUBTOTAL(3,$E$2:E239)","v":0},null,null,"2011-08-03","حيدر وحيد حبيب حمود الموسوي",null,"دون الابتدائية","قسم التوزيع",null,null,null,null,null,null,"2019-03-21",null,3,null,null,null,null,null,null,null,null,null,"2017-08-27",8]
[{"$f":"SUBTOTAL(3,$E$2:E240)","v":0},null,null,"2009-11-02","خالد جاسم لفتة حسين العبودي",null,"ابتدائية","شعبة النقل",null,null,null,null,null,null,"2019-03-22",null,3,null,null,null,null,null,null,null,null,null,"2017-08-28",8]
[{"$f":"SUBTOTAL(3,$E$2:E241)","v":0},null,null,"1984-05-08","خالد جبار عباس غضبان محسن العصامي ",null,"اعدادية زراعة ","وحدة ادارة المكتب ",null,null,null,null,null,null,"2019-03-23",null,3,null,null,null,null,null,null,null,null,null,"2017-08-29",8]
[{"$f":"SUBTOTAL(3,$E$2:E242)","v":0},null,null,"1989-09-20","خالد جمال ستار جمعة الصدعاني",null,"معهد نفط / تشغيل / تصفية ","وحدة ادارة المكتب ",null,null,null,null,null,null,"2019-03-24",null,3,null,null,null,null,null,null,null,null,null,"2017-08-30",8]
[{"$f":"SUBTOTAL(3,$E$2:E243)","v":0},null,null,"1993-12-27","خالد عباس حسن عبدالله ابوكرده",null,"معهد نفط / كهرباء ","وحدة القياس والمعايرة",null,null,null,null,null,null,"2019-03-25",null,3,null,null,null,null,null,null,null,null,null,"2017-08-31",8]
[{"$f":"SUBTOTAL(3,$E$2:E244)","v":0},null,null,"2010-04-05","خالد عبدالزهرة حبيب محمود البرغوثي",null,"معهد تقني / تبريد","شعبة صيانة السيارات الخفيفة والثقيلة",null,null,null,null,null,null,"2019-03-26",null,3,null,null,null,null,null,null,null,null,null,"2017-09-01",9]
[{"$f":"SUBTOTAL(3,$E$2:E245)","v":0},null,null,"2011-10-16","خالد علي كاظم عبد البوزين",null,"معهد تقني / ادارة مكتب","قسم التوزيع",null,null,null,null,null,null,"2019-03-27",null,3,null,null,null,null,null,null,null,null,null,"2017-09-02",9]
[{"$f":"SUBTOTAL(3,$E$2:E246)","v":0},null,null,"2005-12-27","خالد مزعل جابر دعاج الغزي",null,"ماجستير / هندسة ميكانيك","قسم التوزيع",null,null,null,null,null,null,"2019-03-28",null,3,null,null,null,null,null,null,null,null,null,"2017-09-03",9]
[{"$f":"SUBTOTAL(3,$E$2:E247)","v":0},null,null,"2009-04-23","خالد مهدي عبيس هبيلة الزبيدي ",null,"اعدادية تجارة / ادارة ","قسم التوزيع",null,null,null,null,null,null,"2019-03-29",null,3,null,null,null,null,null,null,null,null,null,"2017-09-04",9]
[{"$f":"SUBTOTAL(3,$E$2:E248)","v":0},null,null,"2011-04-01","خالد موسى حمود موسى ال موسى",null,"ابتدائية","قسم التوزيع",null,null,null,null,null,null,"2019-03-30",null,3,null,null,null,null,null,null,null,null,null,"2017-09-05",9]
[{"$f":"SUBTOTAL(3,$E$2:E249)","v":0},null,null,"1999-02-07","خالد ناجي عليوي  ناصر الناصري",null,"معهد فني / كهرباء ","وحدة القياس والمعايرة",null,null,null,null,null,null,"2019-03-31",null,3,null,null,null,null,null,null,null,null,null,"2017-09-06",9]
[{"$f":"SUBTOTAL(3,$E$2:E250)","v":0},null,null,"1980-12-22","خضير جابر عبدالحسن  محمد العلواني",null,"ابتدائية ","قسم التوزيع ",null,null,null,null,null,null,"2019-04-01",null,4,null,null,null,null,null,null,null,null,null,"2017-09-07",9]
[{"$f":"SUBTOTAL(3,$E$2:E251)","v":0},null,null,"2010-10-07","خضير عباس عبود ذرب العامري",null,"معهد نفط / ميكانيك / سيارات","قسم التوزيع",null,null,null,null,null,null,"2019-04-02",null,4,null,null,null,null,null,null,null,null,null,"2017-09-08",9]
[{"$f":"SUBTOTAL(3,$E$2:E252)","v":0},null,null,"2001-07-10","خطاب عباس راضي حسون الصالحي",null,"بكالوريوس / علوم بحوث عمليات ","القسم الاداري",null,null,null,null,null,null,"2019-04-03",null,4,null,null,null,null,null,null,null,null,null,"2017-09-09",9]
[{"$f":"SUBTOTAL(3,$E$2:E253)","v":0},null,null,"1981-02-28","خليل لطيف سعد عزوز الزاملي",null,"دون الابتدائية ","قسم التوزيع ",null,null,null,null,null,null,"2019-04-04",null,4,null,null,null,null,null,null,null,null,null,"2017-09-10",9]
[{"$f":"SUBTOTAL(3,$E$2:E254)","v":0},null,null,"2013-01-09","خولة عبدالرضا فليح حسن الخفاجي",null,"معهد تقني / ادارة مكتب","القسم الفني",null,null,null,null,null,null,"2019-04-05",null,4,null,null,null,null,null,null,null,null,null,"2017-09-11",9]
[{"$f":"SUBTOTAL(3,$E$2:E255)","v":0},null,null,"2013-01-09","داود سلمان حسون خشان الجبوري",null,"معهد تقني / ميكانيك","القسم الفني",null,null,null,null,null,null,"2019-04-06",null,4,null,null,null,null,null,null,null,null,null,"2017-09-12",9]
[{"$f":"SUBTOTAL(3,$E$2:E256)","v":0},null,null,"2009-10-10","داود سلمان حسين حسن الحسيني ",null,"اعدادية علمي ","شعبة السلامة والاطفاء ",null,null,null,null,null,null,"2019-04-07",null,4,null,null,null,null,null,null,null,null,null,"2017-09-13",9]
[{"$f":"SUBTOTAL(3,$E$2:E257)","v":0},null,null,"2005-12-27","دعاء حسين عبدالزهرة حسين الفرح",null,"معهد نفط / ميكانيك","وحدة القياس والمعايرة",null,null,null,null,null,null,"2019-04-08",null,4,null,null,null,null,null,null,null,null,null,"2017-09-14",9]
[{"$f":"SUBTOTAL(3,$E$2:E258)","v":0},null,null,"1979-09-17","دوهان سوادي دحام غزاي بحت العابدي",null,"دون الابتدائية ","قسم التوزيع",null,null,null,null,null,null,"2019-04-09",null,{"$f":"VLOOKUP(O258,AA257:AB986,2,FALSE)","v":4},null,null,null,null,null,null,null,null,null,"2017-09-15",9]
[{"$f":"SUBTOTAL(3,$E$2:E259)","v":0},null,null,"1986-04-30","رازقية عبدالرحيم عبدالكريم الاسدي ",null,"معهد فني / محاسبة ","قسم الحسابات ",null,null,null,null,null,null,"2019-04-10",null,4,null,null,null,null,null,null,null,null,null,"2017-09-16",9]
[{"$f":"SUBTOTAL(3,$E$2:E260)","v":0},null,null,"2012-02-02","رازقية محسن غياض علي السيلاوي",null,"دون الابتدائية","القسم الاداري",null,null,null,null,null,null,"2019-04-11",null,4,null,null,null,null,null,null,null,null,null,"2017-09-17",9]
[{"$f":"SUBTOTAL(3,$E$2:E261)","v":0},null,null,"2007-05-09","رافد ريسان فضل  جبر العبودي ",null,"معهد نفط / تحليلات / تصفية ","القسم الفني ",null,null,null,null,null,null,"2019-04-12",null,4,null,null,null,null,null,null,null,null,null,"2017-09-18",9]
[{"$f":"SUBTOTAL(3,$E$2:E262)","v":0},null,null,"2013-05-13","رائد ريسان فضل جبر العبوده",null,"اعدادية / ادبي ","شعبة البحوث والسيطرة النوعية",null,null,null,null,null,null,"2019-04-13",null,4,null,null,null,null,null,null,null,null,null,"2017-09-19",9]
[{"$f":"SUBTOTAL(3,$E$2:E263)","v":0},null,null,"2013-09-30","رائد صبيح ابراهيم سرحان الحسناوي",null,"ابتدائية","شعبة النقل",null,null,null,null,null,null,"2019-04-14",null,4,null,null,null,null,null,null,null,null,null,"2017-09-20",9]
[{"$f":"SUBTOTAL(3,$E$2:E264)","v":0},null,null,"2006-06-26","رائد محمد ناصر  عباس حباري",null,"معهد تقني / مكائن ومعدات زراعية ","القسم الفني ",null,null,null,null,null,null,"2019-04-15",null,4,null,null,null,null,null,null,null,null,null,"2017-09-21",9]
[{"$f":"SUBTOTAL(3,$E$2:E265)","v":0},null,null,"1985-08-10","رحيم سبتي حسن  كزار المحمداوي",null,"اعدادية / اكاديمية الخليج البحرية / كهرباء ","شعبة السلامة والاطفاء",null,null,null,null,null,null,"2019-04-16",null,4,null,null,null,null,null,null,null,null,null,"2017-09-22",9]
[{"$f":"SUBTOTAL(3,$E$2:E266)","v":0},null,null,"2002-10-15","رحيم كريم حمادي مرزه بشاره",null,"دون الابتدائية","شعبة النقل",null,null,null,null,null,null,"2019-04-17",null,4,null,null,null,null,null,null,null,null,null,"2017-09-23",9]
[{"$f":"SUBTOTAL(3,$E$2:E267)","v":0},null,null,"2009-10-19","رزاق عاجل عيسى  متعب  الشبلاوي",null,"اعدادية صناعة / كهرباء ","شعبة المخازن والمشتريات ",null,null,null,null,null,null,"2019-04-18",null,4,null,null,null,null,null,null,null,null,null,"2017-09-24",9]
[{"$f":"SUBTOTAL(3,$E$2:E268)","v":0},null,null,"2010-10-19","رزاق محسن زغير درباش الساعدي",null,"معهد نفط / تقنية الغاز","شعبة السلامة والاطفاء",null,null,null,null,null,null,"2019-04-19",null,4,null,null,null,null,null,null,null,null,null,"2017-09-25",9]
[{"$f":"SUBTOTAL(3,$E$2:E269)","v":0},null,null,"1993-12-29","رسول ابراهيم سلطان  عباس العليوي",null,"معهد نفط / ميكانيك ","قسم التوزيع ",null,null,null,null,null,null,"2019-04-20",null,4,null,null,null,null,null,null,null,null,null,"2017-09-26",9]
[{"$f":"SUBTOTAL(3,$E$2:E270)","v":0},null,null,"2006-02-13","رسول نعمه مهدي  صالح سعدي",null,"معهد نفط / دورة سريعة / معادلة لاعدادية الصناعة ","شعبة المخازن والمشتريات ",null,null,null,null,null,null,"2019-04-21",null,4,null,null,null,null,null,null,null,null,null,"2017-09-27",9]
[{"$f":"SUBTOTAL(3,$E$2:E271)","v":0},null,null,"2013-01-09","رشيد نعمة عبدعلي عباس الحسناوي",null,"معهد تقني / ميكانيك","القسم الفني",null,null,null,null,null,null,"2019-04-22",null,4,null,null,null,null,null,null,null,null,null,"2017-09-28",9]
[{"$f":"SUBTOTAL(3,$E$2:E272)","v":0},null,null,"2011-04-06","رضا عبدالحسين جابر منديل الكناني",null,"بكالوريوس ادارة اعمال ","قسم التوزيع",null,null,null,null,null,null,"2019-04-23",null,4,null,null,null,null,null,null,null,null,null,"2017-09-29",9]
[{"$f":"SUBTOTAL(3,$E$2:E273)","v":0},null,null,"2011-10-20","رضا كشاش حسن امغامس السعيدي",null,"دون الابتدائية ","قسم التوزيع",null,null,null,null,null,null,"2019-04-24",null,4,null,null,null,null,null,null,null,null,null,"2017-09-30",9]
[{"$f":"SUBTOTAL(3,$E$2:E274)","v":0},null,null,"2009-01-13","رعد حيدر عبدالامام سلمان الحميد ",null,"بكالوريوس / ادارة واقتصاد / ادارة اعمال","قسم الحسابات ",null,null,null,null,null,null,"2019-04-25",null,4,null,null,null,null,null,null,null,null,null,"2017-10-01",10]
[{"$f":"SUBTOTAL(3,$E$2:E275)","v":0},null,null,"2011-08-29","رعد طعمة مخيف سلب العابدي",null,"ابتدائية","وحدة الفحص الهندسي",null,null,null,null,null,null,"2019-04-26",null,4,null,null,null,null,null,null,null,null,null,"2017-10-02",10]
[{"$f":"SUBTOTAL(3,$E$2:E276)","v":0},null,null,"2009-01-13","رواء فاضل عبد السادة جاسم الحكيم",null,"بكالوريوس / علوم حياة ","شعبة تقنية المعلومات ",null,null,null,null,null,null,"2019-04-27",null,4,null,null,null,null,null,null,null,null,null,"2017-10-03",10]
[{"$f":"SUBTOTAL(3,$E$2:E277)","v":0},null,null,"2013-05-13","روى خليل هادي كاظم الفتلاوي",null,"اعدادية / ادبي ","القسم الاداري",null,null,null,null,null,null,"2019-04-28",null,4,null,null,null,null,null,null,null,null,null,"2017-10-04",10]
[{"$f":"SUBTOTAL(3,$E$2:E278)","v":0},null,null,"1994-01-24","رياض عبدالزهرة محمد  رزن العبودي",null,"معهد نفط / مضخات /ميكانيك ","وحدة الارشفة الالكترونية",null,null,null,null,null,null,"2019-04-29",null,4,null,null,null,null,null,null,null,null,null,"2017-10-05",10]
[{"$f":"SUBTOTAL(3,$E$2:E279)","v":0},null,null,"1991-10-26","رياض كاظم عبدالهادي جاسم الصافندي",null,"معهد نفط  /  ميكانيك / معادلة لاعدادية الصناعة ","وحدة الكلف التخمينية",null,null,null,null,null,null,"2019-04-30",null,4,null,null,null,null,null,null,null,null,null,"2017-10-06",10]
[{"$f":"SUBTOTAL(3,$E$2:E280)","v":1},null,null,"2006-04-24","رياض كاظم عيسى عمران  بانه",null,"بكالوريوس / كيمياء","القسم الاداري ",null,null,null,null,null,null,"2019-05-01",null,5,null,null,null,null,null,null,null,null,null,"2017-10-07",10]
[{"$f":"SUBTOTAL(3,$E$2:E281)","v":2},null,null,"1991-11-30","رياض مكي صالح هادي الحسيني",null,"اعدادية / ادبي ","شعبة العلاقات العامة ",null,null,null,null,null,null,"2019-05-02",null,5,null,null,null,null,null,null,null,null,null,"2017-10-08",10]
[{"$f":"SUBTOTAL(3,$E$2:E282)","v":3},null,null,"2013-08-25","رياض موسى يعقوب يوسف السلمان",null,"اعدادية صناعة /ميكانيك","قسم التوزيع",null,null,null,null,null,null,"2019-05-03",null,5,null,null,null,null,null,null,null,null,null,"2017-10-09",10]
[{"$f":"SUBTOTAL(3,$E$2:E283)","v":4},null,null,"1999-01-26","رياض ناجي سعيد سلمان الركابي ",null,"معهد فني / ادارة / محاسبة","قسم الحسابات",null,null,null,null,null,null,"2019-05-04",null,5,null,null,null,null,null,null,null,null,null,"2017-10-10",10]
[{"$f":"SUBTOTAL(3,$E$2:E284)","v":5},null,null,"2015-04-01","ريام صلاح حسن ناصر الزبيدي",null,"بكالوريوس / هندسة كهرباء","شعبة تقنية المعلومات ",null,null,null,null,null,null,"2019-05-05",null,5,null,null,null,null,null,null,null,null,null,"2017-10-11",10]
[{"$f":"SUBTOTAL(3,$E$2:E285)","v":6},null,null,"2015-05-21","زاهد عبدالحميد احمد محمد الدجاني",null,"اعدادية صناعة / سيارات","شعبة صيانة السيارات الخفيفة والثقيلة",null,null,null,null,null,null,"2019-05-06",null,5,null,null,null,null,null,null,null,null,null,"2017-10-12",10]
[{"$f":"SUBTOTAL(3,$E$2:E286)","v":7},null,null,"1990-02-24","زكي احمد عبود حبيب المالكي",null,"اعدادية صناعة / كهرباء ","وحدة البيئة",null,null,null,null,null,null,"2019-05-07",null,5,null,null,null,null,null,null,null,null,null,"2017-10-13",10]
[{"$f":"SUBTOTAL(3,$E$2:E287)","v":8},null,null,"2010-03-14","زهراء زكي عبدعون احمد الحائري",null,"بكالوريوس / علوم كيمياء ","وحدة ادارة المكتب ",null,null,null,null,null,null,"2019-05-08",null,5,null,null,null,null,null,null,null,null,null,"2017-10-14",10]
[{"$f":"SUBTOTAL(3,$E$2:E288)","v":9},null,null,"2006-05-15","زهراء علي ناصر حسين ال نصر الله",null,"بكالوريوس / هندسة برمجيات ","قسم الحسابات ",null,null,null,null,null,null,"2019-05-09",null,5,null,null,null,null,null,null,null,null,null,"2017-10-15",10]
[{"$f":"SUBTOTAL(3,$E$2:E289)","v":10},null,null,"1980-12-27","زهور خضير سلمان محمد علي العامر  ",null,"بكالوريوس / ادارة واقتصاد / ادارة اعمال","قسم التوزيع",null,null,null,null,null,null,"2019-05-10",null,5,null,null,null,null,null,null,null,null,null,"2017-10-16",10]
[{"$f":"SUBTOTAL(3,$E$2:E290)","v":11},null,null,"2010-06-29","زهير عبدالامير كاظم احمد المعموري",null,"دون الابتدائية ","شعبة النقل",null,null,null,null,null,null,"2019-05-11",null,5,null,null,null,null,null,null,null,null,null,"2017-10-17",10]
[{"$f":"SUBTOTAL(3,$E$2:E291)","v":12},null,null,"2000-12-02","زهير عبدالزهرة هاتف عمران المسلماوي",null,"معهد نفط / الكترون ","شعبة تقنية المعلومات ",null,null,null,null,null,null,"2019-05-12",null,5,null,null,null,null,null,null,null,null,null,"2017-10-18",10]
[{"$f":"SUBTOTAL(3,$E$2:E292)","v":13},null,null,"2006-05-04","زيد محسن حسن مهدي الحكيم",null,"بكالوريوس / هندسة ميكانيك ","تنسيب الى التصاريح الامنية",null,null,null,null,null,null,"2019-05-13",null,5,null,null,null,null,null,null,null,null,null,"2017-10-19",10]
[{"$f":"SUBTOTAL(3,$E$2:E293)","v":14},null,null,"2012-03-05","زين العابدين عبدالامير محسن حسين السامن",null,"بكالوريوس / هندسة الاتصالات","شعبة تقنية المعلومات ",null,null,null,null,null,null,"2019-05-14",null,5,null,null,null,null,null,null,null,null,null,"2017-10-20",10]
[{"$f":"SUBTOTAL(3,$E$2:E294)","v":15},null,null,"2010-11-10","زينب رسول كاظم شخيرالسجراوي",null,"معهد تقني / قسم المحاسبة","قسم الحسابات",null,null,null,null,null,null,"2019-05-15",null,5,null,null,null,null,null,null,null,null,null,"2017-10-21",10]
[{"$f":"SUBTOTAL(3,$E$2:E295)","v":16},null,null,"2009-01-13","زينب صاحب مهدي صالح النويني ",null,"بكالوريوس / هندسة ميكانيك ","وحدة ادارة المكتب ",null,null,null,null,null,null,"2019-05-16",null,5,null,null,null,null,null,null,null,null,null,"2017-10-22",10]
[{"$f":"SUBTOTAL(3,$E$2:E296)","v":17},null,null,"2015-05-31","زينب عبدالرزاق عثمان داود الغانم",null,"بكالوريوس / لغة انكليزية","الشعبة القانونية",null,null,null,null,null,null,"2019-05-17",null,5,null,null,null,null,null,null,null,null,null,"2017-10-23",10]
[{"$f":"SUBTOTAL(3,$E$2:E297)","v":18},null,null,"2012-02-08","زينب عزيز جبير علي ال نصرالله",null,"بكالوريوس / لغة عربية","القسم الاداري",null,null,null,null,null,null,"2019-05-18",null,5,null,null,null,null,null,null,null,null,null,"2017-10-24",10]
[{"$f":"SUBTOTAL(3,$E$2:E298)","v":19},null,null,"2012-07-25","سارة شعلان محيسن شذر الزرجاوي ",null,"ابتدائية","شعبة تطبيق الموجودات",null,null,null,null,null,null,"2019-05-19",null,5,null,null,null,null,null,null,null,null,null,"2017-10-25",10]
[{"$f":"SUBTOTAL(3,$E$2:E299)","v":20},null,null,"2010-06-29","سالم حمود وادي حمزة البوحمزة",null,"دون الابتدائية ","شعبة النقل",null,null,null,null,null,null,"2019-05-20",null,5,null,null,null,null,null,null,null,null,null,"2017-10-26",10]
[{"$f":"SUBTOTAL(3,$E$2:E300)","v":21},null,null,"1999-01-01","سالم راضي محمد عبدالله السعدي ",null,"ابتدائية","شعبة صيانة السيارات الخفيفة والثقيلة",null,null,null,null,null,null,"2019-05-21",null,5,null,null,null,null,null,null,null,null,null,"2017-10-27",10]
[{"$f":"SUBTOTAL(3,$E$2:E301)","v":22},null,null,"2006-06-22","سالم شاني دلي عليوي العبادي ",null,"معهد تقني / مكائن زراعية ","قسم التوزيع ",null,null,null,null,null,null,"2019-05-22",null,5,null,null,null,null,null,null,null,null,null,"2017-10-28",10]
[{"$f":"SUBTOTAL(3,$E$2:E302)","v":23},null,null,"2010-12-28","سالم شهيد منعم جنانه ال محمد",null,"اعدادية / تجارة -","قسم التوزيع",null,null,null,null,null,null,"2019-05-23",null,5,null,null,null,null,null,null,null,null,null,"2017-10-29",10]
[{"$f":"SUBTOTAL(3,$E$2:E303)","v":24},null,null,"2006-06-08","سالم عزالدين خليل  محمد علي ال سيد ",null,"بكالوريوس / ادارة واقتصاد / محاسبة ","قسم الحسابات ",null,null,null,null,null,null,"2019-05-24",null,5,null,null,null,null,null,null,null,null,null,"2017-10-30",10]
[{"$f":"SUBTOTAL(3,$E$2:E304)","v":25},null,null,"1992-11-22","سالم محسن حسان هادي الشعلاوي",null,"معهد تكنولوجيا / معدات ومكائن / تبريد وتكيف","شعبة النقل ",null,null,null,null,null,null,"2019-05-25",null,5,null,null,null,null,null,null,null,null,null,"2017-10-31",10]
[{"$f":"SUBTOTAL(3,$E$2:E305)","v":26},null,null,"2007-06-10","سامر محمد عبدالامير محمد الوكيل",null,"بكالوريوس / هندسة ميكانيك ","وحدة متابعة تنفيذ المشاريع",null,null,null,null,null,null,"2019-05-26",null,5,null,null,null,null,null,null,null,null,null,"2017-11-01",11]
[{"$f":"SUBTOTAL(3,$E$2:E306)","v":27},null,null,"2007-04-16","سامر محمد علي  هادي محمد الحسناوي",null,"بكالوريوس / هندسة مواد ","وحدة الفحص الهندسي ",null,null,null,null,null,null,"2019-05-27",null,5,null,null,null,null,null,null,null,null,null,"2017-11-02",11]
[{"$f":"SUBTOTAL(3,$E$2:E307)","v":28},null,null,"1992-06-18","سامي خميس مهلهل  تويني الديراوي ",null,"معهد تكنولوجي / مكائن ومعدات ","شعبة صيانة السيارات الخفيفة والثقيلة",null,null,null,null,null,null,"2019-05-28",null,5,null,null,null,null,null,null,null,null,null,"2017-11-03",11]
[{"$f":"SUBTOTAL(3,$E$2:E308)","v":29},null,null,"2011-08-28","ستار جبار عبدالحسين عبدالرحيم الصفار",null,"ابتدائية","شعبة النقل",null,null,null,null,null,null,"2019-05-29",null,5,null,null,null,null,null,null,null,null,null,"2017-11-04",11]
[{"$f":"SUBTOTAL(3,$E$2:E309)","v":30},null,null,"2014-09-03","ستار حمد حتروش حمد الزوبعي",null,"معهد نفط / معادلة لاعدادية الصناعة ","وحدة متابعة تنفيذ المشاريع",null,null,null,null,null,null,"2019-05-30",null,5,null,null,null,null,null,null,null,null,null,"2017-11-05",11]
[{"$f":"SUBTOTAL(3,$E$2:E310)","v":31},null,null,"2008-08-12","سراج رحيم ابراهيم يونس البطاط ",null,"بكالوريوس / جيلوجي","شعبة تطبيق الموجودات ",null,null,null,null,null,null,"2019-05-31",null,5,null,null,null,null,null,null,null,null,null,"2017-11-06",11]
[{"$f":"SUBTOTAL(3,$E$2:E311)","v":31},null,null,"2010-10-18","سرمد محمدحسن كاظم جودي الزبيدي",null,"بكالوريوس / علوم حاسبات  ","قسم التوزيع",null,null,null,null,null,null,"2019-06-01",null,6,null,null,null,null,null,null,null,null,null,"2017-11-07",11]
[{"$f":"SUBTOTAL(3,$E$2:E312)","v":31},null,null,"2012-07-03","سعاد علي كاظم رماثي الرماثي ",null,"معهد تقني / بناء وانشاءات","القسم الفني",null,null,null,null,null,null,"2019-06-02",null,6,null,null,null,null,null,null,null,null,null,"2017-11-08",11]
[{"$f":"SUBTOTAL(3,$E$2:E313)","v":31},null,null,"2012-04-09","سعد جواد عباس حسن السعدي",null,"دون الابتدائية","قسم التوزيع",null,null,null,null,null,null,"2019-06-03",null,6,null,null,null,null,null,null,null,null,null,"2017-11-09",11]
[{"$f":"SUBTOTAL(3,$E$2:E314)","v":31},null,null,"2006-06-25","سعد عبد يوسف جواد الخفاجي ",null,"معهد نفط / قياس وسيطرة /كهرباء ","شعبة البحوث والسيطرة النوعية",null,null,null,null,null,null,"2019-06-04",null,6,null,null,null,null,null,null,null,null,null,"2017-11-10",11]
[{"$f":"SUBTOTAL(3,$E$2:E315)","v":31},null,null,"2008-03-27","سعد عبدالحسين هادي علي الفتلاوي",null,"إعدادية صناعة / سيارات","قسم التوزيع ",null,null,null,null,null,null,"2019-06-05",null,6,null,null,null,null,null,null,null,null,null,"2017-11-11",11]
[{"$f":"SUBTOTAL(3,$E$2:E316)","v":31},null,null,"00:00:00","سعد مطر ابوسودة حسن الطفيلي",null,"دون الاختصاص","قسم التوزيع",null,null,null,null,null,null,"2019-06-06",null,6,null,null,null,null,null,null,null,null,null,"2017-11-12",11]
[{"$f":"SUBTOTAL(3,$E$2:E317)","v":31},null,null,"2012-02-08","سعد ناصر عبدالحسين محمد اليعقوبي",null,"دون الابتدائية ","قسم التوزيع",null,null,null,null,null,null,"2019-06-07",null,6,null,null,null,null,null,null,null,null,null,"2017-11-13",11]
[{"$f":"SUBTOTAL(3,$E$2:E318)","v":31},null,null,"2014-11-22","سلام مصطفى حسين خضر السيلاوي",null,"ابتدائية","القسم الفني",null,null,null,null,null,null,"2019-06-08",null,6,null,null,null,null,null,null,null,null,null,"2017-11-14",11]
[{"$f":"SUBTOTAL(3,$E$2:E319)","v":31},null,null,"1986-02-02","سلوى عباس عذاب  سعيد الحريشاوي ",null,"اعدادية / تجارة ","القسم الاداري ",null,null,null,null,null,null,"2019-06-09",null,6,null,null,null,null,null,null,null,null,null,"2017-11-15",11]
[{"$f":"SUBTOTAL(3,$E$2:E320)","v":31},null,null,"2010-11-30","سليم داهوك محمد جاسم ال محمد حسين",null,"معهد تقني / ميكانيك / انتاج","شعبة الرقابة والتدقيق الداخلي ",null,null,null,null,null,null,"2019-06-10",null,6,null,null,null,null,null,null,null,null,null,"2017-11-16",11]
[{"$f":"SUBTOTAL(3,$E$2:E321)","v":31},null,null,"1983-09-22","سمير جبر مركب حرز مسعودي",null,"معهد نفط / ادارة مواد","قسم التوزيع",null,null,null,null,null,null,"2019-06-11",null,6,null,null,null,null,null,null,null,null,null,"2017-11-17",11]
[{"$f":"SUBTOTAL(3,$E$2:E322)","v":31},null,null,"1978-01-14","سمير عبدالامير خليل عزوز الشمري ",null,"متوسطة ","قسم التوزيع ",null,null,null,null,null,null,"2019-06-12",null,{"$f":"VLOOKUP(O322,AA321:AB1050,2,FALSE)","v":6},null,null,null,null,null,null,null,null,null,"2017-11-18",11]
[{"$f":"SUBTOTAL(3,$E$2:E323)","v":31},null,null,"2009-10-06","سمير عبدالعالي محسن علي الموسوي",null,"ابتدائية","شعبة النقل ",null,null,null,null,null,null,"2019-06-13",null,6,null,null,null,null,null,null,null,null,null,"2017-11-19",11]
[{"$f":"SUBTOTAL(3,$E$2:E324)","v":31},null,null,"2016-06-16","سمير محمدعلي عباس عبدالحسين الجواد ",null,"دبلوم /رسم هندسي ","قسم التوزيع ",null,null,null,null,null,null,"2019-06-14",null,6,null,null,null,null,null,null,null,null,null,"2017-11-20",11]
[{"$f":"SUBTOTAL(3,$E$2:E325)","v":31},null,null,"2012-02-09","سنان سعد عبدالله عباس الجبوري",null,"اعدادية صناعة / كهرباء ","شعبة المولدات",null,null,null,null,null,null,"2019-06-15",null,6,null,null,null,null,null,null,null,null,null,"2017-11-21",11]
[{"$f":"SUBTOTAL(3,$E$2:E326)","v":31},null,null,"2015-12-08","سنان محمد راضي محمد الشحماني ",null,"اعدادية صناعة / كهرباء ","القسم الفني ",null,null,null,null,null,null,"2019-06-16",null,6,null,null,null,null,null,null,null,null,null,"2017-11-22",11]
[{"$f":"SUBTOTAL(3,$E$2:E327)","v":31},null,null,"2002-04-20","سندس عبدالله شمس الله عبدالله الموسوي ",null,"بكالوريوس / علوم تجارية","شعبة الرقابة والتدقيق الداخلي ",null,null,null,null,null,null,"2019-06-17",null,6,null,null,null,null,null,null,null,null,null,"2017-11-23",11]
[{"$f":"SUBTOTAL(3,$E$2:E328)","v":31},null,null,"1999-12-26","سهاد كاظم كريم علوان المعموري",null,"بكالوريوس / هندسة كهرباء ","وحدة متابعة تنفيذ المشاريع",null,null,null,null,null,null,"2019-06-18",null,6,null,null,null,null,null,null,null,null,null,"2017-11-24",11]
[{"$f":"SUBTOTAL(3,$E$2:E329)","v":31},null,null,"2009-04-28","سيف الدين انور حسين ابوالحب الكعبي ",null,"بكالوريوس / هندسة كهرباء","قسم التوزيع",null,null,null,null,null,null,"2019-06-19",null,6,null,null,null,null,null,null,null,null,null,"2017-11-25",11]
[{"$f":"SUBTOTAL(3,$E$2:E330)","v":31},null,null,"2015-07-08","سيف حيدر فاهم صابر العبيدي",null,"معهد / تشغيل وسيطرة / تصفية","قسم التوزيع",null,null,null,null,null,null,"2019-06-20",null,6,null,null,null,null,null,null,null,null,null,"2017-11-26",11]
[{"$f":"SUBTOTAL(3,$E$2:E331)","v":31},null,null,"2006-01-04","شاكر عبدالرزاق غلام علي الشريفي",null,"بكالوريوس / علوم فيزياء ","القسم الاداري",null,null,null,null,null,null,"2019-06-21",null,6,null,null,null,null,null,null,null,null,null,"2017-11-27",11]
[{"$f":"SUBTOTAL(3,$E$2:E332)","v":31},null,null,"1979-01-16","شاكر علي اكبر عبدالكريم  محمد علي المفتي",null,"متوسطة ","شعبة المخازن والمشتريات",null,null,null,null,null,null,"2019-06-22",null,6,null,null,null,null,null,null,null,null,null,"2017-11-28",11]
[{"$f":"SUBTOTAL(3,$E$2:E333)","v":31},null,null,"1993-01-02","شامل ياسين كاظم حسين الشرقي ",null,"دون الابتدائية ","شعبة السلامة والاطفاء",null,null,null,null,null,null,"2019-06-23",null,6,null,null,null,null,null,null,null,null,null,"2017-11-29",11]
[{"$f":"SUBTOTAL(3,$E$2:E334)","v":31},null,null,"1999-11-10","شذى غياض محمد داخل الشموسي",null,"متوسطة ","قسم التوزيع ",null,null,null,null,null,null,"2019-06-24",null,6,null,null,null,null,null,null,null,null,null,"2017-11-30",11]
[{"$f":"SUBTOTAL(3,$E$2:E335)","v":31},null,null,"1993-02-17","شروق حمزة عبيد هاشم الموسوي ",null,"معهد الاتصالات السلكية واللاسلكية ","القسم الاداري ",null,null,null,null,null,null,"2019-06-25",null,6,null,null,null,null,null,null,null,null,null,"2017-12-01",12]
[{"$f":"SUBTOTAL(3,$E$2:E336)","v":31},null,null,"2013-11-18","شيرين مالك حسين علي حسين الدعبول",null,"بكالوريوس / اداب / صحافة","قسم الحسابات",null,null,null,null,null,null,"2019-06-26",null,6,null,null,null,null,null,null,null,null,null,"2017-12-02",12]
[{"$f":"SUBTOTAL(3,$E$2:E337)","v":31},null,null,"2008-10-26","شيماء حميد موسى ابو سودة  الفتلاوي ",null,"بكالوريوس / هندسة اللكترون واتصالات ","شعبة تطبيق الموجودات ",null,null,null,null,null,null,"2019-06-27",null,6,null,null,null,null,null,null,null,null,null,"2017-12-03",12]
[{"$f":"SUBTOTAL(3,$E$2:E338)","v":31},null,null,"1999-01-03","شيماء خليل عزيز عبد عبدالله الفتلاوي",null,"معهد معلمين / اعداد المعلمات ","شعبة الرقابة والتدقيق الداخلي ",null,null,null,null,null,null,"2019-06-28",null,6,null,null,null,null,null,null,null,null,null,"2017-12-04",12]
[{"$f":"SUBTOTAL(3,$E$2:E339)","v":31},null,null,"2013-01-21","صادق جعفر عبد جودة ال شوجة",null,"ابتدائية","القسم الفني",null,null,null,null,null,null,"2019-06-29",null,6,null,null,null,null,null,null,null,null,null,"2017-12-05",12]
[{"$f":"SUBTOTAL(3,$E$2:E340)","v":31},null,null,"2011-07-27","صادق صالح عودة صافي الياسري",null,"معهد تقني / ميكانيك","قسم التوزيع",null,null,null,null,null,null,"2019-06-30",null,6,null,null,null,null,null,null,null,null,null,"2017-12-06",12]
[{"$f":"SUBTOTAL(3,$E$2:E341)","v":31},null,null,"1989-11-01","صادق صدام دشر زيرج الدراجي",null,"بكالوريوس / قسم الفيزياء","شعبة المولدات",null,null,null,null,null,null,"2019-07-01",null,7,null,null,null,null,null,null,null,null,null,"2017-12-07",12]
[{"$f":"SUBTOTAL(3,$E$2:E342)","v":31},null,null,"2015-05-20","صادق مطشر سوادي جبر البديري",null,"اعدادية صناعة / سيارات","شعبة صيانة السيارات الخفيفة والثقيلة",null,null,null,null,null,null,"2019-07-02",null,7,null,null,null,null,null,null,null,null,null,"2017-12-08",12]
[{"$f":"SUBTOTAL(3,$E$2:E343)","v":31},null,null,"2012-03-20","صالح جبار دبعون اعور الغزي",null,"دون الابتدائية","قسم التوزيع",null,null,null,null,null,null,"2019-07-03",null,7,null,null,null,null,null,null,null,null,null,"2017-12-09",12]
[{"$f":"SUBTOTAL(3,$E$2:E344)","v":31},null,null,"2005-12-06","صالح مهدي سلمان  جاسم نصراوي ",null,"معهد تقني / كهرباء ","القسم الفني ",null,null,null,null,null,null,"2019-07-04",null,7,null,null,null,null,null,null,null,null,null,"2017-12-10",12]
[{"$f":"SUBTOTAL(3,$E$2:E345)","v":31},null,null,"2011-07-25","صبا جعفر محمدرضا محمد بحرالعلوم",null,"بكالوريوس / هندسة مدنية ","شعبة تطبيق الموجودات",null,null,null,null,null,null,"2019-07-05",null,7,null,null,null,null,null,null,null,null,null,"2017-12-11",12]
[{"$f":"SUBTOTAL(3,$E$2:E346)","v":31},null,null,"2015-08-13","صباح بارد حمزة عباس العيداني",null,"ابتدائية","شعبة صيانة السيارات الخفيفة والثقيلة",null,null,null,null,null,null,"2019-07-06",null,7,null,null,null,null,null,null,null,null,null,"2017-12-12",12]
[{"$f":"SUBTOTAL(3,$E$2:E347)","v":31},null,null,"2017-09-28","صباح محمد ابراهيم شلواح ال شلواح",null,"دون الاختصاص","القسم الاداري",null,null,null,null,null,null,"2019-07-07",null,7,null,null,null,null,null,null,null,null,null,"2017-12-13",12]
[{"$f":"SUBTOTAL(3,$E$2:E348)","v":31},null,null,"2010-11-10","صباح مهدي جاسم هاشم الحسيني",null,"اعدادية صناعة / سيارات ","قسم التوزيع",null,null,null,null,null,null,"2019-07-08",null,7,null,null,null,null,null,null,null,null,null,"2017-12-14",12]
[{"$f":"SUBTOTAL(3,$E$2:E349)","v":31},null,null,"2013-10-15","صباح مهدي عبدالكريم صالح الشماع",null,"ابتدائية","شعبة النقل",null,null,null,null,null,null,"2019-07-09",null,7,null,null,null,null,null,null,null,null,null,"2017-12-15",12]
[{"$f":"SUBTOTAL(3,$E$2:E350)","v":31},null,null,"2010-10-05","صباح نوري جواد محمدرضا الزجاجي",null,"بكالوريوس / كيمياء","شعبة البحوث والسيطرة النوعية",null,null,null,null,null,null,"2019-07-10",null,7,null,null,null,null,null,null,null,null,null,"2017-12-16",12]
[{"$f":"SUBTOTAL(3,$E$2:E351)","v":31},null,null,"2006-06-24","صبار عبدالحسين سعدون علي الحسناوي",null,"معهد معلمين / اعداد المعلمين/ لغة عربية ","قسم التوزيع",null,null,null,null,null,null,"2019-07-11",null,7,null,null,null,null,null,null,null,null,null,"2017-12-17",12]
[{"$f":"SUBTOTAL(3,$E$2:E352)","v":31},null,null,"2013-05-20","صدام حسين شخيط عواد الشبلاوي",null,"ابتدائية","قسم التوزيع",null,null,null,null,null,null,"2019-07-12",null,7,null,null,null,null,null,null,null,null,null,"2017-12-18",12]
[{"$f":"SUBTOTAL(3,$E$2:E353)","v":31},null,null,"2011-08-10","صفا عبدالحسن حسين عبدالحسين الدجيلي",null,"ابتدائية","القسم الفني",null,null,null,null,null,null,"2019-07-13",null,7,null,null,null,null,null,null,null,null,null,"2017-12-19",12]
[{"$f":"SUBTOTAL(3,$E$2:E354)","v":31},null,null,"1994-08-01","صفاء عيسى كاظم  عداي الساعدي ",null,"بكالوريوس / ادارة واقتصاد / اقتصاد","القسم الاداري",null,null,null,null,null,null,"2019-07-14",null,7,null,null,null,null,null,null,null,null,null,"2017-12-20",12]
[{"$f":"SUBTOTAL(3,$E$2:E355)","v":31},null,null,"2012-01-23","صلاح دوهان سوادي دحام العابدي",null,"ابتدائية","قسم التوزيع",null,null,null,null,null,null,"2019-07-15",null,7,null,null,null,null,null,null,null,null,null,"2017-12-21",12]
[{"$f":"SUBTOTAL(3,$E$2:E356)","v":31},null,null,"1980-05-01","صلاح طالب عباس دلي المساعدي ",null,"ابتدائية ","شعبة البحوث والسيطرة النوعية",null,null,null,null,null,null,"2019-07-16",null,7,null,null,null,null,null,null,null,null,null,"2017-12-22",12]
[{"$f":"SUBTOTAL(3,$E$2:E357)","v":31},null,null,"2006-06-12","صلاح فاضل حسين خلف الحسيني ",null,"معهد معلمين / اعداد المعلمين ","قسم التوزيع ",null,null,null,null,null,null,"2019-07-17",null,7,null,null,null,null,null,null,null,null,null,"2017-12-23",12]
[{"$f":"SUBTOTAL(3,$E$2:E358)","v":31},null,null,"2011-07-28","صلاح مصطفى محمدحسين صالح ال عمران",null,"بكالوريوس / هندسة كهرباء","وحدة القياس والمعايرة",null,null,null,null,null,null,"2019-07-18",null,7,null,null,null,null,null,null,null,null,null,"2017-12-24",12]
[{"$f":"SUBTOTAL(3,$E$2:E359)","v":31},null,null,"2015-03-23","ضرغام رحمن وهاب ناصر الدراوشة",null,"معهد / تشغيل وسيطرة","قسم التوزيع",null,null,null,null,null,null,"2019-07-19",null,7,null,null,null,null,null,null,null,null,null,"2017-12-25",12]
[{"$f":"SUBTOTAL(3,$E$2:E360)","v":31},null,null,"2008-04-13","ضرغام عبدعلي حميد سلمان ال جميل",null,"بكالوريوس / هندسة مدني ","القسم الفني",null,null,null,null,null,null,"2019-07-20",null,7,null,null,null,null,null,null,null,null,null,"2017-12-26",12]
[{"$f":"SUBTOTAL(3,$E$2:E361)","v":31},null,null,"2009-10-06","ضياء حسين جعفر كنين الشعيبي",null,"ابتدائية","القسم الفني",null,null,null,null,null,null,"2019-07-21",null,7,null,null,null,null,null,null,null,null,null,"2017-12-27",12]
[{"$f":"SUBTOTAL(3,$E$2:E362)","v":31},null,null,"2016-08-03","ضياء شلتاغ شنان لفته الزيادي",null,"بكالوريوس / هندسة كهرباء","القسم الفني",null,null,null,null,null,null,"2019-07-22",null,7,null,null,null,null,null,null,null,null,null,"2017-12-28",12]
[{"$f":"SUBTOTAL(3,$E$2:E363)","v":31},null,null,"2005-04-05","ضياء عبدالحسين عبادي نعمة العبودي",null,"مهعد نفط / تشغيل وسيطرة","شعبة التنسيق والمتابعة",null,null,null,null,null,null,"2019-07-23",null,7,null,null,null,null,null,null,null,null,null,"2017-12-29",12]
[{"$f":"SUBTOTAL(3,$E$2:E364)","v":31},null,null,"1990-01-27","ضياء موسى عباس  حمادي الربيعي ",null,"ابتدائية ","شعبة النقل ",null,null,null,null,null,null,"2019-07-24",null,7,null,null,null,null,null,null,null,null,null,"2017-12-30",12]
[{"$f":"SUBTOTAL(3,$E$2:E365)","v":31},null,null,"2012-01-26","طارق راضي عاشور فرحان الكريطي",null,"ابتدائية","قسم التوزيع",null,null,null,null,null,null,"2019-07-25",null,7,null,null,null,null,null,null,null,null,null,"2017-12-31",12]
[{"$f":"SUBTOTAL(3,$E$2:E366)","v":31},null,null,"2005-12-25","طارق عبادي محمد حسن الحلفي",null,"بكالوريوس / قانون ","قسم التوزيع",null,null,null,null,null,null,"2019-07-26",null,7,null,null,null,null,null,null,null,null,null,"2018-01-01",1]
[{"$f":"SUBTOTAL(3,$E$2:E367)","v":31},null,null,"2006-06-04","طالب فارس عبدالعزبز  حسين الحسيني",null,"معهد نفط / انتاج نفط ","قسم التوزيع ",null,null,null,null,null,null,"2019-07-27",null,7,null,null,null,null,null,null,null,null,null,"2018-01-02",1]
[{"$f":"SUBTOTAL(3,$E$2:E368)","v":31},null,null,"2012-02-22","طعمة حسين جاسم سليمان الحساوي",null,"ابتدائية","قسم التوزيع",null,null,null,null,null,null,"2019-07-28",null,7,null,null,null,null,null,null,null,null,null,"2018-01-03",1]
[{"$f":"SUBTOTAL(3,$E$2:E369)","v":31},null,null,"2010-03-10","طه خضير عباس فهد الخميس",null,"بكالوريوس / ادارة واقتصاد / اقتصاد","شعبة الرقابة والتدقيق الداخلي ",null,null,null,null,null,null,"2019-07-29",null,7,null,null,null,null,null,null,null,null,null,"2018-01-04",1]
[{"$f":"SUBTOTAL(3,$E$2:E370)","v":31},null,null,"2010-06-30","عادل جبار مطير عكلة الحريشاوي",null,"دون الابتدائية ","شعبة النقل",null,null,null,null,null,null,"2019-07-30",null,7,null,null,null,null,null,null,null,null,null,"2018-01-05",1]
[{"$f":"SUBTOTAL(3,$E$2:E371)","v":31},null,null,"2002-03-23","عادل جميل عجيل جابر ال علي",null,"متوسطة ","القسم الفني",null,null,null,null,null,null,"2019-07-31",null,7,null,null,null,null,null,null,null,null,null,"2018-01-06",1]
[{"$f":"SUBTOTAL(3,$E$2:E372)","v":31},null,null,"1977-12-10","عادل حسين علي غركان العجيلي  ",null,"ابتدائية ","قسم التوزيع ",null,null,null,null,null,null,"2019-08-01",null,8,null,null,null,null,null,null,null,null,null,"2018-01-07",1]
[{"$f":"SUBTOTAL(3,$E$2:E373)","v":31},null,null,"2008-03-27","عادل عباس عوده  ناصر الشمري",null,"ابتدائية ","القسم الفني",null,null,null,null,null,null,"2019-08-02",null,8,null,null,null,null,null,null,null,null,null,"2018-01-08",1]
[{"$f":"SUBTOTAL(3,$E$2:E374)","v":31},null,null,"2011-08-29","عادل عبدالعالي عبدالحسين حجيل الجبوري",null,"ابتدائية","القسم الفني",null,null,null,null,null,null,"2019-08-03",null,8,null,null,null,null,null,null,null,null,null,"2018-01-09",1]
[{"$f":"SUBTOTAL(3,$E$2:E375)","v":31},null,null,"2009-09-15","عادل ناجي عطية حمود ال عبدالله",null,"معهد تقني / قسم المساحة","وحدة القياس والمعايرة",null,null,null,null,null,null,"2019-08-04",null,8,null,null,null,null,null,null,null,null,null,"2018-01-10",1]
[{"$f":"SUBTOTAL(3,$E$2:E376)","v":31},null,null,"2010-05-10","عاصي عودة وادي محمد ال شيل",null,"اعدادية / صناعة / ميكانيك عام","تنسيب الى التصاريح الامنية",null,null,null,null,null,null,"2019-08-05",null,8,null,null,null,null,null,null,null,null,null,"2018-01-11",1]
[{"$f":"SUBTOTAL(3,$E$2:E377)","v":31},null,null,"2010-10-31","عامر عبد جبر حمادي المشهدي",null,"اعدادية صناعة / كهرباء ","قسم الحسابات",null,null,null,null,null,null,"2019-08-06",null,8,null,null,null,null,null,null,null,null,null,"2018-01-12",1]
[{"$f":"SUBTOTAL(3,$E$2:E378)","v":31},null,null,"2015-06-08","عامر عبدالحسين حسن خضرالمولى ",null,"بكالوريوس / اتصالات","شعبة العلاقات العامة والاعلام",null,null,null,null,null,null,"2019-08-07",null,8,null,null,null,null,null,null,null,null,null,"2018-01-13",1]
[{"$f":"SUBTOTAL(3,$E$2:E379)","v":31},null,null,"1977-08-09","عباس احمد عبدالرضا عريمط الكرافي",null,"اعدادية صناعة / كهرباء ","شعبة المخازن والمشتريات",null,null,null,null,null,null,"2019-08-08",null,8,null,null,null,null,null,null,null,null,null,"2018-01-14",1]
[{"$f":"SUBTOTAL(3,$E$2:E380)","v":31},null,null,"2013-05-07","عباس جاسم حسن رضا النجار",null,"معهد تقني / كهرباء","قسم التوزيع",null,null,null,null,null,null,"2019-08-09",null,8,null,null,null,null,null,null,null,null,null,"2018-01-15",1]
[{"$f":"SUBTOTAL(3,$E$2:E381)","v":31},null,null,"2011-08-28","عباس جبير دباي معلة المسعودي",null,"ابتدائية","قسم التوزيع",null,null,null,null,null,null,"2019-08-10",null,8,null,null,null,null,null,null,null,null,null,"2018-01-16",1]
[{"$f":"SUBTOTAL(3,$E$2:E382)","v":31},null,null,"2011-08-29","عباس جواد جياد زغير الزجراوي",null,"ابتدائية","شعبة صيانة السيارات الخفيفة والثقيلة",null,null,null,null,null,null,"2019-08-11",null,8,null,null,null,null,null,null,null,null,null,"2018-01-17",1]
[{"$f":"SUBTOTAL(3,$E$2:E383)","v":31},null,null,"2015-03-23","عباس خضير عباس صباح الكريطي",null,"معهد / كهرباء / معدات ثقيلة","قسم التوزيع",null,null,null,null,null,null,"2019-08-12",null,8,null,null,null,null,null,null,null,null,null,"2018-01-18",1]
[{"$f":"SUBTOTAL(3,$E$2:E384)","v":31},null,null,"2009-06-16","عباس عبدالامير ابراهيم رسول حموزي ",null,"بكالوريوس / هندسة كيمياوية ","شعبة السلامة والاطفاء",null,null,null,null,null,null,"2019-08-13",null,8,null,null,null,null,null,null,null,null,null,"2018-01-19",1]
[{"$f":"SUBTOTAL(3,$E$2:E385)","v":31},null,null,"2009-10-15","عباس عبدالحسين اركان شمران ال شمران",null,"معهد نفط / انتاج نفط / معادلة لاعدادية الصناعة","شعبة النقل ",null,null,null,null,null,null,"2019-08-14",null,8,null,null,null,null,null,null,null,null,null,"2018-01-20",1]
[{"$f":"SUBTOTAL(3,$E$2:E386)","v":31},null,null,"2013-01-22","عباس عبدالكريم خلف ناصر الزيادي",null,"دون الابتدائية","قسم التوزيع",null,null,null,null,null,null,"2019-08-15",null,{"$f":"VLOOKUP(O386,AA385:AB1114,2,FALSE)","v":8},null,null,null,null,null,null,null,null,null,"2018-01-21",1]
[{"$f":"SUBTOTAL(3,$E$2:E387)","v":31},null,null,"2001-09-16","عباس عجمي فارس  خشم العلي",null,"اعدادية / زراعة ","القسم الفني ",null,null,null,null,null,null,"2019-08-16",null,8,null,null,null,null,null,null,null,null,null,"2018-01-22",1]
[{"$f":"SUBTOTAL(3,$E$2:E388)","v":31},null,null,"2011-03-30","عباس علوان عامر ناصر الموسوي",null,"ابتدائية","وحدة الارشفة الالكترونية",null,null,null,null,null,null,"2019-08-17",null,8,null,null,null,null,null,null,null,null,null,"2018-01-23",1]
[{"$f":"SUBTOTAL(3,$E$2:E389)","v":31},null,null,"2011-04-08","عباس علوان عباس فهد الشفاثي",null,"ابتدائية","قسم التوزيع",null,null,null,null,null,null,"2019-08-18",null,8,null,null,null,null,null,null,null,null,null,"2018-01-24",1]
[{"$f":"SUBTOTAL(3,$E$2:E390)","v":31},null,null,"2012-12-12","عباس علي ثجيل محمد العامري",null,"اعدادية صناعة / كهرباء ","قسم الحسابات",null,null,null,null,null,null,"2019-08-19",null,8,null,null,null,null,null,null,null,null,null,"2018-01-25",1]
[{"$f":"SUBTOTAL(3,$E$2:E391)","v":31},null,null,"2016-12-29","عباس علي جلوب عبدالكريم ال عباس ",null,"اعدادية / علمي","شعبة السلامة والاطفاء ",null,null,null,null,null,null,"2019-08-20",null,8,null,null,null,null,null,null,null,null,null,"2018-01-26",1]
[{"$f":"SUBTOTAL(3,$E$2:E392)","v":31},null,null,"1994-03-05","عباس علي حسين شمخي الشمخي ",null,"ابتدائية ","شعبة السلامة والاطفاء",null,null,null,null,null,null,"2019-08-21",null,8,null,null,null,null,null,null,null,null,null,"2018-01-27",1]
[{"$f":"SUBTOTAL(3,$E$2:E393)","v":31},null,null,"2006-06-27","عباس علي محسن حسين الموسوي",null,"بكالوريوس / هندسة نفط ","شعبة تطبيق الموجودات ",null,null,null,null,null,null,"2019-08-22",null,8,null,null,null,null,null,null,null,null,null,"2018-01-28",1]
[{"$f":"SUBTOTAL(3,$E$2:E394)","v":31},null,null,"1994-01-10","عباس غالب عباس حسن الهاشمي",null,"معهد نفط / كهرباء عام ","قسم التوزيع",null,null,null,null,null,null,"2019-08-23",null,8,null,null,null,null,null,null,null,null,null,"2018-01-29",1]
[{"$f":"SUBTOTAL(3,$E$2:E395)","v":31},null,null,"2012-01-26","عباس فاضل صالح حسن الكرعاوي",null,"متوسطة ","قسم التوزيع",null,null,null,null,null,null,"2019-08-24",null,8,null,null,null,null,null,null,null,null,null,"2018-01-30",1]
[{"$f":"SUBTOTAL(3,$E$2:E396)","v":31},null,null,"2011-07-28","عباس قحطان عباس حسين ال عواد",null,"بكالوريوس / علوم كيمياء ","شعبة البحوث والسيطرة النوعية",null,null,null,null,null,null,"2019-08-25",null,8,null,null,null,null,null,null,null,null,null,"2018-01-31",1]
[{"$f":"SUBTOTAL(3,$E$2:E397)","v":31},null,null,"2004-03-14","عباس كاظم محمد حسن النجم ",null,"اعدادية / ادبي ","شعبة المخازن والمشتريات ",null,null,null,null,null,null,"2019-08-26",null,8,null,null,null,null,null,null,null,null,null,"2018-02-01",2]
[{"$f":"SUBTOTAL(3,$E$2:E398)","v":31},null,null,"2012-01-18","عباس كاظم هاشم مصباح الدهموشي",null,"متوسطة ","شعبة صيانة السيارات الخفيفة والثقيلة",null,null,null,null,null,null,"2019-08-27",null,8,null,null,null,null,null,null,null,null,null,"2018-02-02",2]
[{"$f":"SUBTOTAL(3,$E$2:E399)","v":31},null,null,"2002-12-14","عباس نوري حسين موسى البياتي",null,"معهد / قياس وسيطرة","القسم الفني",null,null,null,null,null,null,"2019-08-28",null,8,null,null,null,null,null,null,null,null,null,"2018-02-03",2]
[{"$f":"SUBTOTAL(3,$E$2:E400)","v":31},null,null,"1993-12-21","عبد الله طاهر",null,"معهد نفط / تحليلات كيمياوية / تصفية ","اجازة اربع سنوات",null,null,null,null,null,null,"2019-08-29",null,8,null,null,null,null,null,null,null,null,null,"2018-02-04",2]
[{"$f":"SUBTOTAL(3,$E$2:E401)","v":31},null,null,"2010-10-24","عبدالحسين حامد حبيب حمزة المسعودي",null,"معهد نفط / ادارة مواد","شعبة المخازن والمشتريات ",null,null,null,null,null,null,"2019-08-30",null,8,null,null,null,null,null,null,null,null,null,"2018-02-05",2]
[{"$f":"SUBTOTAL(3,$E$2:E402)","v":31},null,null,"1979-11-28","عبدالحسين علوان حمد جاسم ال روضة",null,"ابتدائية ","شعبة السلامة والاطفاء",null,null,null,null,null,null,"2019-08-31",null,8,null,null,null,null,null,null,null,null,null,"2018-02-06",2]
[{"$f":"SUBTOTAL(3,$E$2:E403)","v":31},null,null,"2008-03-05","عبدالحكيم علي حكيم علي الخزرجي",null,"ماجستير  / هندسة الاتصالات والمعلوماتية ","القسم الفني",null,null,null,null,null,null,"2019-09-01",null,9,null,null,null,null,null,null,null,null,null,"2018-02-07",2]
[{"$f":"SUBTOTAL(3,$E$2:E404)","v":31},null,null,"1980-01-23","عبدالحميد حسن موسى ثعيب بني طرف",null,"ابتدائية ","قسم التوزيع ",null,null,null,null,null,null,"2019-09-02",null,9,null,null,null,null,null,null,null,null,null,"2018-02-08",2]
[{"$f":"SUBTOTAL(3,$E$2:E405)","v":31},null,null,"2013-01-09","عبدالحميد سلام حميد عبد التميمي",null,"معهد تقني / كهرباء","وحدة الاطارات",null,null,null,null,null,null,"2019-09-03",null,9,null,null,null,null,null,null,null,null,null,"2018-02-09",2]
[{"$f":"SUBTOTAL(3,$E$2:E406)","v":31},null,null,"2009-04-20","عبدالخالق عبدالسادة عبدالحسين عنبر البزوني",null,"اعدادية صناعة / ميكانيك","شعبة المخازن والمشتريات",null,null,null,null,null,null,"2019-09-04",null,9,null,null,null,null,null,null,null,null,null,"2018-02-10",2]
[{"$f":"SUBTOTAL(3,$E$2:E407)","v":31},null,null,"2006-02-02","عبدالرضا احمد عباس احمد الفرج",null,"اعدادية / اللحام الغازي والهربائي ","القسم الفني ",null,null,null,null,null,null,"2019-09-05",null,9,null,null,null,null,null,null,null,null,null,"2018-02-11",2]
[{"$f":"SUBTOTAL(3,$E$2:E408)","v":31},null,null,"2010-12-30","عبدالرضا سلمان عبدالرضا ابراهيم الخزرجي",null,"متوسطة ","شعبة السلامة والاطفاء ",null,null,null,null,null,null,"2019-09-06",null,9,null,null,null,null,null,null,null,null,null,"2018-02-12",2]
[{"$f":"SUBTOTAL(3,$E$2:E409)","v":31},null,null,"2012-04-12","عبدالزهرة راضي عودة ابراهيم ال رحيم",null,"دون الابتدائية","قسم التوزيع",null,null,null,null,null,null,"2019-09-07",null,9,null,null,null,null,null,null,null,null,null,"2018-02-13",2]
[{"$f":"SUBTOTAL(3,$E$2:E410)","v":31},null,null,"2002-07-20","عبدالكاظم عبدالرزاق عبدالحسين جودة الغرباوي",null,"معهد نفط / لحام غاز وكهرباء / معادلة لاعدادية الصناعة","وحدة القياس والمعايرة",null,null,null,null,null,null,"2019-09-08",null,9,null,null,null,null,null,null,null,null,null,"2018-02-14",2]
[{"$f":"SUBTOTAL(3,$E$2:E411)","v":31},null,null,"2000-10-11","عبدالكريم غريب عوض حديد الرويحي",null,"دون الابتدائية","قسم التوزيع",null,null,null,null,null,null,"2019-09-09",null,9,null,null,null,null,null,null,null,null,null,"2018-02-15",2]
[{"$f":"SUBTOTAL(3,$E$2:E412)","v":31},null,null,"1979-06-01","عبدالكريم فاضل خضيرغافل التميمي  ",null,"متوسطة ","قسم التوزيع",null,null,null,null,null,null,"2019-09-10",null,9,null,null,null,null,null,null,null,null,null,"2018-02-16",2]
[{"$f":"SUBTOTAL(3,$E$2:E413)","v":31},null,null,"2005-12-29","عبدالله طاهر حبيب  محمد الكنعان",null,"معهد نفط  / تصفية ","شعبة التنسيق والمتابعة",null,null,null,null,null,null,"2019-09-11",null,9,null,null,null,null,null,null,null,null,null,"2018-02-17",2]
[{"$f":"SUBTOTAL(3,$E$2:E414)","v":31},null,null,"2010-06-29","عبدالله عبدزيد مهدي جواد الاساري",null,"دون الابتدائية ","شعبة النقل",null,null,null,null,null,null,"2019-09-12",null,9,null,null,null,null,null,null,null,null,null,"2018-02-18",2]
[{"$f":"SUBTOTAL(3,$E$2:E415)","v":31},null,null,"2011-03-01","عبدالله علي مجيد سلمان ال حسون",null,"ابتدائية","القسم الاداري",null,null,null,null,null,null,"2019-09-13",null,9,null,null,null,null,null,null,null,null,null,"2018-02-19",2]
[{"$f":"SUBTOTAL(3,$E$2:E416)","v":31},null,null,"2007-12-17","عبدالله محمد خضر عباس الجباس",null,"بكالوريوس / هندسة نفط ","شعبة المولدات",null,null,null,null,null,null,"2019-09-14",null,9,null,null,null,null,null,null,null,null,null,"2018-02-20",2]
[{"$f":"SUBTOTAL(3,$E$2:E417)","v":31},null,null,"2011-07-25","عبدالمجيد حميد جابر محمد الياسري",null,"معهد تقني / قسم الكهرباء","القسم الفني",null,null,null,null,null,null,"2019-09-15",null,9,null,null,null,null,null,null,null,null,null,"2018-02-21",2]
[{"$f":"SUBTOTAL(3,$E$2:E418)","v":31},null,null,"1993-12-20","عبدالهادي عبد داود  سلوم الخيلاني",null,"معهد نفط / ادارة مواد ","قسم التوزيع ",null,null,null,null,null,null,"2019-09-16",null,9,null,null,null,null,null,null,null,null,null,"2018-02-22",2]
[{"$f":"SUBTOTAL(3,$E$2:E419)","v":31},null,null,"2006-01-29","عبدعلي محمد طلابة حسين الزيدي",null,"معهد نفط / ادارة مواد ","القسم الاداري ",null,null,null,null,null,null,"2019-09-17",null,9,null,null,null,null,null,null,null,null,null,"2018-02-23",2]
[{"$f":"SUBTOTAL(3,$E$2:E420)","v":31},null,null,"1980-10-07","عبدون عبيد احمد  علوان الفضلي",null,"متوسطة ","قسم التوزيع ",null,null,null,null,null,null,"2019-09-18",null,9,null,null,null,null,null,null,null,null,null,"2018-02-24",2]
[{"$f":"SUBTOTAL(3,$E$2:E421)","v":31},null,null,"2011-08-08","عدنان سلمان لايج مفتن الكعبي",null,"دون الاختصاص","شعبة المولدات",null,null,null,null,null,null,"2019-09-19",null,9,null,null,null,null,null,null,null,null,null,"2018-02-25",2]
[{"$f":"SUBTOTAL(3,$E$2:E422)","v":31},null,null,"1983-02-22","عدنان صباح عبداليمة جناح الاسدي",null,"معهد نفط / تشغيل","قسم التوزيع",null,null,null,null,null,null,"2019-09-20",null,9,null,null,null,null,null,null,null,null,null,"2018-02-26",2]
[{"$f":"SUBTOTAL(3,$E$2:E423)","v":31},null,null,"1974-02-16","عدنان محمدجواد مرتضى مير السيد حيدر ",null,"ابتدائية ","شعبة النقل",null,null,null,null,null,null,"2019-09-21",null,9,null,null,null,null,null,null,null,null,null,"2018-02-27",2]
[{"$f":"SUBTOTAL(3,$E$2:E424)","v":31},null,null,"2009-05-04","عدنان محي حسين محسن الربيعي ",null,"اعدادية ميكانيك","قسم التوزيع ",null,null,null,null,null,null,"2019-09-22",null,9,null,null,null,null,null,null,null,null,null,"2018-02-28",2]
[{"$f":"SUBTOTAL(3,$E$2:E425)","v":31},null,null,"2008-04-19","عدي صاحب صالح مهدي بحر ",null,"بكالوريوس / علوم بحوث عمليات","شعبة المولدات",null,null,null,null,null,null,"2019-09-23",null,9,null,null,null,null,null,null,null,null,null,"2018-03-01",3]
[{"$f":"SUBTOTAL(3,$E$2:E426)","v":31},null,null,"2005-03-23","عدي محمد نجار عباس الكريطي",null,"دون الابتدائية ","قسم التوزيع",null,null,null,null,null,null,"2019-09-24",null,9,null,null,null,null,null,null,null,null,null,"2018-03-02",3]
[{"$f":"SUBTOTAL(3,$E$2:E427)","v":31},null,null,"2005-12-11","عزيز صفي محمدعلي ثجيل العقابي",null,"متوسطة ","وحدة الارشفة الالكترونية",null,null,null,null,null,null,"2019-09-25",null,9,null,null,null,null,null,null,null,null,null,"2018-03-03",3]
[{"$f":"SUBTOTAL(3,$E$2:E428)","v":31},null,null,"2009-11-01","عزيز عبد حسين جبر البراجعي",null,"ابتدائية","شعبة النقل ",null,null,null,null,null,null,"2019-09-26",null,9,null,null,null,null,null,null,null,null,null,"2018-03-04",3]
[{"$f":"SUBTOTAL(3,$E$2:E429)","v":31},null,null,"2010-06-29","عزيز عبدالزهرة محسن سعد",null,"دون الابتدائية ","شعبة النقل",null,null,null,null,null,null,"2019-09-27",null,9,null,null,null,null,null,null,null,null,null,"2018-03-05",3]
[{"$f":"SUBTOTAL(3,$E$2:E430)","v":31},null,null,"2014-10-29","عصام رشيد حسن حسين الشماع",null,"متوسطة","القسم الفني",null,null,null,null,null,null,"2019-09-28",null,9,null,null,null,null,null,null,null,null,null,"2018-03-06",3]
[{"$f":"SUBTOTAL(3,$E$2:E431)","v":31},null,null,"2014-09-03","عصام عبدزيد جبار سلمان الفتلاوي",null,"ابتدائية","قسم التوزيع",null,null,null,null,null,null,"2019-09-29",null,9,null,null,null,null,null,null,null,null,null,"2018-03-07",3]
[{"$f":"SUBTOTAL(3,$E$2:E432)","v":31},null,null,"2013-11-26","عطية جواد كاظم غانم الجبوري",null,"ابتدائية","قسم التوزيع",null,null,null,null,null,null,"2019-09-30",null,9,null,null,null,null,null,null,null,null,null,"2018-03-08",3]
[{"$f":"SUBTOTAL(3,$E$2:E433)","v":31},null,null,"2016-10-23","عظيم كريم لهمود مراد الجعيفري ",null,"دبلوم /ميكانيك ","شعبة الرقابة والتدقيق الداخلي ",null,null,null,null,null,null,"2019-10-01",null,10,null,null,null,null,null,null,null,null,null,"2018-03-09",3]
[{"$f":"SUBTOTAL(3,$E$2:E434)","v":31},null,null,"2004-09-13","عقيل حسن بربش حسين الشمري",null,"بكالوريوس / علوم اسلامية","شعبة العلاقات العامة والاعلام",null,null,null,null,null,null,"2019-10-02",null,10,null,null,null,null,null,null,null,null,null,"2018-03-10",3]
[{"$f":"SUBTOTAL(3,$E$2:E435)","v":31},null,null,"2009-04-23","عقيل خضير عباس حمد المباري",null,"اعدادية / صناعة ","قسم التوزيع",null,null,null,null,null,null,"2019-10-03",null,10,null,null,null,null,null,null,null,null,null,"2018-03-11",3]
[{"$f":"SUBTOTAL(3,$E$2:E436)","v":31},null,null,"2010-11-28","عقيل رضوي عبد فرج الجبوري",null,"دون الابتدائية ","شعبة النقل",null,null,null,null,null,null,"2019-10-04",null,10,null,null,null,null,null,null,null,null,null,"2018-03-12",3]
[{"$f":"SUBTOTAL(3,$E$2:E437)","v":31},null,null,"2013-12-26","عقيل طالب كاظم موسى الصالحي",null,"بكالوريوس / هندسة كيمياوية ","وحدة القياس والمعايرة",null,null,null,null,null,null,"2019-10-05",null,10,null,null,null,null,null,null,null,null,null,"2018-03-13",3]
[{"$f":"SUBTOTAL(3,$E$2:E438)","v":31},null,null,"2006-06-20","عقيل عبد حسين غيلان الطائي",null,"معهد ادارة / محاسبة","قسم الحسابات",null,null,null,null,null,null,"2019-10-06",null,10,null,null,null,null,null,null,null,null,null,"2018-03-14",3]
[{"$f":"SUBTOTAL(3,$E$2:E439)","v":31},null,null,"2012-02-19","علاء احمد هاشم محسن الخوارة",null,"ابتدائية","قسم التوزيع",null,null,null,null,null,null,"2019-10-07",null,10,null,null,null,null,null,null,null,null,null,"2018-03-15",3]
[{"$f":"SUBTOTAL(3,$E$2:E440)","v":31},null,null,"2015-03-23","علاء حسين عبد شلال الدعمي",null,"معهد / قياس وسيطرة","قسم التوزيع",null,null,null,null,null,null,"2019-10-08",null,10,null,null,null,null,null,null,null,null,null,"2018-03-16",3]
[{"$f":"SUBTOTAL(3,$E$2:E441)","v":31},null,null,"1994-12-26","علاء حسين علي عبدالسادة العابدي",null,"معهد نفط / كهرباء / قياس وسيطرة ","وحدة الصحة المهنية",null,null,null,null,null,null,"2019-10-09",null,10,null,null,null,null,null,null,null,null,null,"2018-03-17",3]
[{"$f":"SUBTOTAL(3,$E$2:E442)","v":31},null,null,"2015-05-20","علاء حسين كاظم منتوب الحمداني",null,"اعدادية صناعة / سيارات","شعبة صيانة السيارات الخفيفة والثقيلة",null,null,null,null,null,null,"2019-10-10",null,10,null,null,null,null,null,null,null,null,null,"2018-03-18",3]
[{"$f":"SUBTOTAL(3,$E$2:E443)","v":31},null,null,"1987-01-05","علاء سعيد محمد خلف خلف  ",null,"بكالوريوس / هندسة ميكانيك ","شعبة تقنية المعلومات ",null,null,null,null,null,null,"2019-10-11",null,10,null,null,null,null,null,null,null,null,null,"2018-03-19",3]
[{"$f":"SUBTOTAL(3,$E$2:E444)","v":31},null,null,"2005-12-21","علاء سليم طه ياسين الياسين",null,"بكالوريوس / هندسة ميكانيك ","قسم التوزيع",null,null,null,null,null,null,"2019-10-12",null,10,null,null,null,null,null,null,null,null,null,"2018-03-20",3]
[{"$f":"SUBTOTAL(3,$E$2:E445)","v":31},null,null,"2015-05-27","علاء سهيل نجم عبود الحميد",null,"ابتدائية","شعبة صيانة السيارات الخفيفة والثقيلة",null,null,null,null,null,null,"2019-10-13",null,10,null,null,null,null,null,null,null,null,null,"2018-03-21",3]
[{"$f":"SUBTOTAL(3,$E$2:E446)","v":31},null,null,"2010-07-05","علاء عبدالسادة عبدالكاظم محمد البحراني",null,"بكالوريوس / علوم كيمياء ","شعبة البحوث والسيطرة النوعية",null,null,null,null,null,null,"2019-10-14",null,10,null,null,null,null,null,null,null,null,null,"2018-03-22",3]
[{"$f":"SUBTOTAL(3,$E$2:E447)","v":31},null,null,"2006-01-16","علاء عبود حسون مهدي الشمري",null,"بكالوريوس / سيطرة ونظم ( حاسبات )","تنسيب الى التصاريح الامنية",null,null,null,null,null,null,"2019-10-15",null,10,null,null,null,null,null,null,null,null,null,"2018-03-23",3]
[{"$f":"SUBTOTAL(3,$E$2:E448)","v":31},null,null,"1979-07-30","علاء عزيز رؤوف  خليل المعملجي ",null,"معهد نفط / حفر أبار ","قسم الحسابات ",null,null,null,null,null,null,"2019-10-16",null,10,null,null,null,null,null,null,null,null,null,"2018-03-24",3]
[{"$f":"SUBTOTAL(3,$E$2:E449)","v":31},null,null,"2012-12-29","علاء كاظم عبيد عبدعون ال جارالله",null,"بكالوريوس / علوم الحياة /  بايلوجي","شعبة السلامة والاطفاء",null,null,null,null,null,null,"2019-10-17",null,10,null,null,null,null,null,null,null,null,null,"2018-03-25",3]
[{"$f":"SUBTOTAL(3,$E$2:E450)","v":31},null,null,"2012-04-12","علاء كامل عذاب بدر العكيل",null,"ابتدائية","القسم الفني",null,null,null,null,null,null,"2019-10-18",null,{"$f":"VLOOKUP(O450,AA449:AB1178,2,FALSE)","v":10},null,null,null,null,null,null,null,null,null,"2018-03-26",3]
[{"$f":"SUBTOTAL(3,$E$2:E451)","v":31},null,null,"2013-05-21","علاء يحيى علي حميد تميمي",null,"متوسطة","قسم التوزيع",null,null,null,null,null,null,"2019-10-19",null,10,null,null,null,null,null,null,null,null,null,"2018-03-27",3]
[{"$f":"SUBTOTAL(3,$E$2:E452)","v":31},null,null,"2008-08-07","علاءالدين محمد علي حسن محمد علي السعدي ",null,"بكالوريوس / هندسة مدني ","القسم الفني ",null,null,null,null,null,null,"2019-10-20",null,10,null,null,null,null,null,null,null,null,null,"2018-03-28",3]
[{"$f":"SUBTOTAL(3,$E$2:E453)","v":31},null,null,"1989-10-24","علوان متعب جواد  كاظم  الغانمي",null,"معهد نفط / ادارة مواد ","قسم التوزيع",null,null,null,null,null,null,"2019-10-21",null,10,null,null,null,null,null,null,null,null,null,"2018-03-29",3]
[{"$f":"SUBTOTAL(3,$E$2:E454)","v":31},null,null,"2009-11-22","علي احمد علي اكبر حسين الكوفي",null,"معهد مدني / بناء وانشاءات","القسم الفني",null,null,null,null,null,null,"2019-10-22",null,10,null,null,null,null,null,null,null,null,null,"2018-03-30",3]
[{"$f":"SUBTOTAL(3,$E$2:E455)","v":31},null,null,"2015-05-25","علي جاسم محمد حسين اليزبكي",null,"اعدادية صناعة / كهرباء ","شعبة صيانة السيارات الخفيفة والثقيلة",null,null,null,null,null,null,"2019-10-23",null,10,null,null,null,null,null,null,null,null,null,"2018-03-31",3]
[{"$f":"SUBTOTAL(3,$E$2:E456)","v":31},null,null,"1989-11-02","علي جبار شفي غلوب الركابي ",null,"معهد نفط / تحليلات كيمياوية / تصفية ","شعبة البحوث والسيطرة النوعية",null,null,null,null,null,null,"2019-10-24",null,10,null,null,null,null,null,null,null,null,null,"2018-04-01",4]
[{"$f":"SUBTOTAL(3,$E$2:E457)","v":31},null,null,"1994-06-01","علي جليل عزيز عبد عبد الله الفتلاوي",null,"بكالوريوس / تربية /  علم نفس ","القسم الاداري",null,null,null,null,null,null,"2019-10-25",null,10,null,null,null,null,null,null,null,null,null,"2018-04-02",4]
[{"$f":"SUBTOTAL(3,$E$2:E458)","v":31},null,null,"2009-10-06","علي جميل سلمان جاسم الموسوي ",null,"ابتدائية","شعبة النقل ",null,null,null,null,null,null,"2019-10-26",null,10,null,null,null,null,null,null,null,null,null,"2018-04-03",4]
[{"$f":"SUBTOTAL(3,$E$2:E459)","v":31},null,null,"2012-01-26","علي جواد كاظم مزعل العبودي",null,"ابتدائية","شعبة السلامة والاطفاء",null,null,null,null,null,null,"2019-10-27",null,10,null,null,null,null,null,null,null,null,null,"2018-04-04",4]
[{"$f":"SUBTOTAL(3,$E$2:E460)","v":31},null,null,"2014-11-02","علي حاجم جودة محمد الجبوري",null,"متوسطة","شعبة المخازن والمشتريات",null,null,null,null,null,null,"2019-10-28",null,10,null,null,null,null,null,null,null,null,null,"2018-04-05",4]
[{"$f":"SUBTOTAL(3,$E$2:E461)","v":31},null,null,"2013-07-01","علي حامد راشد هادي الغانمي ",null,"بكالوريوس / هندسة نفط ","قسم التوزيع ",null,null,null,null,null,null,"2019-10-29",null,10,null,null,null,null,null,null,null,null,null,"2018-04-06",4]
[{"$f":"SUBTOTAL(3,$E$2:E462)","v":31},null,null,"2006-02-13","علي حزام مشاري رهيف الحباوي",null,"معهد نفط / تشغيل وسيطرة","القسم الفني ",null,null,null,null,null,null,"2019-10-30",null,10,null,null,null,null,null,null,null,null,null,"2018-04-07",4]
[{"$f":"SUBTOTAL(3,$E$2:E463)","v":31},null,null,"2016-06-13","علي حسون علي حسون فتلاوي ",null,"بكالوريوس /حاسبات ","وحدة الارشفة الالكترونية ",null,null,null,null,null,null,"2019-10-31",null,10,null,null,null,null,null,null,null,null,null,"2018-04-08",4]
[{"$f":"SUBTOTAL(3,$E$2:E464)","v":31},null,null,"2006-06-22","علي حسين رضا سالم الطيف",null,"معهد تقني / التقنيات المدنية / بناء وإنشاءات","وحدة متابعة تنفيذ المشاريع",null,null,null,null,null,null,"2019-11-01",null,11,null,null,null,null,null,null,null,null,null,"2018-04-09",4]
[{"$f":"SUBTOTAL(3,$E$2:E465)","v":31},null,null,"2017-02-16","علي حسين علي عبد التميمي ",null,"معهد نفط /ادارة مواد ","وحدة الارشفة الالكترونية ",null,null,null,null,null,null,"2019-11-02",null,11,null,null,null,null,null,null,null,null,null,"2018-04-10",4]
[{"$f":"SUBTOTAL(3,$E$2:E466)","v":31},null,null,"2012-03-19","علي حمد حسين كاظم وطيفي",null,"ابتدائية","قسم التوزيع",null,null,null,null,null,null,"2019-11-03",null,11,null,null,null,null,null,null,null,null,null,"2018-04-11",4]
[{"$f":"SUBTOTAL(3,$E$2:E467)","v":31},null,null,"2005-12-21","علي حمزة جعفر حسن الحسيني",null,"معهد نفط / ميكانيك","قسم التوزيع",null,null,null,null,null,null,"2019-11-04",null,11,null,null,null,null,null,null,null,null,null,"2018-04-12",4]
[{"$f":"SUBTOTAL(3,$E$2:E468)","v":31},null,null,"2013-05-21","علي حمزة حسين عبد ال عبد",null,"ابتدائية","قسم التوزيع",null,null,null,null,null,null,"2019-11-05",null,11,null,null,null,null,null,null,null,null,null,"2018-04-13",4]
[{"$f":"SUBTOTAL(3,$E$2:E469)","v":31},null,null,"2013-12-03","علي خلف فعيو حسون ال جبارة",null,"ابتدائية","قسم التوزيع",null,null,null,null,null,null,"2019-11-06",null,11,null,null,null,null,null,null,null,null,null,"2018-04-14",4]
[{"$f":"SUBTOTAL(3,$E$2:E470)","v":31},null,null,"2013-07-17","علي خليل ابراهيم محسن الموسوي",null,"علوم اسلامية /السياحة الدينية ","قسم التوزيع",null,null,null,null,null,null,"2019-11-07",null,11,null,null,null,null,null,null,null,null,null,"2018-04-15",4]
[{"$f":"SUBTOTAL(3,$E$2:E471)","v":31},null,null,"2010-04-04","علي خليل اسماعيل خضير الاسدي",null,"بكالوريوس / علوم حياة","وحدة البيئة",null,null,null,null,null,null,"2019-11-08",null,11,null,null,null,null,null,null,null,null,null,"2018-04-16",4]
[{"$f":"SUBTOTAL(3,$E$2:E472)","v":31},null,null,"1976-12-05","علي داود عطية علي الحسني ",null,"دون الابتدائية ","شعبة السلامة والاطفاء",null,null,null,null,null,null,"2019-11-09",null,11,null,null,null,null,null,null,null,null,null,"2018-04-17",4]
[{"$f":"SUBTOTAL(3,$E$2:E473)","v":31},null,null,"2009-10-04","علي راضي عاشور جبير ال جبير",null,"متوسطة ","شعبة السلامة والاطفاء",null,null,null,null,null,null,"2019-11-10",null,11,null,null,null,null,null,null,null,null,null,"2018-04-18",4]
[{"$f":"SUBTOTAL(3,$E$2:E474)","v":31},null,null,"2014-11-10","علي رياض كاظم عبدالهادي صافندي ",null,"دون الابتدائية","شعبة صيانة السيارات الخفيفة والثقيلة",null,null,null,null,null,null,"2019-11-11",null,11,null,null,null,null,null,null,null,null,null,"2018-04-19",4]
[{"$f":"SUBTOTAL(3,$E$2:E475)","v":31},null,null,"2012-12-12","علي ستار بري طاهر الميالي",null,"اعدادية صناعة / كهرباء ","القسم الاداري",null,null,null,null,null,null,"2019-11-12",null,11,null,null,null,null,null,null,null,null,null,"2018-04-20",4]
[{"$f":"SUBTOTAL(3,$E$2:E476)","v":31},null,null,"2013-05-13","علي سعيد شنشول علوان الجبوري",null,"بكالوريوس / هندسة ميكانيك ","القسم الفني",null,null,null,null,null,null,"2019-11-13",null,11,null,null,null,null,null,null,null,null,null,"2018-04-21",4]
[{"$f":"SUBTOTAL(3,$E$2:E477)","v":31},null,null,"2012-03-12","علي سعيد عبدالله  ناصر الموسوي",null,"متوسطة ","شعبة السلامة والاطفاء",null,null,null,null,null,null,"2019-11-14",null,11,null,null,null,null,null,null,null,null,null,"2018-04-22",4]
[{"$f":"SUBTOTAL(3,$E$2:E478)","v":31},null,null,"2015-03-23","علي صاحب صالح مهدي بحر",null,"معهد / قياس وسيطرة","قسم التوزيع",null,null,null,null,null,null,"2019-11-15",null,11,null,null,null,null,null,null,null,null,null,"2018-04-23",4]
[{"$f":"SUBTOTAL(3,$E$2:E479)","v":31},null,null,"1987-07-22","علي صالح عيسى محمد المازني",null,"اعدادية / سباكة معادن","القسم الفني",null,null,null,null,null,null,"2019-11-16",null,11,null,null,null,null,null,null,null,null,null,"2018-04-24",4]
[{"$f":"SUBTOTAL(3,$E$2:E480)","v":31},null,null,"2012-01-17","علي عبد صخيل محمدحسين المالكي",null,"بكالوريوس / اداب / لغة عربية","تنسيب الى مجلس المحافظة",null,null,null,null,null,null,"2019-11-17",null,11,null,null,null,null,null,null,null,null,null,"2018-04-25",4]
[{"$f":"SUBTOTAL(3,$E$2:E481)","v":31},null,null,"2003-10-18","علي عبدالامير مهدي حسن القزويني",null,"بكالوريوس / علوم حاسبات  ","اجازة اربع سنوات",null,null,null,null,null,null,"2019-11-18",null,11,null,null,null,null,null,null,null,null,null,"2018-04-26",4]
[{"$f":"SUBTOTAL(3,$E$2:E482)","v":31},null,null,"2005-11-17","علي عبدالحسين باقر رضا ال حافظ",null,"ميكانيك سيارات","قسم التوزيع ",null,null,null,null,null,null,"2019-11-19",null,11,null,null,null,null,null,null,null,null,null,"2018-04-27",4]
[{"$f":"SUBTOTAL(3,$E$2:E483)","v":31},null,null,"2009-10-04","علي عبدالحسين جابر منديل الكناني",null,"متوسطة ","شعبة النقل",null,null,null,null,null,null,"2019-11-20",null,11,null,null,null,null,null,null,null,null,null,"2018-04-28",4]
[{"$f":"SUBTOTAL(3,$E$2:E484)","v":31},null,null,"2013-01-07","علي عبدالحسين جبر مالح السعيدي",null,"متوسطة","القسم الاداري",null,null,null,null,null,null,"2019-11-21",null,11,null,null,null,null,null,null,null,null,null,"2018-04-29",4]
[{"$f":"SUBTOTAL(3,$E$2:E485)","v":31},null,null,"2006-06-22","علي عبدالحسين متعب دهش الزرفي",null,"معهد معلمين / تربية فنية ","قسم الحسابات",null,null,null,null,null,null,"2019-11-22",null,11,null,null,null,null,null,null,null,null,null,"2018-04-30",4]
[{"$f":"SUBTOTAL(3,$E$2:E486)","v":31},null,null,"2012-04-09","علي عبدالرزاق سلطان عبدعلي طرفاوي",null,"دون الابتدائية","شعبة المخازن والمشتريات",null,null,null,null,null,null,"2019-11-23",null,11,null,null,null,null,null,null,null,null,null,"2018-05-01",5]
[{"$f":"SUBTOTAL(3,$E$2:E487)","v":31},null,null,"2012-01-29","علي عبدالزهرة حسن فرمان الخفاجي",null,"معهد تقني / محاسبة","قسم الحسابات",null,null,null,null,null,null,"2019-11-24",null,11,null,null,null,null,null,null,null,null,null,"2018-05-02",5]
[{"$f":"SUBTOTAL(3,$E$2:E488)","v":31},null,null,"2012-05-07","علي عبدالزهرة عبدعلي عبدالله الاسدي",null,"متوسطة","شعبة السلامة والاطفاء ",null,null,null,null,null,null,"2019-11-25",null,11,null,null,null,null,null,null,null,null,null,"2018-05-03",5]
[{"$f":"SUBTOTAL(3,$E$2:E489)","v":31},null,null,"2009-11-01","علي عبدالزهرة نور سلمان ال سلمان",null,"ابتدائية","شعبة السلامة والاطفاء ",null,null,null,null,null,null,"2019-11-26",null,11,null,null,null,null,null,null,null,null,null,"2018-05-04",5]
[{"$f":"SUBTOTAL(3,$E$2:E490)","v":31},null,null,"1991-11-02","علي عبدالسادة متعب حنتوش الجاسمي",null,"بكالوريوس / هندسة ميكانيك ","وحدة متابعة تنفيذ المشاريع",null,null,null,null,null,null,"2019-11-27",null,11,null,null,null,null,null,null,null,null,null,"2018-05-05",5]
[{"$f":"SUBTOTAL(3,$E$2:E491)","v":31},null,null,"2001-10-03","علي عبداللطيف عبدالله عيسى الموسوي",null,"بكالوريوس / هندسة  كهرباء ","القسم الفني",null,null,null,null,null,null,"2019-11-28",null,11,null,null,null,null,null,null,null,null,null,"2018-05-06",5]
[{"$f":"SUBTOTAL(3,$E$2:E492)","v":31},null,null,"2010-08-05","علي عذاب هاشم حسون الاميال",null,"دون الابتدائية ","شعبة النقل",null,null,null,null,null,null,"2019-11-29",null,11,null,null,null,null,null,null,null,null,null,"2018-05-07",5]
[{"$f":"SUBTOTAL(3,$E$2:E493)","v":31},null,null,"2015-10-18","علي فاهم نعمة فرهود ابو الزود الحسناوي ",null,"ابتدائية","القسم الفني ",null,null,null,null,null,null,"2019-11-30",null,11,null,null,null,null,null,null,null,null,null,"2018-05-08",5]
[{"$f":"SUBTOTAL(3,$E$2:E494)","v":31},null,null,"2008-02-14","علي فائز محمد جواد علي الرفيع",null,"بكالوريوس / هندسة نفط / تكرير النفط والغاز","شعبة المولدات",null,null,null,null,null,null,"2019-12-01",null,12,null,null,null,null,null,null,null,null,null,"2018-05-09",5]
[{"$f":"SUBTOTAL(3,$E$2:E495)","v":31},null,null,"2000-01-02","علي فليح حسن جويرالعنبكي",null,"ابتدائية ","القسم الاداري",null,null,null,null,null,null,"2019-12-02",null,12,null,null,null,null,null,null,null,null,null,"2018-05-10",5]
[{"$f":"SUBTOTAL(3,$E$2:E496)","v":31},null,null,"2010-12-28","علي كريم جراد شناوة النصراوي",null,"اعدادية / ادارة","قسم التوزيع",null,null,null,null,null,null,"2019-12-03",null,12,null,null,null,null,null,null,null,null,null,"2018-05-11",5]
[{"$f":"SUBTOTAL(3,$E$2:E497)","v":31},null,null,"2010-08-05","علي محمد عبود غانم بني ساله",null,"دون الابتدائية ","شعبة النقل",null,null,null,null,null,null,"2019-12-04",null,12,null,null,null,null,null,null,null,null,null,"2018-05-12",5]
[{"$f":"SUBTOTAL(3,$E$2:E498)","v":31},null,null,"1991-09-11","علي محمد هادي حسون صالح العزاوي ",null,"معهد نفط / تشغيل فني ","شعبة المخازن والمشتريات ",null,null,null,null,null,null,"2019-12-05",null,12,null,null,null,null,null,null,null,null,null,"2018-05-13",5]
[{"$f":"SUBTOTAL(3,$E$2:E499)","v":31},null,null,"2016-06-01","علي محمدفاضل عباس امين العميدي",null,"دون الاختصاص","القسم الاداري ",null,null,null,null,null,null,"2019-12-06",null,12,null,null,null,null,null,null,null,null,null,"2018-05-14",5]
[{"$f":"SUBTOTAL(3,$E$2:E500)","v":31},null,null,"2009-10-06","علي مكطوف عداي نجم الفرحان",null,"ابتدائية","شعبة النقل",null,null,null,null,null,null,"2019-12-07",null,12,null,null,null,null,null,null,null,null,null,"2018-05-15",5]
[{"$f":"SUBTOTAL(3,$E$2:E501)","v":31},null,null,"2004-11-08","علي موسى عباس  جعفر الاعرجي",null,"معهد نفط / معادلة لاعدادية الصناعة / سيارات ","قسم التوزيع",null,null,null,null,null,null,"2019-12-08",null,12,null,null,null,null,null,null,null,null,null,"2018-05-16",5]
[{"$f":"SUBTOTAL(3,$E$2:E502)","v":31},null,null,"2008-02-20","علي موسى عبدالحر حسين الجبوري",null,"بكالوريوس / قانون ","الشعبة القانونية",null,null,null,null,null,null,"2019-12-09",null,12,null,null,null,null,null,null,null,null,null,"2018-05-17",5]
[{"$f":"SUBTOTAL(3,$E$2:E503)","v":31},null,null,"2006-07-25","علي يوسف صكبان بلعوط  ثرواني",null,"بكالوريوس / هندسة ميكانيك ","شعبة التخطيط",null,null,null,null,null,null,"2019-12-10",null,12,null,null,null,null,null,null,null,null,null,"2018-05-18",5]
[{"$f":"SUBTOTAL(3,$E$2:E504)","v":31},null,null,"2011-09-04","علياء نعمة سعيد محمد حسن الخياط",null,"بكالوريوس / هندسة مواد ","شعبة تقنية المعلومات ",null,null,null,null,null,null,"2019-12-11",null,12,null,null,null,null,null,null,null,null,null,"2018-05-19",5]
[{"$f":"SUBTOTAL(3,$E$2:E505)","v":31},null,null,"2016-12-29","علية جهاد شلال سرحان الخزعلي ",null,"ابتدائية","القسم الاداري",null,null,null,null,null,null,"2019-12-12",null,12,null,null,null,null,null,null,null,null,null,"2018-05-20",5]
[{"$f":"SUBTOTAL(3,$E$2:E506)","v":31},null,null,"2012-02-02","علية ساجت عبدنور مسافر الفتلاوي",null,"دون الابتدائية ","القسم الاداري",null,null,null,null,null,null,"2019-12-13",null,12,null,null,null,null,null,null,null,null,null,"2018-05-21",5]
[{"$f":"SUBTOTAL(3,$E$2:E507)","v":31},null,null,"2000-03-20","علية ياسر علي شلاكة القريشي",null,"بكالوريوس / هندسة مدني ","القسم الفني ",null,null,null,null,null,null,"2019-12-14",null,12,null,null,null,null,null,null,null,null,null,"2018-05-22",5]
[{"$f":"SUBTOTAL(3,$E$2:E508)","v":31},null,null,"2002-04-15","عماد عزيز شنشول علوان الجبوري",null,"بكالوريوس / قانون / ادارة واقتصاد ","القسم الاداري",null,null,null,null,null,null,"2019-12-15",null,12,null,null,null,null,null,null,null,null,null,"2018-05-23",5]
[{"$f":"SUBTOTAL(3,$E$2:E509)","v":31},null,null,"2010-11-28","عماد علي جميل عذاب المعموري",null,"دون الابتدائية ","شعبة النقل",null,null,null,null,null,null,"2019-12-16",null,12,null,null,null,null,null,null,null,null,null,"2018-05-24",5]
[{"$f":"SUBTOTAL(3,$E$2:E510)","v":31},null,null,"2013-09-30","عماد كاظم شياع مطرود الجبوري",null,"ابتدائية","شعبة النقل",null,null,null,null,null,null,"2019-12-17",null,12,null,null,null,null,null,null,null,null,null,"2018-05-25",5]
[{"$f":"SUBTOTAL(3,$E$2:E511)","v":31},null,null,"2006-06-28","عماد كفاح عبدالحميد عودة الكفري",null,"بكالوريوس / تربية / فيزياء","وحدة القياس والمعايرة",null,null,null,null,null,null,"2019-12-18",null,12,null,null,null,null,null,null,null,null,null,"2018-05-26",5]
[{"$f":"SUBTOTAL(3,$E$2:E512)","v":31},null,null,"2013-01-14","عمار ادريس عبار رطان الخزعلي",null,"بكالوريوس قانون ","الشعبة القانونية",null,null,null,null,null,null,"2019-12-19",null,12,null,null,null,null,null,null,null,null,null,"2018-05-27",5]
[{"$f":"SUBTOTAL(3,$E$2:E513)","v":31},null,null,"2008-05-27","عمار عبدالحر نعمة حسين العمار",null,"بكالوريوس / هندسة / مكائن ومعدات / تكييف","اجازة اربع سنوات",null,null,null,null,null,null,"2019-12-20",null,12,null,null,null,null,null,null,null,null,null,"2018-05-28",5]
[{"$f":"SUBTOTAL(3,$E$2:E514)","v":31},null,null,"2013-11-19","عمار عزالدين خليل  محمد علي ال سيد",null,"بكالوريوس ادارة اعمال ","قسم التوزيع",null,null,null,null,null,null,"2019-12-21",null,{"$f":"VLOOKUP(O514,AA513:AB1242,2,FALSE)","v":12},null,null,null,null,null,null,null,null,null,"2018-05-29",5]
[{"$f":"SUBTOTAL(3,$E$2:E515)","v":31},null,null,"1999-12-20","عمار كاظم حسن عكلة السويعدي",null,"ابتدائية ","شعبة السلامة والاطفاء",null,null,null,null,null,null,"2019-12-22",null,12,null,null,null,null,null,null,null,null,null,"2018-05-30",5]
[{"$f":"SUBTOTAL(3,$E$2:E516)","v":31},null,null,"2015-08-18","عمار محمد صالح مصطفى المولى ",null,"بكالوريوس / قسم الاتصالات ","القسم الفني ",null,null,null,null,null,null,"2019-12-23",null,12,null,null,null,null,null,null,null,null,null,"2018-05-31",5]
[{"$f":"SUBTOTAL(3,$E$2:E517)","v":31},null,null,"2014-11-02","عمر رياض خضير عبدالله مسعودي",null,"متوسطة","القسم الفني",null,null,null,null,null,null,"2019-12-24",null,12,null,null,null,null,null,null,null,null,null,"2018-06-01",6]
[{"$f":"SUBTOTAL(3,$E$2:E518)","v":31},null,null,"2000-07-12","عواد عبد عمران جبر العوادي",null,"اعدادية / ميكانيك عام","شعبة البحوث والسيطرة النوعية",null,null,null,null,null,null,"2019-12-25",null,12,null,null,null,null,null,null,null,null,null,"2018-06-02",6]
[{"$f":"SUBTOTAL(3,$E$2:E519)","v":31},null,null,"2009-01-13","عواد لفتة صخي مشجل المعموري ",null,"بكالوريوس / ادارة واقتصاد / ادارة اعمال","القسم الاداري ",null,null,null,null,null,null,"2019-12-26",null,12,null,null,null,null,null,null,null,null,null,"2018-06-03",6]
[{"$f":"SUBTOTAL(3,$E$2:E520)","v":31},null,null,"1981-01-07","عواطف حسين علي حميدي العبادي ",null,"اعدادية / تجارة ","شعبة السلامة والاطفاء",null,null,null,null,null,null,"2019-12-27",null,12,null,null,null,null,null,null,null,null,null,"2018-06-04",6]
[{"$f":"SUBTOTAL(3,$E$2:E521)","v":31},null,null,"2011-03-01","غازي جياد عبود محمد الشبلاوي",null,"ابتدائية","قسم التوزيع",null,null,null,null,null,null,"2019-12-28",null,12,null,null,null,null,null,null,null,null,null,"2018-06-05",6]
[{"$f":"SUBTOTAL(3,$E$2:E522)","v":31},null,null,"2013-10-28","غازي حسين وادي حمود الجبوري",null,"متوسطة","شعبة النقل",null,null,null,null,null,null,"2019-12-29",null,12,null,null,null,null,null,null,null,null,null,"2018-06-06",6]
[{"$f":"SUBTOTAL(3,$E$2:E523)","v":31},null,null,"2008-12-06","غازي فيصل سعد خضير المسعودي",null,"بكالوريوس / هندسة مواد ","وحدة الفحص الهندسي ",null,null,null,null,null,null,"2019-12-30",null,12,null,null,null,null,null,null,null,null,null,"2018-06-07",6]
[{"$f":"SUBTOTAL(3,$E$2:E524)","v":31},null,null,"2010-08-05","غافل صخيل فواز موسى ال موسى",null,"دون الابتدائية ","قسم التوزيع ",null,null,null,null,null,null,"2019-12-31",null,12,null,null,null,null,null,null,null,null,null,"2018-06-08",6]
[{"$f":"SUBTOTAL(3,$E$2:E525)","v":31},null,null,"2006-06-22","غانم جبر عبود جودة الفتلاوي",null,"معهد معلمين / لغة انكليزية ","قسم التوزيع ",null,null,null,null,null,null,"2020-01-01",null,1,null,null,null,null,null,null,null,null,null,"2018-06-09",6]
[{"$f":"SUBTOTAL(3,$E$2:E526)","v":31},null,null,"2009-01-13","غانم سعد خضير عباس المسعودي ",null,"بكالوريوس / قانون ","الشعبة القانونية",null,null,null,null,null,null,"2020-01-02",null,1,null,null,null,null,null,null,null,null,null,"2018-06-10",6]
[{"$f":"SUBTOTAL(3,$E$2:E527)","v":31},null,null,"2002-11-23","غسان ثابت فرمان عاجل الفتلاوي",null,"بكالوريوس / ادارة واقتصاد / ادارة اعمال","قسم الحسابات ",null,null,null,null,null,null,"2020-01-03",null,1,null,null,null,null,null,null,null,null,null,"2018-06-11",6]
[{"$f":"SUBTOTAL(3,$E$2:E528)","v":31},null,null,"2008-07-20","غسان حميد شذر مسلم السراي ",null,"بكالوريوس / علوم كيمياء ","شعبة البحوث والسيطرة النوعية",null,null,null,null,null,null,"2020-01-04",null,1,null,null,null,null,null,null,null,null,null,"2018-06-12",6]
[{"$f":"SUBTOTAL(3,$E$2:E529)","v":31},null,null,"1995-12-06","غسان صالح مهدي حبيب الحار",null,"معهد نفط / تشغيل وسيطرة","شعبة الرقابة والتدقيق الداخلي ",null,null,null,null,null,null,"2020-01-05",null,1,null,null,null,null,null,null,null,null,null,"2018-06-13",6]
[{"$f":"SUBTOTAL(3,$E$2:E530)","v":31},null,null,"2005-11-14","غسان صلاح سعيد جبار علي البغدادي ",null,"معهد نفط / ميكانيك معدات نفطية ","وحدة القياس والمعايرة",null,null,null,null,null,null,"2020-01-06",null,1,null,null,null,null,null,null,null,null,null,"2018-06-14",6]
[{"$f":"SUBTOTAL(3,$E$2:E531)","v":31},null,null,"2009-01-13","غصون محمد عزيز جابر الحلو  ",null,"بكالوريوس / قانون ","الشعبة القانونية ",null,null,null,null,null,null,"2020-01-07",null,1,null,null,null,null,null,null,null,null,null,"2018-06-15",6]
[{"$f":"SUBTOTAL(3,$E$2:E532)","v":31},null,null,"2015-03-23","غيث يوسف محمدهادي حسون الموسوي",null,"معهد / خطوط الانابيب","قسم التوزيع",null,null,null,null,null,null,"2020-01-08",null,1,null,null,null,null,null,null,null,null,null,"2018-06-16",6]
[{"$f":"SUBTOTAL(3,$E$2:E533)","v":31},null,null,"2009-11-01","فارس ناصر حسين سوادي الحسين",null,"ابتدائية","شعبة النقل ",null,null,null,null,null,null,"2020-01-09",null,1,null,null,null,null,null,null,null,null,null,"2018-06-17",6]
[{"$f":"SUBTOTAL(3,$E$2:E534)","v":31},null,null,"1975-06-21","فاضل جبر سلمان علوان الجنابي",null,"ابتدائية ","قسم التوزيع ",null,null,null,null,null,null,"2020-01-10",null,1,null,null,null,null,null,null,null,null,null,"2018-06-18",6]
[{"$f":"SUBTOTAL(3,$E$2:E535)","v":31},null,null,"2015-09-01","فاضل حبيب مهدي علي الكناني ",null,"ابتدائية","قسم التوزيع ",null,null,null,null,null,null,"2020-01-11",null,1,null,null,null,null,null,null,null,null,null,"2018-06-19",6]
[{"$f":"SUBTOTAL(3,$E$2:E536)","v":31},null,null,"2000-07-05","فاضل حميد جاسم  محسن العنبكي",null,"ابتدائية","شعبة السلامة والاطفاء",null,null,null,null,null,null,"2020-01-12",null,1,null,null,null,null,null,null,null,null,null,"2018-06-20",6]
[{"$f":"SUBTOTAL(3,$E$2:E537)","v":31},null,null,"2012-02-02","فاضل خضير حسين سعيد معموري",null,"متوسطة ","قسم التوزيع",null,null,null,null,null,null,"2020-01-13",null,1,null,null,null,null,null,null,null,null,null,"2018-06-21",6]
[{"$f":"SUBTOTAL(3,$E$2:E538)","v":31},null,null,"1993-09-01","فاضل شاكر محمد رضا  حميدي المواشي",null,"ابتدائية ","قسم التوزيع ",null,null,null,null,null,null,"2020-01-14",null,1,null,null,null,null,null,null,null,null,null,"2018-06-22",6]
[{"$f":"SUBTOTAL(3,$E$2:E539)","v":31},null,null,"2014-11-02","فاضل صلاح سعيد جبار بغدادي",null,"ابتدائية","وحدة القياس والمعايرة",null,null,null,null,null,null,"2020-01-15",null,1,null,null,null,null,null,null,null,null,null,"2018-06-23",6]
[{"$f":"SUBTOTAL(3,$E$2:E540)","v":31},null,null,"1991-06-05","فاضل عبدالسادة جاسم  عداي الحكيم",null,"معهد نفط / تصفية ","شعبة العلاقات العامة ",null,null,null,null,null,null,"2020-01-16",null,1,null,null,null,null,null,null,null,null,null,"2018-06-24",6]
[{"$f":"SUBTOTAL(3,$E$2:E541)","v":31},null,null,"1994-04-23","فاضل عبدالسادة حميزة رداد الزيادي",null,"ابتدائية ","قسم التوزيع",null,null,null,null,null,null,"2020-01-17",null,1,null,null,null,null,null,null,null,null,null,"2018-06-25",6]
[{"$f":"SUBTOTAL(3,$E$2:E542)","v":31},null,null,"2010-06-23","فاطمة حامد بنيان علوان الجبوري",null,"بكالوريوس / علوم مالية ومصرفية","قسم الحسابات ",null,null,null,null,null,null,"2020-01-18",null,1,null,null,null,null,null,null,null,null,null,"2018-06-26",6]
[{"$f":"SUBTOTAL(3,$E$2:E543)","v":31},null,null,"2012-03-05","فاطمة صبري عاشور محمد المجلي",null,"بكالوريوس / علوم فيزياء ","الشعبة القانونية",null,null,null,null,null,null,"2020-01-19",null,1,null,null,null,null,null,null,null,null,null,"2018-06-27",6]
[{"$f":"SUBTOTAL(3,$E$2:E544)","v":31},null,null,"2002-09-18","فالح حسن عبود حسن العيداني",null,"ابتدائية ","شعبة النقل",null,null,null,null,null,null,"2020-01-20",null,1,null,null,null,null,null,null,null,null,null,"2018-06-28",6]
[{"$f":"SUBTOTAL(3,$E$2:E545)","v":31},null,null,"1979-02-06","فالح خالد كشاش شبيب الفتلاوي",null,"ابتدائية ","قسم التوزيع",null,null,null,null,null,null,"2020-01-21",null,1,null,null,null,null,null,null,null,null,null,"2018-06-29",6]
[{"$f":"SUBTOTAL(3,$E$2:E546)","v":31},null,null,"2010-03-25","فائز عبود جعفر شمخي الجبر",null,"بكالوريوس / قانون ","الشعبة القانونية",null,null,null,null,null,null,"2020-01-22",null,1,null,null,null,null,null,null,null,null,null,"2018-06-30",6]
[{"$f":"SUBTOTAL(3,$E$2:E547)","v":31},null,null,"2013-11-18","فتون محمد عزيز جابر الحلو",null,"اعدادية / تجارة /عام ","الشعبة القانونية",null,null,null,null,null,null,"2020-01-23",null,1,null,null,null,null,null,null,null,null,null,"2018-07-01",7]
[{"$f":"SUBTOTAL(3,$E$2:E548)","v":31},null,null,"2013-02-21","فخرية ابوالفضل روح الله محمد علي الموسوي",null,"الشريعة الاسلامية ","قسم الحسابات",null,null,null,null,null,null,"2020-01-24",null,1,null,null,null,null,null,null,null,null,null,"2018-07-02",7]
[{"$f":"SUBTOTAL(3,$E$2:E549)","v":31},null,null,"2015-05-21","فراس اميري اسماعيل حسين الفتلاوي",null,"متوسطة ","شعبة صيانة السيارات الخفيفة والثقيلة",null,null,null,null,null,null,"2020-01-25",null,1,null,null,null,null,null,null,null,null,null,"2018-07-03",7]
[{"$f":"SUBTOTAL(3,$E$2:E550)","v":31},null,null,"2009-01-13","فراس عثمان محمد حسين الرفيعي ",null,"بكالوريوس / علوم حاسبات  ","شعبة تطبيق الموجودات ",null,null,null,null,null,null,"2020-01-26",null,1,null,null,null,null,null,null,null,null,null,"2018-07-04",7]
[{"$f":"SUBTOTAL(3,$E$2:E551)","v":31},null,null,"2009-11-22","فراس عذاب جاسم حسن الخزرجي",null,"بكالوريوس / هندسة ميكانيك ","القسم الفني ",null,null,null,null,null,null,"2020-01-27",null,1,null,null,null,null,null,null,null,null,null,"2018-07-05",7]
[{"$f":"SUBTOTAL(3,$E$2:E552)","v":31},null,null,"2007-07-03","فرح عبدالكريم طالب حمودي رحمة الله",null,"بكالوريوس / هندسة مدني ","وحدة الارشفة الالكترونية",null,null,null,null,null,null,"2020-01-28",null,1,null,null,null,null,null,null,null,null,null,"2018-07-06",7]
[{"$f":"SUBTOTAL(3,$E$2:E553)","v":31},null,null,"2012-12-29","فرقان عبدالحمزة سلمان عبيس الزيادي",null,"بكالوريوس / تربية / فيزياء","وحدة الفحص الهندسي",null,null,null,null,null,null,"2020-01-29",null,1,null,null,null,null,null,null,null,null,null,"2018-07-07",7]
[{"$f":"SUBTOTAL(3,$E$2:E554)","v":31},null,null,"2016-04-06","فلاح مهدي حريجه غالي النعماني ",null,"دبلوم / محاسبة ","قسم التوزيع ",null,null,null,null,null,null,"2020-01-30",null,1,null,null,null,null,null,null,null,null,null,"2018-07-08",7]
[{"$f":"SUBTOTAL(3,$E$2:E555)","v":31},null,null,"2013-04-03","فليح جازي رعد مشحوت البوجمر",null,"دون الابتدائية","قسم التوزيع",null,null,null,null,null,null,"2020-01-31",null,1,null,null,null,null,null,null,null,null,null,"2018-07-09",7]
[{"$f":"SUBTOTAL(3,$E$2:E556)","v":31},null,null,"1979-08-09","فليحة محسن عبود يوسف البجاري",null,"معهد نفط / الالكترونيك والاتصالات / كهرباء","شعبة الرقابة والتدقيق الداخلي ",null,null,null,null,null,null,"2020-02-01",null,2,null,null,null,null,null,null,null,null,null,"2018-07-10",7]
[{"$f":"SUBTOTAL(3,$E$2:E557)","v":31},null,null,"1978-05-23","فيصل شاكر محسن جواد البديري",null,"متوسطة ","قسم التوزيع ",null,null,null,null,null,null,"2020-02-02",null,2,null,null,null,null,null,null,null,null,null,"2018-07-11",7]
[{"$f":"SUBTOTAL(3,$E$2:E558)","v":31},null,null,"1998-11-25","قاسم حسن علي  حسين الحلفي",null,"ابتدائية ","شعبة السلامة والاطفاء",null,null,null,null,null,null,"2020-02-03",null,2,null,null,null,null,null,null,null,null,null,"2018-07-12",7]
[{"$f":"SUBTOTAL(3,$E$2:E559)","v":31},null,null,"2011-07-27","قاسم سلمان عبيس سلمان الفتلاوي",null,"متوسطة","شعبة السلامة والاطفاء",null,null,null,null,null,null,"2020-02-04",null,2,null,null,null,null,null,null,null,null,null,"2018-07-13",7]
[{"$f":"SUBTOTAL(3,$E$2:E560)","v":31},null,null,"2012-07-25","قاسم عبد اكيردعبود الشيباوي ",null,"اعدادية / ميكانيك ","القسم الفني ",null,null,null,null,null,null,"2020-02-05",null,2,null,null,null,null,null,null,null,null,null,"2018-07-14",7]
[{"$f":"SUBTOTAL(3,$E$2:E561)","v":31},null,null,"2009-04-29","قاسم عبدالله وهب كيطان الدراجي",null,"اعدادية / الكترون","قسم التوزيع",null,null,null,null,null,null,"2020-02-06",null,2,null,null,null,null,null,null,null,null,null,"2018-07-15",7]
[{"$f":"SUBTOTAL(3,$E$2:E562)","v":31},null,null,"1980-10-24","قاسم عذاب حمد نجم الشجيري",null,"معهد فني / محاسبة ","شعبة الرقابة والتدقيق الداخلي ",null,null,null,null,null,null,"2020-02-07",null,2,null,null,null,null,null,null,null,null,null,"2018-07-16",7]
[{"$f":"SUBTOTAL(3,$E$2:E563)","v":31},null,null,"2014-11-02","قاسم فاضل عبدعلي عباس الدعمي",null,"ابتدائية","القسم الفني",null,null,null,null,null,null,"2020-02-08",null,2,null,null,null,null,null,null,null,null,null,"2018-07-17",7]
[{"$f":"SUBTOTAL(3,$E$2:E564)","v":31},null,null,"1990-04-10","قاسم فليح جاسم مخرب الجيزاني",null,"ابتدائية","شعبة السلامة والاطفاء",null,null,null,null,null,null,"2020-02-09",null,2,null,null,null,null,null,null,null,null,null,"2018-07-18",7]
[{"$f":"SUBTOTAL(3,$E$2:E565)","v":31},null,null,"1994-03-05","قاسم محسن حمادي حسين العيداني",null,"متوسطة ","شعبة السلامة والاطفاء",null,null,null,null,null,null,"2020-02-10",null,2,null,null,null,null,null,null,null,null,null,"2018-07-19",7]
[{"$f":"SUBTOTAL(3,$E$2:E566)","v":31},null,null,"2006-04-19","قاسم محمد عبد علي السعدي",null,"بكالوريوس / لغة انكليزية","شعبة العلاقات العامة ",null,null,null,null,null,null,"2020-02-11",null,2,null,null,null,null,null,null,null,null,null,"2018-07-20",7]
[{"$f":"SUBTOTAL(3,$E$2:E567)","v":31},null,null,"2012-09-03","قاسم محمد عبد مخلف الجبوري ",null,"دون الابتدائية","قسم التوزيع",null,null,null,null,null,null,"2020-02-12",null,2,null,null,null,null,null,null,null,null,null,"2018-07-21",7]
[{"$f":"SUBTOTAL(3,$E$2:E568)","v":31},null,null,"1979-11-12","قاسم هاشم عليوي حسون الوزني",null,"دون الابتدائية ","شعبة السلامة والاطفاء",null,null,null,null,null,null,"2020-02-13",null,2,null,null,null,null,null,null,null,null,null,"2018-07-22",7]
[{"$f":"SUBTOTAL(3,$E$2:E569)","v":31},null,null,"2013-02-11","قائد مرتضى حميد عباس الياسري",null,"متوسطة","شعبة السلامة والاطفاء",null,null,null,null,null,null,"2020-02-14",null,2,null,null,null,null,null,null,null,null,null,"2018-07-23",7]
[{"$f":"SUBTOTAL(3,$E$2:E570)","v":31},null,null,"2011-07-27","قحطان جواد كاظم حسين الشمري",null,"معهد فني / ميكانيك سيارات","شعبة صيانة السيارات الخفيفة والثقيلة",null,null,null,null,null,null,"2020-02-15",null,2,null,null,null,null,null,null,null,null,null,"2018-07-24",7]
[{"$f":"SUBTOTAL(3,$E$2:E571)","v":31},null,null,"2013-05-13","قحطان عدنان عباس حمزة الشمري ",null,"بكالوريوس / قانون ","الشعبة القانونية",null,null,null,null,null,null,"2020-02-16",null,2,null,null,null,null,null,null,null,null,null,"2018-07-25",7]
[{"$f":"SUBTOTAL(3,$E$2:E572)","v":31},null,null,"1993-12-11","قحطان عدنان قحطان  حسن اللامي ",null,"معهد نفط / مضخات/ ميكانيك ","القسم الفني ",null,null,null,null,null,null,"2020-02-17",null,2,null,null,null,null,null,null,null,null,null,"2018-07-26",7]
[{"$f":"SUBTOTAL(3,$E$2:E573)","v":31},null,null,"2012-02-22","قصي محمد حسين حسون مجباس ابو حمدان",null,"اعدادية / معادن","القسم الفني",null,null,null,null,null,null,"2020-02-18",null,2,null,null,null,null,null,null,null,null,null,"2018-07-27",7]
[{"$f":"SUBTOTAL(3,$E$2:E574)","v":31},null,null,"2009-04-23","قصي محمد عبدالله محمد الزجاجي",null,"اعدادية صناعة / كهرباء ","القسم الفني",null,null,null,null,null,null,"2020-02-19",null,2,null,null,null,null,null,null,null,null,null,"2018-07-28",7]
[{"$f":"SUBTOTAL(3,$E$2:E575)","v":31},null,null,"2013-01-09","قصي يعقوب خميس مهلهل ديراوي",null,"معهد تقني / كهرباء","وحدة الاطارات",null,null,null,null,null,null,"2020-02-20",null,2,null,null,null,null,null,null,null,null,null,"2018-07-29",7]
[{"$f":"SUBTOTAL(3,$E$2:E576)","v":31},null,null,"1973-06-05","قيس خزعل مختار الفراتي",null,"ابتدائية ","قسم التوزيع ",null,null,null,null,null,null,"2020-02-21",null,2,null,null,null,null,null,null,null,null,null,"2018-07-30",7]
[{"$f":"SUBTOTAL(3,$E$2:E577)","v":31},null,null,"2012-01-23","قيس سالم جبر حبيب الموسوي",null,"ابتدائية","القسم الاداري",null,null,null,null,null,null,"2020-02-22",null,2,null,null,null,null,null,null,null,null,null,"2018-07-31",7]
[{"$f":"SUBTOTAL(3,$E$2:E578)","v":31},null,null,"2015-06-07","قيصر فرحان عبد علوان سباهي الشمري",null,"بكالوريوس / صحافة","شعبة العلاقات العامة ",null,null,null,null,null,null,"2020-02-23",null,{"$f":"VLOOKUP(O578,AA577:AB1306,2,FALSE)","v":2},null,null,null,null,null,null,null,null,null,"2018-08-01",8]
[{"$f":"SUBTOTAL(3,$E$2:E579)","v":31},null,null,"2012-12-29","كاظم عبدالزهرة نعمة عيسى عيسى",null,"بكالوريوس / تربية / لغة عربية","القسم الاداري",null,null,null,null,null,null,"2020-02-24",null,2,null,null,null,null,null,null,null,null,null,"2018-08-02",8]
[{"$f":"SUBTOTAL(3,$E$2:E580)","v":31},null,null,"2014-11-02","كاظم نايف شنشول علوان الجبوري",null,"ابتدائية","القسم الفني",null,null,null,null,null,null,"2020-02-25",null,2,null,null,null,null,null,null,null,null,null,"2018-08-03",8]
[{"$f":"SUBTOTAL(3,$E$2:E581)","v":31},null,null,"1983-10-10","كامل جاسم علي  صاغر الاسدي",null,"معهد نفط / تشغيل فني ","شعبة العلاقات العامة ",null,null,null,null,null,null,"2020-02-26",null,2,null,null,null,null,null,null,null,null,null,"2018-08-04",8]
[{"$f":"SUBTOTAL(3,$E$2:E582)","v":31},null,null,"2016-01-10","كرار ثائر نوري حسين الشيخلي",null,"دون الاختصاص","قسم التوزيع",null,null,null,null,null,null,"2020-02-27",null,2,null,null,null,null,null,null,null,null,null,"2018-08-05",8]
[{"$f":"SUBTOTAL(3,$E$2:E583)","v":31},null,null,"2013-11-18","كرار عدنان عبد الرضا غريب العبيدي ",null,"اعدادية / ادبي ","وحدة الكلف التخمينية",null,null,null,null,null,null,"2020-02-28",null,2,null,null,null,null,null,null,null,null,null,"2018-08-06",8]
[{"$f":"SUBTOTAL(3,$E$2:E584)","v":31},null,null,"2013-05-22","كرار يونس كاظم حسون الشرفي ",null,"ابتدائية","القسم الاداري",null,null,null,null,null,null,"2020-02-29",null,3,null,null,null,null,null,null,null,null,null,"2018-08-07",8]
[{"$f":"SUBTOTAL(3,$E$2:E585)","v":31},null,null,"2012-03-20","كريم جاسم محمد عبيس العامري",null,"متوسطة ","القسم الاداري",null,null,null,null,null,null,"2020-03-01",null,3,null,null,null,null,null,null,null,null,null,"2018-08-08",8]
[{"$f":"SUBTOTAL(3,$E$2:E586)","v":31},null,null,"1983-09-01","كريم سالم خيون حسين العطواني",null,"بكالوريوس / قانون ","الشعبة القانونية",null,null,null,null,null,null,"2020-03-02",null,3,null,null,null,null,null,null,null,null,null,"2018-08-09",8]
[{"$f":"SUBTOTAL(3,$E$2:E587)","v":31},null,null,"2012-03-19","كريم عودة لفتة حسن الجوازري",null,"ابتدائية","قسم التوزيع",null,null,null,null,null,null,"2020-03-03",null,3,null,null,null,null,null,null,null,null,null,"2018-08-10",8]
[{"$f":"SUBTOTAL(3,$E$2:E588)","v":31},null,null,"1978-11-01","كريم كاظم استار  الدهش",null,"ابتدائية ","قسم التوزيع ",null,null,null,null,null,null,"2020-03-04",null,3,null,null,null,null,null,null,null,null,null,"2018-08-11",8]
[{"$f":"SUBTOTAL(3,$E$2:E589)","v":31},null,null,"1980-03-30","كريم محمد كاظم حمد الجديلي ",null,"متوسطة ","وحدة متابعة الموقوفات ",null,null,null,null,null,null,"2020-03-05",null,3,null,null,null,null,null,null,null,null,null,"2018-08-12",8]
[{"$f":"SUBTOTAL(3,$E$2:E590)","v":31},null,null,"1983-01-02","كفاح عبدالزهرة مبارك ابيج القطراني",null,"معهد تكنولوجيا / صناعات كيماوية ","القسم الاداري ",null,null,null,null,null,null,"2020-03-06",null,3,null,null,null,null,null,null,null,null,null,"2018-08-13",8]
[{"$f":"SUBTOTAL(3,$E$2:E591)","v":31},null,null,"1998-12-29","كمال عبدالحسن حاجم  سلطان العطبي",null,"معهد نفط / الكترون / كهرباء ","قسم التوزيع",null,null,null,null,null,null,"2020-03-07",null,3,null,null,null,null,null,null,null,null,null,"2018-08-14",8]
[{"$f":"SUBTOTAL(3,$E$2:E592)","v":31},null,null,"2006-06-13","كمال كاظم حسين كسار المسعودي",null,"بكالوريوس / هندسة مواد ","القسم الفني",null,null,null,null,null,null,"2020-03-08",null,3,null,null,null,null,null,null,null,null,null,"2018-08-15",8]
[{"$f":"SUBTOTAL(3,$E$2:E593)","v":31},null,null,"2006-05-31","كمال محمد حسين ابراهيم الخفاف",null,"بكالوريوس / هندسة انتاج معادن ","القسم الفني ",null,null,null,null,null,null,"2020-03-09",null,3,null,null,null,null,null,null,null,null,null,"2018-08-16",8]
[{"$f":"SUBTOTAL(3,$E$2:E594)","v":31},null,null,"1989-11-05","لطيف جابر هجوج  حمادي الاسدي",null,"معهد نفط / الكترون ","شعبة النقل ",null,null,null,null,null,null,"2020-03-10",null,3,null,null,null,null,null,null,null,null,null,"2018-08-17",8]
[{"$f":"SUBTOTAL(3,$E$2:E595)","v":31},null,null,"2005-11-23","لطيف حميد عبدالكريم حسين العيداني",null,"معهد نفط / الكترونيك واتصالات / قسم كهرباء","شعبة المخازن والمشتريات ",null,null,null,null,null,null,"2020-03-11",null,3,null,null,null,null,null,null,null,null,null,"2018-08-18",8]
[{"$f":"SUBTOTAL(3,$E$2:E596)","v":31},null,null,"2015-08-31","لمياء صاحب جعفر يوسف السعدي ",null,"ابتدائية","القسم الاداري ",null,null,null,null,null,null,"2020-03-12",null,3,null,null,null,null,null,null,null,null,null,"2018-08-19",8]
[{"$f":"SUBTOTAL(3,$E$2:E597)","v":31},null,null,"2010-04-05","لؤي فؤاد محمد جعفر الساعدي",null,"معهد تقني / ميكانيك عام","شعبة النقل",null,null,null,null,null,null,"2020-03-13",null,3,null,null,null,null,null,null,null,null,null,"2018-08-20",8]
[{"$f":"SUBTOTAL(3,$E$2:E598)","v":31},null,null,"2016-12-29","لؤي قصي حسن هادي الشمري ",null,"اعدادية / علمي","شعبة السلامة والاطفاء ",null,null,null,null,null,null,"2020-03-14",null,3,null,null,null,null,null,null,null,null,null,"2018-08-21",8]
[{"$f":"SUBTOTAL(3,$E$2:E599)","v":31},null,null,"2012-03-22","لؤي محمد عبدالله محمد زجاجي",null,"اعدادية / علمي","قسم التوزيع",null,null,null,null,null,null,"2020-03-15",null,3,null,null,null,null,null,null,null,null,null,"2018-08-22",8]
[{"$f":"SUBTOTAL(3,$E$2:E600)","v":31},null,null,"2012-02-06","ليث حميد ناجي سلمان الفتلاوي",null,"ابتدائية","قسم التوزيع",null,null,null,null,null,null,"2020-03-16",null,3,null,null,null,null,null,null,null,null,null,"2018-08-23",8]
[{"$f":"SUBTOTAL(3,$E$2:E601)","v":31},null,null,"2011-08-29","ليث عبدالرزاق محمود احمد العبيدي",null,"ابتدائية","قسم التوزيع",null,null,null,null,null,null,"2020-03-17",null,3,null,null,null,null,null,null,null,null,null,"2018-08-24",8]
[{"$f":"SUBTOTAL(3,$E$2:E602)","v":31},null,null,"2009-05-04","ليث عماد عبدالواحد فنجان السعد",null,"اعدادية / علمي","القسم الفني",null,null,null,null,null,null,"2020-03-18",null,3,null,null,null,null,null,null,null,null,null,"2018-08-25",8]
[{"$f":"SUBTOTAL(3,$E$2:E603)","v":31},null,null,"2012-12-12","ليث غني كريم شباط الابراهيمي",null,"اعدادية / نجارة","قسم التوزيع",null,null,null,null,null,null,"2020-03-19",null,3,null,null,null,null,null,null,null,null,null,"2018-08-26",8]
[{"$f":"SUBTOTAL(3,$E$2:E604)","v":31},null,null,"2005-03-10","ليث محمد حسين صالح مهدي البوشور",null,"بكالوريوس / هندسة كهرباء","شعبة النقل ",null,null,null,null,null,null,"2020-03-20",null,3,null,null,null,null,null,null,null,null,null,"2018-08-27",8]
[{"$f":"SUBTOTAL(3,$E$2:E605)","v":31},null,null,"2008-03-12","ليث مهدي علي  ميرن الحكيم",null,"هندسه تبريد وتكيف ","قسم التوزيع",null,null,null,null,null,null,"2020-03-21",null,3,null,null,null,null,null,null,null,null,null,"2018-08-28",8]
[{"$f":"SUBTOTAL(3,$E$2:E606)","v":31},null,null,"2009-03-31","ليث نجم محمد جاسم بني سعد",null,"دون الابتدائية ","شعبة النقل",null,null,null,null,null,null,"2020-03-22",null,3,null,null,null,null,null,null,null,null,null,"2018-08-29",8]
[{"$f":"SUBTOTAL(3,$E$2:E607)","v":31},null,null,"1981-08-13","ليلى علي جابر غائب الجراحي",null,"دون الابتدائية ","قسم التوزيع ",null,null,null,null,null,null,"2020-03-23",null,3,null,null,null,null,null,null,null,null,null,"2018-08-30",8]
[{"$f":"SUBTOTAL(3,$E$2:E608)","v":31},null,null,"2014-10-29","ماجد بارد حمزة عباس العيداني",null,"ابتدائية","قسم التوزيع",null,null,null,null,null,null,"2020-03-24",null,3,null,null,null,null,null,null,null,null,null,"2018-08-31",8]
[{"$f":"SUBTOTAL(3,$E$2:E609)","v":31},null,null,"2006-06-22","ماجد عبدعلي حمادي الشاهر ",null,"معهد تقني / كهرباء ","قسم التوزيع ",null,null,null,null,null,null,"2020-03-25",null,3,null,null,null,null,null,null,null,null,null,"2018-09-01",9]
[{"$f":"SUBTOTAL(3,$E$2:E610)","v":31},null,null,"2012-07-12","ماجدة حميد سالم الشيخ محمد المياحي",null,"بكالوريوس / ادارة واقتصاد / محاسبة ","قسم الحسابات",null,null,null,null,null,null,"2020-03-26",null,3,null,null,null,null,null,null,null,null,null,"2018-09-02",9]
[{"$f":"SUBTOTAL(3,$E$2:E611)","v":31},null,null,"2009-11-01","مازن قاسم محمد عبد مخلف الجبوري",null,"ابتدائية","شعبة النقل ",null,null,null,null,null,null,"2020-03-27",null,3,null,null,null,null,null,null,null,null,null,"2018-09-03",9]
[{"$f":"SUBTOTAL(3,$E$2:E612)","v":31},null,null,"1991-10-20","مالك صدام جاسم اوهير الغياض ",null,"معهد تقني / كهرباء","القسم الفني ",null,null,null,null,null,null,"2020-03-28",null,3,null,null,null,null,null,null,null,null,null,"2018-09-04",9]
[{"$f":"SUBTOTAL(3,$E$2:E613)","v":31},null,null,"2010-10-27","ماهر يعقوب خميس مهلهل الديراوي",null,"بكالوريوس/ علوم / قسم الفيزياء","شعبة تطبيق الموجودات",null,null,null,null,null,null,"2020-03-29",null,3,null,null,null,null,null,null,null,null,null,"2018-09-05",9]
[{"$f":"SUBTOTAL(3,$E$2:E614)","v":31},null,null,"2014-11-13","مثنى رزاق عبدالحسن هادي الفتلاوي",null,"ابتدائية","شعبة السلامة والاطفاء ",null,null,null,null,null,null,"2020-03-30",null,3,null,null,null,null,null,null,null,null,null,"2018-09-06",9]
[{"$f":"SUBTOTAL(3,$E$2:E615)","v":31},null,null,"2006-08-22","مجتبى محمد حميد صالح الثامر",null,"بكالوريوس / ادارة واقتصاد / ادارة اعمال","شعبة النقل ",null,null,null,null,null,null,"2020-03-31",null,4,null,null,null,null,null,null,null,null,null,"2018-09-07",9]
[{"$f":"SUBTOTAL(3,$E$2:E616)","v":31},null,null,"2012-03-18","مجيد حميد محمد جاسم الحساوي",null,"ابتدائية","قسم التوزيع",null,null,null,null,null,null,"2020-04-01",null,4,null,null,null,null,null,null,null,null,null,"2018-09-08",9]
[{"$f":"SUBTOTAL(3,$E$2:E617)","v":31},null,null,"1983-07-18","مجيد ناصر شبيب كمكام الاسدي",null,"متوسطة ","القسم الفني ",null,null,null,null,null,null,"2020-04-02",null,4,null,null,null,null,null,null,null,null,null,"2018-09-09",9]
[{"$f":"SUBTOTAL(3,$E$2:E618)","v":31},null,null,"2010-06-28","محسن خلف بشير حلو ",null,"دون الابتدائية ","شعبة النقل",null,null,null,null,null,null,"2020-04-03",null,4,null,null,null,null,null,null,null,null,null,"2018-09-10",9]
[{"$f":"SUBTOTAL(3,$E$2:E619)","v":31},null,null,"2005-12-05","محسن عبدالامير صبح ابراهيم الفلوجي",null,"بكالوريوس / تقنية هندسة المكائن ","قسم التوزيع",null,null,null,null,null,null,"2020-04-04",null,4,null,null,null,null,null,null,null,null,null,"2018-09-11",9]
[{"$f":"SUBTOTAL(3,$E$2:E620)","v":31},null,null,"2010-12-06","محسن لعيبي باهض موسى المالكي",null,"متوسطة","شعبة التنسيق والمتابعة",null,null,null,null,null,null,"2020-04-05",null,4,null,null,null,null,null,null,null,null,null,"2018-09-12",9]
[{"$f":"SUBTOTAL(3,$E$2:E621)","v":31},null,null,"2013-10-15","محمد ابراهيم خليل ابراهيم العبودي",null,"متوسطة","شعبة النقل",null,null,null,null,null,null,"2020-04-06",null,4,null,null,null,null,null,null,null,null,null,"2018-09-13",9]
[{"$f":"SUBTOTAL(3,$E$2:E622)","v":31},null,null,"2013-01-08","محمد ثابت عمران موسى ال موسى",null,"متوسطة","قسم التوزيع",null,null,null,null,null,null,"2020-04-07",null,4,null,null,null,null,null,null,null,null,null,"2018-09-14",9]
[{"$f":"SUBTOTAL(3,$E$2:E623)","v":31},null,null,"2002-12-24","محمد جاسم علي شرهان  العبود ",null,"معهد نفط / ميكانيك ","قسم التوزيع ",null,null,null,null,null,null,"2020-04-08",null,4,null,null,null,null,null,null,null,null,null,"2018-09-15",9]
[{"$f":"SUBTOTAL(3,$E$2:E624)","v":31},null,null,"1985-10-19","محمد جاسم علي صاغر  الاسدي ",null,"اعدادية / اكاديمية الخليج العربي ","قسم التوزيع",null,null,null,null,null,null,"2020-04-09",null,4,null,null,null,null,null,null,null,null,null,"2018-09-16",9]
[{"$f":"SUBTOTAL(3,$E$2:E625)","v":31},null,null,"2009-10-10","محمد جاسم محمد منصور التميمي ",null,"اعدادية زراعة ","شعبة النقل ",null,null,null,null,null,null,"2020-04-10",null,4,null,null,null,null,null,null,null,null,null,"2018-09-17",9]
[{"$f":"SUBTOTAL(3,$E$2:E626)","v":31},null,null,"1997-12-18","محمد جبر عبود جودة آل زغير",null,"معهد نفط  / تشغيل سيطرة ","شعبة التنسيق والمتابعة",null,null,null,null,null,null,"2020-04-11",null,4,null,null,null,null,null,null,null,null,null,"2018-09-18",9]
[{"$f":"SUBTOTAL(3,$E$2:E627)","v":31},null,null,"1980-04-29","محمد جبر كاظم جودة عيساوي ",null,"دون الابتدائية ","قسم التوزيع ",null,null,null,null,null,null,"2020-04-12",null,4,null,null,null,null,null,null,null,null,null,"2018-09-19",9]
[{"$f":"SUBTOTAL(3,$E$2:E628)","v":31},null,null,"2012-02-16","محمد جواد كاظم خنجر العامري",null,"ابتدائية","قسم التوزيع",null,null,null,null,null,null,"2020-04-13",null,4,null,null,null,null,null,null,null,null,null,"2018-09-20",9]
[{"$f":"SUBTOTAL(3,$E$2:E629)","v":31},null,null,"1987-05-02","محمد حسين علي جواد الخفاف ",null,"بكالوريوس / هندسة كهرباء ","القسم الفني ",null,null,null,null,null,null,"2020-04-14",null,4,null,null,null,null,null,null,null,null,null,"2018-09-21",9]
[{"$f":"SUBTOTAL(3,$E$2:E630)","v":31},null,null,"2013-05-21","محمد حسين محمد كاظم الحيثاني",null,"ابتدائية","قسم التوزيع",null,null,null,null,null,null,"2020-04-15",null,4,null,null,null,null,null,null,null,null,null,"2018-09-22",9]
[{"$f":"SUBTOTAL(3,$E$2:E631)","v":31},null,null,"2009-10-05","محمد خضير حسن كوماني الفتلاوي",null,"معهد تقني / ادارة قانونية","الشعبة القانونية",null,null,null,null,null,null,"2020-04-16",null,4,null,null,null,null,null,null,null,null,null,"2018-09-23",9]
[{"$f":"SUBTOTAL(3,$E$2:E632)","v":31},null,null,"2012-01-24","محمد خضير عباس عبود الفتلاوي",null,"الهندسة الادارية ","وحدة القياس والمعايرة",null,null,null,null,null,null,"2020-04-17",null,4,null,null,null,null,null,null,null,null,null,"2018-09-24",9]
[{"$f":"SUBTOTAL(3,$E$2:E633)","v":31},null,null,"2015-09-01","محمد خليل عزيز عبد عبدالله الفتلاوي ",null,"ابتدائية","القسم الاداري ",null,null,null,null,null,null,"2020-04-18",null,4,null,null,null,null,null,null,null,null,null,"2018-09-25",9]
[{"$f":"SUBTOTAL(3,$E$2:E634)","v":31},null,null,"2013-05-19","محمد راضي حسين عباس ال جواد",null,"دون الابتدائية","شعبة السلامة والاطفاء",null,null,null,null,null,null,"2020-04-19",null,4,null,null,null,null,null,null,null,null,null,"2018-09-26",9]
[{"$f":"SUBTOTAL(3,$E$2:E635)","v":31},null,null,"2009-11-01","محمد رايح كاظم حسين العابدي",null,"ابتدائية","القسم الفني",null,null,null,null,null,null,"2020-04-20",null,4,null,null,null,null,null,null,null,null,null,"2018-09-27",9]
[{"$f":"SUBTOTAL(3,$E$2:E636)","v":31},null,null,"2014-11-02","محمد رحيم حيدر حسين الباكستاني ",null,"متوسطة","القسم الاداري ",null,null,null,null,null,null,"2020-04-21",null,4,null,null,null,null,null,null,null,null,null,"2018-09-28",9]
[{"$f":"SUBTOTAL(3,$E$2:E637)","v":31},null,null,"2015-09-07","محمد رزاق محمد جياد الخفاجي",null,"دون الابتدائية","القسم الفني",null,null,null,null,null,null,"2020-04-22",null,4,null,null,null,null,null,null,null,null,null,"2018-09-29",9]
[{"$f":"SUBTOTAL(3,$E$2:E638)","v":31},null,null,"1995-02-14","محمد رسن ديوان فياض الفرطوسي",null,"معهد نفط / ميكانيك","شعبة النقل",null,null,null,null,null,null,"2020-04-23",null,4,null,null,null,null,null,null,null,null,null,"2018-09-30",9]
[{"$f":"SUBTOTAL(3,$E$2:E639)","v":31},null,null,"2006-07-02","محمد رضا جعفر صادق حسن الحكيم",null,"بكالوريوس / هندسة نفط ","وحدة البيئة",null,null,null,null,null,null,"2020-04-24",null,4,null,null,null,null,null,null,null,null,null,"2018-10-01",10]
[{"$f":"SUBTOTAL(3,$E$2:E640)","v":31},null,null,"2010-05-25","محمد رضا علي عبدالامير فتح الله",null,"بكالوريوس / علوم فيزياء ","وحدة الارشفة الالكترونية",null,null,null,null,null,null,"2020-04-25",null,4,null,null,null,null,null,null,null,null,null,"2018-10-02",10]
[{"$f":"SUBTOTAL(3,$E$2:E641)","v":31},null,null,"2011-08-02","محمد رياض جبار عباس الجليحاوي",null,"ابتدائية","قسم التوزيع",null,null,null,null,null,null,"2020-04-26",null,4,null,null,null,null,null,null,null,null,null,"2018-10-03",10]
[{"$f":"SUBTOTAL(3,$E$2:E642)","v":31},null,null,"2010-03-23","محمد رياض عليوي حوشان آل بديوي",null,"بكالوريوس / علوم حاسبات  ","شعبة تقنية المعلومات ",null,null,null,null,null,null,"2020-04-27",null,{"$f":"VLOOKUP(O642,AA641:AB1370,2,FALSE)","v":4},null,null,null,null,null,null,null,null,null,"2018-10-04",10]
[{"$f":"SUBTOTAL(3,$E$2:E643)","v":31},null,null,"2009-03-01","محمد رياض محمد ابراهيم ال شلواح",null,"كيمياء ","مكتب المفتش العام",null,null,null,null,null,null,"2020-04-28",null,4,null,null,null,null,null,null,null,null,null,"2018-10-05",10]
[{"$f":"SUBTOTAL(3,$E$2:E644)","v":31},null,null,"2007-06-17","محمد صالح مهدي محمد صالح اجنيد",null,"ابتدائية","شعبة السلامة والاطفاء",null,null,null,null,null,null,"2020-04-29",null,4,null,null,null,null,null,null,null,null,null,"2018-10-06",10]
[{"$f":"SUBTOTAL(3,$E$2:E645)","v":32},null,null,"2011-02-23","محمد عباس احمد عبدالرضا الكرافي",null,"متوسطة","شعبة المخازن والمشتريات ",null,null,null,null,null,null,"2020-04-30",null,5,null,null,null,null,null,null,null,null,null,"2018-10-07",10]
[{"$f":"SUBTOTAL(3,$E$2:E646)","v":33},null,null,"2000-12-24","محمد عبدالحسن ناصر حسن المطوري ",null,"ابتدائية","شعبة النقل",null,null,null,null,null,null,"2020-05-01",null,5,null,null,null,null,null,null,null,null,null,"2018-10-08",10]
[{"$f":"SUBTOTAL(3,$E$2:E647)","v":34},null,null,"2010-03-23","محمد عبدالحسين حسن خضر مرزة",null,"بكالوريوس/ ادارة واقتصاد/ محاسبة","قسم الحسابات ",null,null,null,null,null,null,"2020-05-02",null,5,null,null,null,null,null,null,null,null,null,"2018-10-09",10]
[{"$f":"SUBTOTAL(3,$E$2:E648)","v":35},null,null,"2015-10-13","محمد عبدالرحمن صالح مهدي العبدالله",null,"ابتدائية","قسم التوزيع",null,null,null,null,null,null,"2020-05-03",null,5,null,null,null,null,null,null,null,null,null,"2018-10-10",10]
[{"$f":"SUBTOTAL(3,$E$2:E649)","v":36},null,null,"2011-08-29","محمد عبدالرزاق كريم جواد النصراوي",null,"ابتدائية","شعبة المخازن والمشتريات",null,null,null,null,null,null,"2020-05-04",null,5,null,null,null,null,null,null,null,null,null,"2018-10-11",10]
[{"$f":"SUBTOTAL(3,$E$2:E650)","v":37},null,null,"2012-01-24","محمد عبدالرضا سعيد جاسم القصاب ",null,"ابتدائية","شعبة السلامة والاطفاء ",null,null,null,null,null,null,"2020-05-05",null,5,null,null,null,null,null,null,null,null,null,"2018-10-12",10]
[{"$f":"SUBTOTAL(3,$E$2:E651)","v":38},null,null,"2010-08-05","محمد عبدالشهيد جودة زغيرالشجراوي",null,"دون الابتدائية ","شعبة النقل",null,null,null,null,null,null,"2020-05-06",null,5,null,null,null,null,null,null,null,null,null,"2018-10-13",10]
[{"$f":"SUBTOTAL(3,$E$2:E652)","v":39},null,null,"2012-01-25","محمد عبدالعالي محسن علي الموسوي",null,"ابتدائية","القسم الفني",null,null,null,null,null,null,"2020-05-07",null,5,null,null,null,null,null,null,null,null,null,"2018-10-14",10]
[{"$f":"SUBTOTAL(3,$E$2:E653)","v":40},null,null,"2005-12-05","محمد عبدالمحسن عباس  حسن العطوان ",null,"بكالوريوس / هندسة كهرباء ","القسم الفني",null,null,null,null,null,null,"2020-05-08",null,5,null,null,null,null,null,null,null,null,null,"2018-10-15",10]
[{"$f":"SUBTOTAL(3,$E$2:E654)","v":41},null,null,"1979-10-24","محمد عبدوش عجل عرار البديري ",null,"ابتدائية ","القسم الاداري ",null,null,null,null,null,null,"2020-05-09",null,5,null,null,null,null,null,null,null,null,null,"2018-10-16",10]
[{"$f":"SUBTOTAL(3,$E$2:E655)","v":42},null,null,"1998-11-23","محمد عجمي لافي عبد رويح العبيد",null,"اعدادية صناعة / كهرباء ","شعبة الرقابة والتدقيق الداخلي ",null,null,null,null,null,null,"2020-05-10",null,5,null,null,null,null,null,null,null,null,null,"2018-10-17",10]
[{"$f":"SUBTOTAL(3,$E$2:E656)","v":43},null,null,"2012-03-15","محمد عزيز حسين جبرالزبيدي",null,"معهد تقني / ميكانيك / تصنيع معادن","قسم التوزيع",null,null,null,null,null,null,"2020-05-11",null,5,null,null,null,null,null,null,null,null,null,"2018-10-18",10]
[{"$f":"SUBTOTAL(3,$E$2:E657)","v":44},null,null,"2012-07-25","محمد علي حيدر حسون المكرمين",null,"معهد نفط / ميكانيك","القسم الفني",null,null,null,null,null,null,"2020-05-12",null,5,null,null,null,null,null,null,null,null,null,"2018-10-19",10]
[{"$f":"SUBTOTAL(3,$E$2:E658)","v":45},null,null,"2013-05-27","محمد فرهود محسن حمادي ال حمادي",null,"متوسطة","قسم التوزيع",null,null,null,null,null,null,"2020-05-13",null,5,null,null,null,null,null,null,null,null,null,"2018-10-20",10]
[{"$f":"SUBTOTAL(3,$E$2:E659)","v":46},null,null,"2015-03-23","محمد قاسم عبد مهدي الغانمي",null,"معهد / تشغيل وسيطرة","قسم التوزيع",null,null,null,null,null,null,"2020-05-14",null,5,null,null,null,null,null,null,null,null,null,"2018-10-21",10]
[{"$f":"SUBTOTAL(3,$E$2:E660)","v":47},null,null,"2015-05-24","محمد كاظم بداي رهيف زيدي",null,"اعدادية / ادبي ","القسم الفني ",null,null,null,null,null,null,"2020-05-15",null,5,null,null,null,null,null,null,null,null,null,"2018-10-22",10]
[{"$f":"SUBTOTAL(3,$E$2:E661)","v":48},null,null,"2017-08-02","محمد كاظم محمدعلي حمادي العيداني",null,"دون الابتدائية ","شعبة المخازن والمشتريات",null,null,null,null,null,null,"2020-05-16",null,5,null,null,null,null,null,null,null,null,null,"2018-10-23",10]
[{"$f":"SUBTOTAL(3,$E$2:E662)","v":49},null,null,"2009-04-26","محمد كمال محمد علي حسين صدرالدين الشهرستاني ",null,"بكالوريوس / ادارة واقتصاد / ادارة اعمال","شعبة تقنية المعلومات ",null,null,null,null,null,null,"2020-05-17",null,5,null,null,null,null,null,null,null,null,null,"2018-10-24",10]
[{"$f":"SUBTOTAL(3,$E$2:E663)","v":50},null,null,"2006-05-17","محمد مالك عباس علوان العبيدي ",null,"بكالوريوس /هندسة مدني ","القسم الفني ",null,null,null,null,null,null,"2020-05-18",null,5,null,null,null,null,null,null,null,null,null,"2018-10-25",10]
[{"$f":"SUBTOTAL(3,$E$2:E664)","v":51},null,null,"2008-05-26","محمد مكي مهاوي حسن الحسن",null,"اعدادية تجارة","شعبة الرقابة والتدقيق الداخلي ",null,null,null,null,null,null,"2020-05-19",null,5,null,null,null,null,null,null,null,null,null,"2018-10-26",10]
[{"$f":"SUBTOTAL(3,$E$2:E665)","v":52},null,null,"2000-12-04","محمد نوري حسب محمد الموسوي",null,"بكالوريوس / تكييف وتبريد","القسم الفني",null,null,null,null,null,null,"2020-05-20",null,5,null,null,null,null,null,null,null,null,null,"2018-10-27",10]
[{"$f":"SUBTOTAL(3,$E$2:E666)","v":53},null,null,"2006-03-08","محمد هادي عبود عباس ضياء الدين  ",null,"بكالوريوس / هندسة كيمياوية ","شعبة البحوث والسيطرة النوعية",null,null,null,null,null,null,"2020-05-21",null,5,null,null,null,null,null,null,null,null,null,"2018-10-28",10]
[{"$f":"SUBTOTAL(3,$E$2:E667)","v":54},null,null,"2015-05-20","محمد يوسف مهدي علي السيلاوي",null,"اعدادية صناعة / سيارات","شعبة صيانة السيارات الخفيفة والثقيلة",null,null,null,null,null,null,"2020-05-22",null,5,null,null,null,null,null,null,null,null,null,"2018-10-29",10]
[{"$f":"SUBTOTAL(3,$E$2:E668)","v":55},null,null,"2016-12-29","محمدعلي مرتضى عبدالحسين عبود البرغوث ",null,"اعدادية صناعة / كهرباء ","شعبة السلامة والاطفاء ",null,null,null,null,null,null,"2020-05-23",null,5,null,null,null,null,null,null,null,null,null,"2018-10-30",10]
[{"$f":"SUBTOTAL(3,$E$2:E669)","v":56},null,null,"2012-03-20","محمود حميد عباس حسين الحسناوي",null,"ابتدائية","قسم التوزيع",null,null,null,null,null,null,"2020-05-24",null,5,null,null,null,null,null,null,null,null,null,"2018-10-31",10]
[{"$f":"SUBTOTAL(3,$E$2:E670)","v":57},null,null,"2009-01-13","مرتضى سعيد شنشول علوان الجبوري ",null,"بكالوريوس / هندسة مدني ","القسم الفني ",null,null,null,null,null,null,"2020-05-25",null,5,null,null,null,null,null,null,null,null,null,"2018-11-01",11]
[{"$f":"SUBTOTAL(3,$E$2:E671)","v":58},null,null,"2009-10-06","مرتضى عبدالحسين عبود محمود البرغوث",null,"ابتدائية","شعبة النقل",null,null,null,null,null,null,"2020-05-26",null,5,null,null,null,null,null,null,null,null,null,"2018-11-02",11]
[{"$f":"SUBTOTAL(3,$E$2:E672)","v":59},null,null,"2009-04-30","مرتضى محمد حسن مرتضى احمد ال طعمه ",null,"بكالوريوس / قانون","شعبة المولدات",null,null,null,null,null,null,"2020-05-27",null,5,null,null,null,null,null,null,null,null,null,"2018-11-03",11]
[{"$f":"SUBTOTAL(3,$E$2:E673)","v":60},null,null,"2007-06-23","مرتضى محمد عبدالحسين عباس السعدي",null,"بكالوريوس / هندسة كهرباء ","وحدة الكهرباء والغرامات",null,null,null,null,null,null,"2020-05-28",null,5,null,null,null,null,null,null,null,null,null,"2018-11-04",11]
[{"$f":"SUBTOTAL(3,$E$2:E674)","v":61},null,null,"2015-04-13","مساعد كاظم محمد فاضل النقيب",null,"معهد تقني / فسم الميكانيك","قسم الحسابات",null,null,null,null,null,null,"2020-05-29",null,5,null,null,null,null,null,null,null,null,null,"2018-11-05",11]
[{"$f":"SUBTOTAL(3,$E$2:E675)","v":62},null,null,"2010-06-17","مساعد محمد علي مهدي الحفار",null,"ماجستير / هندسة مواد /قسم سيراميك","القسم الفني ",null,null,null,null,null,null,"2020-05-30",null,5,null,null,null,null,null,null,null,null,null,"2018-11-06",11]
[{"$f":"SUBTOTAL(3,$E$2:E676)","v":62},null,null,"2011-01-04","مسلم غانم عبدالعزيز مكي المحنة",null,"معهد نفط / انتاج / القياسات الحقلية","شعبة النقل",null,null,null,null,null,null,"2020-05-31",null,6,null,null,null,null,null,null,null,null,null,"2018-11-07",11]
[{"$f":"SUBTOTAL(3,$E$2:E677)","v":62},null,null,"1992-03-04","مسلم كاظم جاسم علي العلوان",null,"معهد / ميكانيك / مضخات وتوربينات","شعبة المخازن والمشتريات",null,null,null,null,null,null,"2020-06-01",null,6,null,null,null,null,null,null,null,null,null,"2018-11-08",11]
[{"$f":"SUBTOTAL(3,$E$2:E678)","v":62},null,null,"2009-11-01","مصطفى احمد راضي محمد الخياط",null,"ابتدائية","شعبة النقل ",null,null,null,null,null,null,"2020-06-02",null,6,null,null,null,null,null,null,null,null,null,"2018-11-09",11]
[{"$f":"SUBTOTAL(3,$E$2:E679)","v":62},null,null,"2009-01-13","مصطفى جاسم جواد كاظم الدعمي ",null,"بكالوريوس / علوم حياة ","وحدة البيئة",null,null,null,null,null,null,"2020-06-03",null,6,null,null,null,null,null,null,null,null,null,"2018-11-10",11]
[{"$f":"SUBTOTAL(3,$E$2:E680)","v":62},null,null,"2009-01-13","مصطفى عبدالامير ذياب عبدالرضا الخفاجي ",null,"بكالوريوس / علوم حاسبات  ","شعبة الرقابة والتدقيق الداخلي ",null,null,null,null,null,null,"2020-06-04",null,6,null,null,null,null,null,null,null,null,null,"2018-11-11",11]
[{"$f":"SUBTOTAL(3,$E$2:E681)","v":62},null,null,"2013-05-12","مصطفى كاظم عبد حسين العبودي",null,"ابتدائية","قسم التوزيع",null,null,null,null,null,null,"2020-06-05",null,6,null,null,null,null,null,null,null,null,null,"2018-11-12",11]
[{"$f":"SUBTOTAL(3,$E$2:E682)","v":62},null,null,"2010-03-17","مصطفى ناجح مهدي خنياب الميالي",null,"بكالوريوس/ قسم هندسة السيطرة والنظم حاسبات","القسم الفني ",null,null,null,null,null,null,"2020-06-06",null,6,null,null,null,null,null,null,null,null,null,"2018-11-13",11]
[{"$f":"SUBTOTAL(3,$E$2:E683)","v":62},null,null,"2005-09-26","مضر يحيى رسول  حسين حسن الاعرجي",null,"بكالوريوس / هندسة كهرباء ","شعبة المخازن والمشتريات",null,null,null,null,null,null,"2020-06-07",null,6,null,null,null,null,null,null,null,null,null,"2018-11-14",11]
[{"$f":"SUBTOTAL(3,$E$2:E684)","v":62},null,null,"2002-10-27","مظهر عطاالله حسين  علوان السعدي",null,"معهد تقني / كهرباء","وحدة الكلف التخمينية",null,null,null,null,null,null,"2020-06-08",null,6,null,null,null,null,null,null,null,null,null,"2018-11-15",11]
[{"$f":"SUBTOTAL(3,$E$2:E685)","v":62},null,null,"2001-12-29","معتز احمد راضي  محمد الخياط ",null,"معهد نفط / ميكانيك ","القسم الفني ",null,null,null,null,null,null,"2020-06-09",null,6,null,null,null,null,null,null,null,null,null,"2018-11-16",11]
[{"$f":"SUBTOTAL(3,$E$2:E686)","v":62},null,null,"2007-08-07","معز محمود عبدالامير علي الخفاجي",null,"بكالوريوس / هندسة نفط ","شعبة المولدات",null,null,null,null,null,null,"2020-06-10",null,6,null,null,null,null,null,null,null,null,null,"2018-11-17",11]
[{"$f":"SUBTOTAL(3,$E$2:E687)","v":62},null,null,"2014-11-09","معز مهدي سلمان مهدي القطب ",null,"بكالوريوس / بناء وانشاءات","وحدة الكلف التخمينية",null,null,null,null,null,null,"2020-06-11",null,6,null,null,null,null,null,null,null,null,null,"2018-11-18",11]
[{"$f":"SUBTOTAL(3,$E$2:E688)","v":62},null,null,"2013-12-12","منار بدر كاظم كريم مزيداوي",null,"اعدادية / ادبي ","شعبة التنسيق والمتابعة",null,null,null,null,null,null,"2020-06-12",null,6,null,null,null,null,null,null,null,null,null,"2018-11-19",11]
[{"$f":"SUBTOTAL(3,$E$2:E689)","v":62},null,null,"2017-05-21","منتظر محسن حسن جاسم الياسري ",null,"معهد / مضخات وتوربينات ","وحدة القياس والمعايرة",null,null,null,null,null,null,"2020-06-13",null,6,null,null,null,null,null,null,null,null,null,"2018-11-20",11]
[{"$f":"SUBTOTAL(3,$E$2:E690)","v":62},null,null,"2013-06-10","منتهى عبدالكريم عبدالواحد علي العلي",null,"بكالوريوس / قسم اللغة العربية","قسم الحسابات",null,null,null,null,null,null,"2020-06-14",null,6,null,null,null,null,null,null,null,null,null,"2018-11-21",11]
[{"$f":"SUBTOTAL(3,$E$2:E691)","v":62},null,null,"2013-01-14","منذر عباس مطر جواد الميالي",null,"ابتدائية","وحدة الكهرباء والغرامات",null,null,null,null,null,null,"2020-06-15",null,6,null,null,null,null,null,null,null,null,null,"2018-11-22",11]
[{"$f":"SUBTOTAL(3,$E$2:E692)","v":62},null,null,"2004-05-24","منى ناصر حسين  جواد ابو السبح",null,"بكالوريوس / ادارة واقتصاد / اقتصاد","القسم الاداري ",null,null,null,null,null,null,"2020-06-16",null,6,null,null,null,null,null,null,null,null,null,"2018-11-23",11]
[{"$f":"SUBTOTAL(3,$E$2:E693)","v":62},null,null,"2010-06-07","منيب محمد صالح عبد الفتلاوي",null,"معهد تقني / ميكانيك","القسم الاداري",null,null,null,null,null,null,"2020-06-17",null,6,null,null,null,null,null,null,null,null,null,"2018-11-24",11]
[{"$f":"SUBTOTAL(3,$E$2:E694)","v":62},null,null,"2006-02-02","منير عبدالصاحب مهدي عبدالحسين حيدر ",null,"معهد نفط / تبريد وتكيف ","قسم التوزيع ",null,null,null,null,null,null,"2020-06-18",null,6,null,null,null,null,null,null,null,null,null,"2018-11-25",11]
[{"$f":"SUBTOTAL(3,$E$2:E695)","v":62},null,null,"2013-05-14","مها فاضل منصور حسن المنصوري",null,"اعدادية / علمي","قسم التوزيع",null,null,null,null,null,null,"2020-06-19",null,6,null,null,null,null,null,null,null,null,null,"2018-11-26",11]
[{"$f":"SUBTOTAL(3,$E$2:E696)","v":62},null,null,"2009-12-07","مهدي صالح كاظم حيدر الخضير",null,"معهد تقني / محاسبة","شعبة الرقابة والتدقيق الداخلي ",null,null,null,null,null,null,"2020-06-20",null,6,null,null,null,null,null,null,null,null,null,"2018-11-27",11]
[{"$f":"SUBTOTAL(3,$E$2:E697)","v":62},null,null,"1990-09-02","مهدي صالح كريم عبدالله الفرجاوي ",null,"الاكاديمية البحرية / فن البحر","قسم التوزيع ",null,null,null,null,null,null,"2020-06-21",null,6,null,null,null,null,null,null,null,null,null,"2018-11-28",11]
[{"$f":"SUBTOTAL(3,$E$2:E698)","v":62},null,null,"2012-04-16","مهدي عباس محسن علي المنكوشي",null,"اعدادية صناعة / كهرباء ","قسم التوزيع",null,null,null,null,null,null,"2020-06-22",null,6,null,null,null,null,null,null,null,null,null,"2018-11-29",11]
[{"$f":"SUBTOTAL(3,$E$2:E699)","v":62},null,null,"2013-05-20","مهدي ياسر محسن جبل القريشي",null,"اعدادية / ادبي ","قسم التوزيع",null,null,null,null,null,null,"2020-06-23",null,6,null,null,null,null,null,null,null,null,null,"2018-11-30",11]
[{"$f":"SUBTOTAL(3,$E$2:E700)","v":62},null,null,"2009-11-09","مهند صالح عبدالمهدي علي الاسدي",null,"ابتدائية","شعبة السلامة والاطفاء",null,null,null,null,null,null,"2020-06-24",null,6,null,null,null,null,null,null,null,null,null,"2018-12-01",12]
[{"$f":"SUBTOTAL(3,$E$2:E701)","v":62},null,null,"2008-04-16","مهند محمود بهاء الدين محمد باقر الطائي",null,"بكالوريوس / قانون","الشعبة القانونية",null,null,null,null,null,null,"2020-06-25",null,6,null,null,null,null,null,null,null,null,null,"2018-12-02",12]
[{"$f":"SUBTOTAL(3,$E$2:E702)","v":62},null,null,"2015-09-06","مهند يحيى عبدالله علي ال جويبر",null,"دون الابتدائية","شعبة السلامة والاطفاء",null,null,null,null,null,null,"2020-06-26",null,6,null,null,null,null,null,null,null,null,null,"2018-12-03",12]
[{"$f":"SUBTOTAL(3,$E$2:E703)","v":62},null,null,"2009-06-15","مهى كريم عبيد حسين الطائي",null,"بكالوريوس / قانون ","الشعبة القانونية",null,null,null,null,null,null,"2020-06-27",null,6,null,null,null,null,null,null,null,null,null,"2018-12-04",12]
[{"$f":"SUBTOTAL(3,$E$2:E704)","v":62},null,null,"2009-01-13","مهيمن سعد ابوكطيفة سلمان عفلوكي",null,"بكالوريوس / هندسة ميكانيك ","قسم التوزيع",null,null,null,null,null,null,"2020-06-28",null,6,null,null,null,null,null,null,null,null,null,"2018-12-05",12]
[{"$f":"SUBTOTAL(3,$E$2:E705)","v":62},null,null,"2011-08-18","موسى جبار مهدي حسون الزيادي",null,"دون الابتدائية ","قسم التوزيع",null,null,null,null,null,null,"2020-06-29",null,6,null,null,null,null,null,null,null,null,null,"2018-12-06",12]
[{"$f":"SUBTOTAL(3,$E$2:E706)","v":62},null,null,"2012-02-08","موسى هاشم غالي متعب السباهي",null,"دون الابتدائية ","قسم التوزيع",null,null,null,null,null,null,"2020-06-30",null,{"$f":"VLOOKUP(O706,AA705:AB1434,2,FALSE)","v":7},null,null,null,null,null,null,null,null,null,"2018-12-07",12]
[{"$f":"SUBTOTAL(3,$E$2:E707)","v":62},null,null,"2011-07-28","مؤيد خضير حسن سلمان ال برهان",null,"بكالوريوس / علوم كيمياء ","شعبة البحوث والسيطرة النوعية",null,null,null,null,null,null,"2020-07-01",null,7,null,null,null,null,null,null,null,null,null,"2018-12-08",12]
[{"$f":"SUBTOTAL(3,$E$2:E708)","v":62},null,null,"2009-10-06","مؤيد زغير حسين حمادي الشكباني",null,"ابتدائية","القسم الفني",null,null,null,null,null,null,"2020-07-02",null,7,null,null,null,null,null,null,null,null,null,"2018-12-09",12]
[{"$f":"SUBTOTAL(3,$E$2:E709)","v":62},null,null,"2009-10-27","مؤيد عبدالصادق علي حسين المؤمن ",null,"معهد تقني / كهرباء ","القسم الفني ",null,null,null,null,null,null,"2020-07-03",null,7,null,null,null,null,null,null,null,null,null,"2018-12-10",12]
[{"$f":"SUBTOTAL(3,$E$2:E710)","v":62},null,null,"2013-09-30","مؤيد عزيز شنشول علوان الجبوري",null,"ابتدائية","شعبة النقل",null,null,null,null,null,null,"2020-07-04",null,7,null,null,null,null,null,null,null,null,null,"2018-12-11",12]
[{"$f":"SUBTOTAL(3,$E$2:E711)","v":62},null,null,"2010-11-15","ميثاق طالب صاحب هادي النصراوي",null,"ابتدائية","القسم الفني",null,null,null,null,null,null,"2020-07-05",null,7,null,null,null,null,null,null,null,null,null,"2018-12-12",12]
[{"$f":"SUBTOTAL(3,$E$2:E712)","v":62},null,null,"2008-09-27","ميثاق محيسن حسون محيسن النايلي ",null,"بكالوريوس / هندسة السيطرة وحاسبات وبرمجيات","شعبة تقنية المعلومات ",null,null,null,null,null,null,"2020-07-06",null,7,null,null,null,null,null,null,null,null,null,"2018-12-13",12]
[{"$f":"SUBTOTAL(3,$E$2:E713)","v":62},null,null,"2012-01-18","ميثم شمخي خزعل جابر السعدي",null,"معهد تقني / قسم المكائن والمعدات ( سيارات )","شعبة النقل",null,null,null,null,null,null,"2020-07-07",null,7,null,null,null,null,null,null,null,null,null,"2018-12-14",12]
[{"$f":"SUBTOTAL(3,$E$2:E714)","v":62},null,null,"2009-11-01","ميثم طالب عبدالحسين خفي آل عكلة",null,"ابتدائية","شعبة البحوث والسيطرة النوعية",null,null,null,null,null,null,"2020-07-08",null,7,null,null,null,null,null,null,null,null,null,"2018-12-15",12]
[{"$f":"SUBTOTAL(3,$E$2:E715)","v":62},null,null,"2013-01-13","ميثم عباس محمد جاسم القصاب",null,"اعدادية صناعة / كهرباء ","وحدة الارشفة الالكترونية",null,null,null,null,null,null,"2020-07-09",null,7,null,null,null,null,null,null,null,null,null,"2018-12-16",12]
[{"$f":"SUBTOTAL(3,$E$2:E716)","v":62},null,null,"2011-04-06","ميثم عبدالحسن علي جياد ال محمد",null,"ابتدائية","قسم التوزيع",null,null,null,null,null,null,"2020-07-10",null,7,null,null,null,null,null,null,null,null,null,"2018-12-17",12]
[{"$f":"SUBTOTAL(3,$E$2:E717)","v":62},null,null,"2015-05-20","ميثم عبدالحسين عواد عبد الاقرع",null,"اعدادية صناعة / تدفئة وتبريد","شعبة صيانة السيارات الخفيفة والثقيلة",null,null,null,null,null,null,"2020-07-11",null,7,null,null,null,null,null,null,null,null,null,"2018-12-18",12]
[{"$f":"SUBTOTAL(3,$E$2:E718)","v":62},null,null,"2011-07-27","ميثم ناظم مسرهد نون الكريطي",null,"بكالوريوس / هندسة تقنيات السيارات","شعبة صيانة السيارات الخفيفة والثقيلة",null,null,null,null,null,null,"2020-07-12",null,7,null,null,null,null,null,null,null,null,null,"2018-12-19",12]
[{"$f":"SUBTOTAL(3,$E$2:E719)","v":62},null,null,"2006-07-20","ميلاد هاشم حسين علي البطاط",null,"بكالوريوس / هندسة نفط ","شعبة النقل",null,null,null,null,null,null,"2020-07-13",null,7,null,null,null,null,null,null,null,null,null,"2018-12-20",12]
[{"$f":"SUBTOTAL(3,$E$2:E720)","v":62},null,null,"2012-03-05","ناجح عبد جاسم موسى الموسوي",null,"ابتدائية","قسم التوزيع",null,null,null,null,null,null,"2020-07-14",null,7,null,null,null,null,null,null,null,null,null,"2018-12-21",12]
[{"$f":"SUBTOTAL(3,$E$2:E721)","v":62},null,null,"1978-08-01","ناجح عبد حمادي  خفيف الكريطي ",null,"ابتدائية ","شعبة السلامة والاطفاء",null,null,null,null,null,null,"2020-07-15",null,7,null,null,null,null,null,null,null,null,null,"2018-12-22",12]
[{"$f":"SUBTOTAL(3,$E$2:E722)","v":62},null,null,"2013-11-26","ناجح مهدي كاظم اشلاش مويله",null,"ابتدائية","قسم التوزيع",null,null,null,null,null,null,"2020-07-16",null,7,null,null,null,null,null,null,null,null,null,"2018-12-23",12]
[{"$f":"SUBTOTAL(3,$E$2:E723)","v":62},null,null,"1983-08-15","ناجي خلف  حسن  طاهر السيد حسين ",null,"اعدادية / تشغيل فني","قسم التوزيع ",null,null,null,null,null,null,"2020-07-17",null,7,null,null,null,null,null,null,null,null,null,"2018-12-24",12]
[{"$f":"SUBTOTAL(3,$E$2:E724)","v":62},null,null,"1992-03-23","ناجي عبدعلي عبدالله حمود العنيسي",null,"معهد فني / صيدلة ","قسم الحسابات ",null,null,null,null,null,null,"2020-07-18",null,7,null,null,null,null,null,null,null,null,null,"2018-12-25",12]
[{"$f":"SUBTOTAL(3,$E$2:E725)","v":62},null,null,"2002-03-27","ناصر جليل عزيز عبد عبدالله الفتلاوي ",null,"اعدادية / ادبي ","قسم الحسابات ",null,null,null,null,null,null,"2020-07-19",null,7,null,null,null,null,null,null,null,null,null,"2018-12-26",12]
[{"$f":"SUBTOTAL(3,$E$2:E726)","v":62},null,null,"2010-06-28","ناصر حسين ناصر حسين الجبوري",null,"دون الابتدائية ","شعبة النقل",null,null,null,null,null,null,"2020-07-20",null,7,null,null,null,null,null,null,null,null,null,"2018-12-27",12]
[{"$f":"SUBTOTAL(3,$E$2:E727)","v":62},null,null,"2011-03-15","ناظم كاظم خلاوي حيدر الركابي",null,"اعدادية / سيارات","قسم التوزيع",null,null,null,null,null,null,"2020-07-21",null,7,null,null,null,null,null,null,null,null,null,"2018-12-28",12]
[{"$f":"SUBTOTAL(3,$E$2:E728)","v":62},null,null,"1983-04-25","ناظم محمد ضايف مصرع الجبوري ",null,"متوسطة ","قسم التوزيع ",null,null,null,null,null,null,"2020-07-22",null,7,null,null,null,null,null,null,null,null,null,"2018-12-29",12]
[{"$f":"SUBTOTAL(3,$E$2:E729)","v":62},null,null,"2014-11-22","نافع صويح طينة هاشم الياسري",null,"ابتدائية","شعبة المخازن والمشتريات",null,null,null,null,null,null,"2020-07-23",null,7,null,null,null,null,null,null,null,null,null,"2018-12-30",12]
[{"$f":"SUBTOTAL(3,$E$2:E730)","v":62},null,null,"1977-06-15","نبيل عبدالحميد عبدالمجيد محمد التحافي",null,"معهد / ادارة ","قسم التوزيع",null,null,null,null,null,null,"2020-07-24",null,7,null,null,null,null,null,null,null,null,null,"2018-12-31",12]
[{"$f":"SUBTOTAL(3,$E$2:E731)","v":62},null,null,"2011-09-11","نبيل عيسى كاظم خليل العواد",null,"ابتدائية","شعبة السلامة والاطفاء",null,null,null,null,null,null,"2020-07-25",null,7,null,null,null,null,null,null,null,null,null,"2019-01-01",1]
[{"$f":"SUBTOTAL(3,$E$2:E732)","v":62},null,null,"2012-01-30","نبيل نوري سلمان مهدي القطب",null,"ماجستير / علوم الهندسة المدنية","القسم الفني",null,null,null,null,null,null,"2020-07-26",null,7,null,null,null,null,null,null,null,null,null,"2019-01-02",1]
[{"$f":"SUBTOTAL(3,$E$2:E733)","v":62},null,null,"2012-02-21","نجاح مهدي عبود كنيبل الشافعي",null,"دون الابتدائية ","القسم الفني",null,null,null,null,null,null,"2020-07-27",null,7,null,null,null,null,null,null,null,null,null,"2019-01-03",1]
[{"$f":"SUBTOTAL(3,$E$2:E734)","v":62},null,null,"2013-01-08","نجلاء محمد عبدالحر سلمان الربيعي",null,"معهد تقني / محاسبة","شعبة التنسيق والمتابعة",null,null,null,null,null,null,"2020-07-28",null,7,null,null,null,null,null,null,null,null,null,"2019-01-04",1]
[{"$f":"SUBTOTAL(3,$E$2:E735)","v":62},null,null,"2002-08-31","نجم عبد حمدان  حبيب العيساوي",null,"بكالوريوس / هندسة كيمياوية ","وحدة الكهرباء والغرامات",null,null,null,null,null,null,"2020-07-29",null,7,null,null,null,null,null,null,null,null,null,"2019-01-05",1]
[{"$f":"SUBTOTAL(3,$E$2:E736)","v":62},null,null,"2009-07-13","ندى سلطان عبدالكريم حسن الخلف",null,"بكالوريوس / قانون ","الشعبة القانونية ",null,null,null,null,null,null,"2020-07-30",null,7,null,null,null,null,null,null,null,null,null,"2019-01-06",1]
[{"$f":"SUBTOTAL(3,$E$2:E737)","v":62},null,null,"2011-07-28","ندى طالب عبدالحسين عطية الجبوري",null,"بكالوريوس / ادارة واقتصاد / اقتصاد","قسم الحسابات",null,null,null,null,null,null,"2020-07-31",null,8,null,null,null,null,null,null,null,null,null,"2019-01-07",1]
[{"$f":"SUBTOTAL(3,$E$2:E738)","v":62},null,null,"2010-11-10","ندى محمد حصني عرار المنتفك",null,"بكالوريوس /علوم مالية مصرفية ","شعبة الرقابة والتدقيق الداخلي ",null,null,null,null,null,null,"2020-08-01",null,8,null,null,null,null,null,null,null,null,null,"2019-01-08",1]
[{"$f":"SUBTOTAL(3,$E$2:E739)","v":62},null,null,"2006-06-26","نزار جواد جعفر نارس العبودي / السوداني",null,"معهد تقني / ادارة","شعبة تطبيق الموجودات",null,null,null,null,null,null,"2020-08-02",null,8,null,null,null,null,null,null,null,null,null,"2019-01-09",1]
[{"$f":"SUBTOTAL(3,$E$2:E740)","v":62},null,null,"2012-04-11","نزار حسن ناصر حسين الخفاجي",null,"ابتدائية","قسم التوزيع",null,null,null,null,null,null,"2020-08-03",null,8,null,null,null,null,null,null,null,null,null,"2019-01-10",1]
[{"$f":"SUBTOTAL(3,$E$2:E741)","v":62},null,null,"2004-01-11","نزار حسين علي زباري الفياض ",null,"متوسطة ","القسم الاداري ",null,null,null,null,null,null,"2020-08-04",null,8,null,null,null,null,null,null,null,null,null,"2019-01-11",1]
[{"$f":"SUBTOTAL(3,$E$2:E742)","v":62},null,null,"2011-07-28","نزار عذاب جاسم حسن الخزرجي",null,"بكالوريوس / ادارة واقتصاد / ادارة اعمال","قسم الحسابات",null,null,null,null,null,null,"2020-08-05",null,8,null,null,null,null,null,null,null,null,null,"2019-01-12",1]
[{"$f":"SUBTOTAL(3,$E$2:E743)","v":62},null,null,"2006-06-22","نزار كامل محسن سلطان الكعبي ",null,"معهد تقني / مكائن زراعية ","قسم التوزيع ",null,null,null,null,null,null,"2020-08-06",null,8,null,null,null,null,null,null,null,null,null,"2019-01-13",1]
[{"$f":"SUBTOTAL(3,$E$2:E744)","v":62},null,null,"1998-12-15","نزار هاشم جبار حمد السيد نور",null,"معهد تكنلوجيا / ميكانيك","قسم التوزيع",null,null,null,null,null,null,"2020-08-07",null,8,null,null,null,null,null,null,null,null,null,"2019-01-14",1]
[{"$f":"SUBTOTAL(3,$E$2:E745)","v":62},null,null,"2009-01-13","نصير حمزة محمد حمزة العكيلي ",null,"بكالوريوس / هندسة ميكانيك ","القسم الفني",null,null,null,null,null,null,"2020-08-08",null,8,null,null,null,null,null,null,null,null,null,"2019-01-15",1]
[{"$f":"SUBTOTAL(3,$E$2:E746)","v":62},null,null,"2002-12-15","نظير احسان لطيف مجدي الامارة",null,"معهد نفط / تشغيل وسيطرة ","شعبة السلامة والاطفاء",null,null,null,null,null,null,"2020-08-09",null,8,null,null,null,null,null,null,null,null,null,"2019-01-16",1]
[{"$f":"SUBTOTAL(3,$E$2:E747)","v":62},null,null,"2015-03-23","نعمان جواد كاظم حسين الجلابي",null,"معهد / قياس وسيطرة","تنسيب الى التصاريح الامنية",null,null,null,null,null,null,"2020-08-10",null,8,null,null,null,null,null,null,null,null,null,"2019-01-17",1]
[{"$f":"SUBTOTAL(3,$E$2:E748)","v":62},null,null,"2012-02-06","نعمان عجيل علوان جارالله السعدي",null,"ابتدائية","قسم التوزيع",null,null,null,null,null,null,"2020-08-11",null,8,null,null,null,null,null,null,null,null,null,"2019-01-18",1]
[{"$f":"SUBTOTAL(3,$E$2:E749)","v":62},null,null,"1992-01-21","نعمة حيدر حسون احمد الجبوري",null,"معهد نفط / ادارة مواد","وحدة الكهرباء والغرامات",null,null,null,null,null,null,"2020-08-12",null,8,null,null,null,null,null,null,null,null,null,"2019-01-19",1]
[{"$f":"SUBTOTAL(3,$E$2:E750)","v":62},null,null,"2013-01-14","نعمة عبدالحسين حسين عبدالحسن البوايدام",null,"ابتدائية","القسم الفني",null,null,null,null,null,null,"2020-08-13",null,8,null,null,null,null,null,null,null,null,null,"2019-01-20",1]
[{"$f":"SUBTOTAL(3,$E$2:E751)","v":62},null,null,"2013-05-21","نعمة هادي راضي مهدي العامري",null,"ابتدائية","شعبة السلامة والاطفاء",null,null,null,null,null,null,"2020-08-14",null,8,null,null,null,null,null,null,null,null,null,"2019-01-21",1]
[{"$f":"SUBTOTAL(3,$E$2:E752)","v":62},null,null,"2010-05-19","نور عدنان حسين حسن الحكيم",null,"بكالوريوس / قانون ","الشعبة القانونية ",null,null,null,null,null,null,"2020-08-15",null,8,null,null,null,null,null,null,null,null,null,"2019-01-22",1]
[{"$f":"SUBTOTAL(3,$E$2:E753)","v":62},null,null,"2010-06-14","نورس حسون علي عبدالامير العامري",null,"بكالوريوس / فيزياء / مواد صلبة","شعبة تطبيق الموجودات",null,null,null,null,null,null,"2020-08-16",null,8,null,null,null,null,null,null,null,null,null,"2019-01-23",1]
[{"$f":"SUBTOTAL(3,$E$2:E754)","v":62},null,null,"2012-02-26","نؤاس كاظم جلوب فياض الجبوري",null,"معهد تقني / الكترون / اتصالات","قسم التوزيع",null,null,null,null,null,null,"2020-08-17",null,8,null,null,null,null,null,null,null,null,null,"2019-01-24",1]
[{"$f":"SUBTOTAL(3,$E$2:E755)","v":62},null,null,"2012-02-02","هاتف محيل دبعون رمضان شبلاوي",null,"دون الابتدائية ","قسم التوزيع",null,null,null,null,null,null,"2020-08-18",null,8,null,null,null,null,null,null,null,null,null,"2019-01-25",1]
[{"$f":"SUBTOTAL(3,$E$2:E756)","v":62},null,null,"2010-11-28","هادي عبد محمد شاهر الكرافي",null,"دون الابتدائية ","شعبة النقل",null,null,null,null,null,null,"2020-08-19",null,8,null,null,null,null,null,null,null,null,null,"2019-01-26",1]
[{"$f":"SUBTOTAL(3,$E$2:E757)","v":62},null,null,"2013-01-15","هادي مظلوم فنيطل سلطان الكريطي",null,"ابتدائية","شعبة النقل",null,null,null,null,null,null,"2020-08-20",null,8,null,null,null,null,null,null,null,null,null,"2019-01-27",1]
[{"$f":"SUBTOTAL(3,$E$2:E758)","v":62},null,null,"2013-10-30","هاشم جاسم عباس فهد الجبوري ",null,"متوسطة","شعبة السلامة والاطفاء",null,null,null,null,null,null,"2020-08-21",null,8,null,null,null,null,null,null,null,null,null,"2019-01-28",1]
[{"$f":"SUBTOTAL(3,$E$2:E759)","v":62},null,null,"2009-10-06","هاشم دخيل محمد نايف الكيظي",null,"ابتدائية","قسم التوزيع",null,null,null,null,null,null,"2020-08-22",null,8,null,null,null,null,null,null,null,null,null,"2019-01-29",1]
[{"$f":"SUBTOTAL(3,$E$2:E760)","v":62},null,null,"1993-10-11","هاشم عبدالستار هاشم عبدالكريم المياحي ",null,"ابتدائية","شعبة النقل ",null,null,null,null,null,null,"2020-08-23",null,8,null,null,null,null,null,null,null,null,null,"2019-01-30",1]
[{"$f":"SUBTOTAL(3,$E$2:E761)","v":62},null,null,"2014-12-01","هاشم محمد مدلول وادي العبيدي",null,"دون الابتدائية","شعبة صيانة السيارات الخفيفة والثقيلة",null,null,null,null,null,null,"2020-08-24",null,8,null,null,null,null,null,null,null,null,null,"2019-01-31",1]
[{"$f":"SUBTOTAL(3,$E$2:E762)","v":62},null,null,"2014-11-27","هاني غركان سابط  مسير السعيدي",null,"ابتدائية","قسم التوزيع",null,null,null,null,null,null,"2020-08-25",null,8,null,null,null,null,null,null,null,null,null,"2019-02-01",2]
[{"$f":"SUBTOTAL(3,$E$2:E763)","v":62},null,null,"2013-05-22","هاني فالح مهدي صالح المنكوشي",null,"ابتدائية","قسم التوزيع",null,null,null,null,null,null,"2020-08-26",null,8,null,null,null,null,null,null,null,null,null,"2019-02-02",2]
[{"$f":"SUBTOTAL(3,$E$2:E764)","v":62},null,null,"1986-07-06","هدية بارد حمزة عباس العيداني ",null,"ابتدائية ","شعبة المخازن والمشتريات ",null,null,null,null,null,null,"2020-08-27",null,8,null,null,null,null,null,null,null,null,null,"2019-02-03",2]
[{"$f":"SUBTOTAL(3,$E$2:E765)","v":62},null,null,"2006-03-28","هشام راضي كاظم حبيب العليوي",null,"بكالوريوس / قسم الكيمياء","تنسيب الى التصاريح الامنية",null,null,null,null,null,null,"2020-08-28",null,8,null,null,null,null,null,null,null,null,null,"2019-02-04",2]
[{"$f":"SUBTOTAL(3,$E$2:E766)","v":62},null,null,"2011-09-29","هشام عجمي حسن جسمان غانمي",null,"بكالوريوس / هندسة  قسم الحاسبات وتكنلوجيا المعلومات","شعبة النقل ",null,null,null,null,null,null,"2020-08-29",null,8,null,null,null,null,null,null,null,null,null,"2019-02-05",2]
[{"$f":"SUBTOTAL(3,$E$2:E767)","v":62},null,null,"2012-04-11","هشام محمد تقي هاشم ياسر ابوهدمة",null,"ابتدائية","شعبة التنسيق والمتابعة",null,null,null,null,null,null,"2020-08-30",null,8,null,null,null,null,null,null,null,null,null,"2019-02-06",2]
[{"$f":"SUBTOTAL(3,$E$2:E768)","v":62},null,null,"2014-11-09","هشام يحيى رسول حسين الاعرجي",null,"بكالوريوس ادارة واقتصاد /محاسبة","شعبة الرقابة والتدقيق الداخلي ",null,null,null,null,null,null,"2020-08-31",null,9,null,null,null,null,null,null,null,null,null,"2019-02-07",2]
[{"$f":"SUBTOTAL(3,$E$2:E769)","v":62},null,null,"2006-02-01","هيثم شمخي جابر  خضر الاسدي ",null,"بكالوريوس / ادارة واقتصاد / ادارة اعمال","قسم الحسابات",null,null,null,null,null,null,"2020-09-01",null,9,null,null,null,null,null,null,null,null,null,"2019-02-08",2]
[{"$f":"SUBTOTAL(3,$E$2:E770)","v":62},null,null,"2002-05-22","هيثم عباس عاشورعبود الشهبان",null,"بكالوريوس / هندسة نفط ","شعبة البحوث والسيطرة النوعية",null,null,null,null,null,null,"2020-09-02",null,{"$f":"VLOOKUP(O770,AA769:AB1498,2,FALSE)","v":9},null,null,null,null,null,null,null,null,null,"2019-02-09",2]
[{"$f":"SUBTOTAL(3,$E$2:E771)","v":62},null,null,"2010-11-04","هيثم عبدالواحد محيسن شناوة الفتلاوي",null,"معهد تقني / ميكانيك","قسم الحسابات",null,null,null,null,null,null,"2020-09-03",null,9,null,null,null,null,null,null,null,null,null,"2019-02-10",2]
[{"$f":"SUBTOTAL(3,$E$2:E772)","v":62},null,null,"2012-01-23","واثق رشيد حميد هاشم الياسري",null,"ابتدائية","قسم التوزيع",null,null,null,null,null,null,"2020-09-04",null,9,null,null,null,null,null,null,null,null,null,"2019-02-11",2]
[{"$f":"SUBTOTAL(3,$E$2:E773)","v":62},null,null,"2015-07-06","واثق رشيد موسى ابو سودة العبادي ",null,"ابتدائية","قسم التوزيع ",null,null,null,null,null,null,"2020-09-05",null,9,null,null,null,null,null,null,null,null,null,"2019-02-12",2]
[{"$f":"SUBTOTAL(3,$E$2:E774)","v":62},null,null,"2015-05-20","واثق عباس عبدزيد خضير ال عباس",null,"اعدادية صناعة / سيارات","شعبة صيانة السيارات الخفيفة والثقيلة",null,null,null,null,null,null,"2020-09-06",null,9,null,null,null,null,null,null,null,null,null,"2019-02-13",2]
[{"$f":"SUBTOTAL(3,$E$2:E775)","v":62},null,null,"2012-02-06","وائل رشيد حميد هاشم الياسري",null,"ابتدائية","قسم التوزيع",null,null,null,null,null,null,"2020-09-07",null,9,null,null,null,null,null,null,null,null,null,"2019-02-14",2]
[{"$f":"SUBTOTAL(3,$E$2:E776)","v":62},null,null,"2010-11-11","وائل نعمة قاسم سدخان الفتلاوي",null,"معهد تقني / قسم انظمة الحاسبات","شعبة تطبيق الموجودات",null,null,null,null,null,null,"2020-09-08",null,9,null,null,null,null,null,null,null,null,null,"2019-02-15",2]
[{"$f":"SUBTOTAL(3,$E$2:E777)","v":62},null,null,"2012-02-15","وجدان عطوان ياسين خلف التميمي",null,"بكالوريوس / علوم فيزياء ","شعبة تطبيق الموجودات",null,null,null,null,null,null,"2020-09-09",null,9,null,null,null,null,null,null,null,null,null,"2019-02-16",2]
[{"$f":"SUBTOTAL(3,$E$2:E778)","v":62},null,null,"2009-10-04","وسام جبار عباس غضبان الغضبان",null,"متوسطة ","شعبة السلامة والاطفاء",null,null,null,null,null,null,"2020-09-10",null,9,null,null,null,null,null,null,null,null,null,"2019-02-17",2]
[{"$f":"SUBTOTAL(3,$E$2:E779)","v":62},null,null,"2009-09-15","وسام حمد كاظم مهدي الخالدي",null,"بكالوريوس / ادارة واقتصاد / اقتصاد","القسم الاداري",null,null,null,null,null,null,"2020-09-11",null,9,null,null,null,null,null,null,null,null,null,"2019-02-18",2]
[{"$f":"SUBTOTAL(3,$E$2:E780)","v":62},null,null,"2008-08-18","وسام حمزة رومي حسن الفتلاوي",null,"بكالوريوس / هندسة حاسبات  ","شعبة تقنية المعلومات ",null,null,null,null,null,null,"2020-09-12",null,9,null,null,null,null,null,null,null,null,null,"2019-02-19",2]
[{"$f":"SUBTOTAL(3,$E$2:E781)","v":62},null,null,"2012-03-06","وسام عقيل عبدالله سلطان الجعاري",null,"ابتدائية","قسم التوزيع",null,null,null,null,null,null,"2020-09-13",null,9,null,null,null,null,null,null,null,null,null,"2019-02-20",2]
[{"$f":"SUBTOTAL(3,$E$2:E782)","v":62},null,null,"2013-11-19","وسام كريم لطيف حسين الخيكاني",null,"معهد تقني / كهرباء","شعبة التنسيق والمتابعة",null,null,null,null,null,null,"2020-09-14",null,9,null,null,null,null,null,null,null,null,null,"2019-02-21",2]
[{"$f":"SUBTOTAL(3,$E$2:E783)","v":62},null,null,"2012-01-23","وعد محسن حمادي حسين العيداني",null,"ابتدائية","شعبة السلامة والاطفاء",null,null,null,null,null,null,"2020-09-15",null,9,null,null,null,null,null,null,null,null,null,"2019-02-22",2]
[{"$f":"SUBTOTAL(3,$E$2:E784)","v":62},null,null,"2009-01-13","وفاء عبدالمجيد جابر نصيب الجبوري",null,"بكالوريوس / قانون ","الشعبة القانونية ",null,null,null,null,null,null,"2020-09-16",null,9,null,null,null,null,null,null,null,null,null,"2019-02-23",2]
[{"$f":"SUBTOTAL(3,$E$2:E785)","v":62},null,null,"1998-11-26","ولاء طالب جاسم يعقوب  الدليمي",null,"ابتدائية ","قسم التوزيع ",null,null,null,null,null,null,"2020-09-17",null,9,null,null,null,null,null,null,null,null,null,"2019-02-24",2]
[{"$f":"SUBTOTAL(3,$E$2:E786)","v":62},null,null,"2007-06-04","وليد عبدالرزاق خالد كشاش الفتلاوي",null,"بكالوريوس / قانون ","الشعبة القانونية",null,null,null,null,null,null,"2020-09-18",null,9,null,null,null,null,null,null,null,null,null,"2019-02-25",2]
[{"$f":"SUBTOTAL(3,$E$2:E787)","v":62},null,null,"2012-03-05","وليد عبدالسادة عبدالحسن عيدان ال حسين",null,"دون الابتدائية","قسم التوزيع",null,null,null,null,null,null,"2020-09-19",null,9,null,null,null,null,null,null,null,null,null,"2019-02-26",2]
[{"$f":"SUBTOTAL(3,$E$2:E788)","v":62},null,null,"2012-01-23","وليد نجم عبد حسين العامري",null,"ابتدائية","شعبة السلامة والاطفاء",null,null,null,null,null,null,"2020-09-20",null,9,null,null,null,null,null,null,null,null,null,"2019-02-27",2]
[{"$f":"SUBTOTAL(3,$E$2:E789)","v":62},null,null,"2003-01-18","ياس خضير سرحان حسن العمران",null,"بكالوريوس / هندسة نفط ","شعبة صيانة السيارات الخفيفة والثقيلة",null,null,null,null,null,null,"2020-09-21",null,9,null,null,null,null,null,null,null,null,null,"2019-02-28",2]
[{"$f":"SUBTOTAL(3,$E$2:E790)","v":62},null,null,"2007-04-25","ياسر عبدالكريم عبود مهدي البديري",null,"بكالوريوس / علوم كيمياء ","شعبة السلامة والاطفاء",null,null,null,null,null,null,"2020-09-22",null,9,null,null,null,null,null,null,null,null,null,"2019-03-01",3]
[{"$f":"SUBTOTAL(3,$E$2:E791)","v":62},null,null,"2010-03-23","ياسر محمود محمد داود ابوالتمن",null,"بكالوريوس / علوم كيمياء ","شعبة تقنية المعلومات ",null,null,null,null,null,null,"2020-09-23",null,9,null,null,null,null,null,null,null,null,null,"2019-03-02",3]
[{"$f":"SUBTOTAL(3,$E$2:E792)","v":62},null,null,"1994-03-05","ياسين محسن حمادي  حسين العيداني",null,"ابتدائية ","شعبة السلامة والاطفاء",null,null,null,null,null,null,"2020-09-24",null,9,null,null,null,null,null,null,null,null,null,"2019-03-03",3]
[{"$f":"SUBTOTAL(3,$E$2:E793)","v":62},null,null,"2003-02-03","يعرب قحطان رديف عليوي الغزالي",null,"بكالوريوس / علوم كيمياء ","شعبة المولدات ",null,null,null,null,null,null,"2020-09-25",null,9,null,null,null,null,null,null,null,null,null,"2019-03-04",3]
[{"$f":"SUBTOTAL(3,$E$2:E794)","v":62},null,null,"1991-12-17","يوسف احمد علي فهد البارح",null," اعدادية / ميكانيك","قسم التوزيع ",null,null,null,null,null,null,"2020-09-26",null,9,null,null,null,null,null,null,null,null,null,"2019-03-05",3]
[{"$f":"SUBTOTAL(3,$E$2:E795)","v":62},null,null,"2008-03-12","يوسف جابر عبد نور زغير السالمي ",null,"بكالوريوس / ادارة واقتصاد / علوم مالية ومصرفية","قسم الحسابات ",null,null,null,null,null,null,"2020-09-27",null,9,null,null,null,null,null,null,null,null,null,"2019-03-06",3]
[{"$f":"SUBTOTAL(3,$E$2:E796)","v":62},null,null,"2012-09-10","يوسف جعفر حسين جاسم الخطاب",null,"بكالوريوس / هندسة تقنيات السيارات","شعبة صيانة السيارات الخفيفة والثقيلة",null,null,null,null,null,null,"2020-09-28",null,9,null,null,null,null,null,null,null,null,null,"2019-03-07",3]
[{"$f":"SUBTOTAL(3,$E$2:E797)","v":62},null,null,"2013-02-12","يوسف ستار عريبي جبار الربيعي",null,"ابتدائية","القسم الفني ",null,null,null,null,null,null,"2020-09-29",null,9,null,null,null,null,null,null,null,null,null,"2019-03-08",3]
[{"$f":"SUBTOTAL(3,$E$2:E798)","v":62},null,null,"1992-08-01","يوسف عباس عبد خليفة الغانمي ",null,"معهد نفط / معادلة لاعدادية الصناعة / ميكانيك ","قسم التوزيع",null,null,null,null,null,null,"2020-09-30",null,10,null,null,null,null,null,null,null,null,null,"2019-03-09",3]
[{"$f":"SUBTOTAL(3,$E$2:E799)","v":62},null,null,"2011-09-27","يوسف عبدالحسن علي جياد ال محمد",null,"متوسطة ","قسم التوزيع",null,null,null,null,null,null,"2020-10-01",null,10,null,null,null,null,null,null,null,null,null,"2019-03-10",3]
[{"$f":"SUBTOTAL(3,$E$2:E800)","v":62},null,null,"2012-04-12","يوسف هاشم غالي متعب السباهي",null,"متوسطة","قسم التوزيع",null,null,null,null,null,null,"2020-10-02",null,10,null,null,null,null,null,null,null,null,null,"2019-03-11",3]
[null,null,null,null,null,null,null,null,null,null,null,null,null,null,null,null,null,null,null,null,null,null,null,null,null,null,"2019-03-12",3]
[null,null,null,null,null,null,null,null,null,null,null,null,null,null,null,null,null,null,null,null,null,null,null,null,null,null,"2019-03-13",3]
[null,null,null,null,null,null,null,null,null,null,null,null,null,null,null,null,null,null,null,null,null,null,null,null,null,null,"2019-03-14",3]
[null,null,null,null,null,null,null,null,null,null,null,null,null,null,null,null,null,null,null,null,null,null,null,null,null,null,"2019-03-15",3]
[null,null,null,null,null,null,null,null,null,null,null,null,null,null,null,null,null,null,null,null,null,null,null,null,null,null,"2019-03-16",3]
[null,null,null,null,null,null,null,null,null,null,null,null,null,null,null,null,null,null,null,null,null,null,null,null,null,null,"2019-03-17",3]
[null,null,null,null,null,null,null,null,null,null,null,null,null,null,null,null,null,null,null,null,null,null,null,null,null,null,"2019-03-18",3]
[null,null,null,null,null,null,null,null,null,null,null,null,null,null,null,null,null,null,null,null,null,null,null,null,null,null,"2019-03-19",3]
[null,null,null,null,null,null,null,null,null,null,null,null,null,null,null,null,null,null,null,null,null,null,null,null,null,null,"2019-03-20",3]
[null,null,null,null,null,null,null,null,null,null,null,null,null,null,null,null,null,null,null,null,null,null,null,null,null,null,"2019-03-21",3]
[null,null,null,null,null,null,null,null,null,null,null,null,null,null,null,null,null,null,null,null,null,null,null,null,null,null,"2019-03-22",3]
[null,null,null,null,null,null,null,null,null,null,null,null,null,null,null,null,null,null,null,null,null,null,null,null,null,null,"2019-03-23",3]
[null,null,null,null,null,null,null,null,null,null,null,null,null,null,null,null,null,null,null,null,null,null,null,null,null,null,"2019-03-24",3]
[null,null,null,null,null,null,null,null,null,null,null,null,null,null,null,null,null,null,null,null,null,null,null,null,null,null,"2019-03-25",3]
[null,null,null,null,null,null,null,null,null,null,null,null,null,null,null,null,null,null,null,null,null,null,null,null,null,null,"2019-03-26",3]
[null,null,null,null,null,null,null,null,null,null,null,null,null,null,null,null,null,null,null,null,null,null,null,null,null,null,"2019-03-27",3]
[null,null,null,null,null,null,null,null,null,null,null,null,null,null,null,null,null,null,null,null,null,null,null,null,null,null,"2019-03-28",3]
[null,null,null,null,null,null,null,null,null,null,null,null,null,null,null,null,null,null,null,null,null,null,null,null,null,null,"2019-03-29",3]
[null,null,null,null,null,null,null,null,null,null,null,null,null,null,null,null,null,null,null,null,null,null,null,null,null,null,"2019-03-30",3]
[null,null,null,null,null,null,null,null,null,null,null,null,null,null,null,null,null,null,null,null,null,null,null,null,null,null,"2019-03-31",3]
[null,null,null,null,null,null,null,null,null,null,null,null,null,null,null,null,null,null,null,null,null,null,null,null,null,null,"2019-04-01",4]
[null,null,null,null,null,null,null,null,null,null,null,null,null,null,null,null,null,null,null,null,null,null,null,null,null,null,"2019-04-02",4]
[null,null,null,null,null,null,null,null,null,null,null,null,null,null,null,null,null,null,null,null,null,null,null,null,null,null,"2019-04-03",4]
[null,null,null,null,null,null,null,null,null,null,null,null,null,null,null,null,null,null,null,null,null,null,null,null,null,null,"2019-04-04",4]
[null,null,null,null,null,null,null,null,null,null,null,null,null,null,null,null,null,null,null,null,null,null,null,null,null,null,"2019-04-05",4]
[null,null,null,null,null,null,null,null,null,null,null,null,null,null,null,null,null,null,null,null,null,null,null,null,null,null,"2019-04-06",4]
[null,null,null,null,null,null,null,null,null,null,null,null,null,null,null,null,null,null,null,null,null,null,null,null,null,null,"2019-04-07",4]
[null,null,null,null,null,null,null,null,null,null,null,null,null,null,null,null,null,null,null,null,null,null,null,null,null,null,"2019-04-08",4]
[null,null,null,null,null,null,null,null,null,null,null,null,null,null,null,null,null,null,null,null,null,null,null,null,null,null,"2019-04-09",4]
[null,null,null,null,null,null,null,null,null,null,null,null,null,null,null,null,null,null,null,null,null,null,null,null,null,null,"2019-04-10",4]
[null,null,null,null,null,null,null,null,null,null,null,null,null,null,null,null,null,null,null,null,null,null,null,null,null,null,"2019-04-11",4]
[null,null,null,null,null,null,null,null,null,null,null,null,null,null,null,null,null,null,null,null,null,null,null,null,null,null,"2019-04-12",4]
[null,null,null,null,null,null,null,null,null,null,null,null,null,null,null,null,null,null,null,null,null,null,null,null,null,null,"2019-04-13",4]
[null,null,null,null,null,null,null,null,null,null,null,null,null,null,null,null,null,null,null,null,null,null,null,null,null,null,"2019-04-14",4]
[null,null,null,null,null,null,null,null,null,null,null,null,null,null,null,null,null,null,null,null,null,null,null,null,null,null,"2019-04-15",4]
[null,null,null,null,null,null,null,null,null,null,null,null,null,null,null,null,null,null,null,null,null,null,null,null,null,null,"2019-04-16",4]
[null,null,null,null,null,null,null,null,null,null,null,null,null,null,null,null,null,null,null,null,null,null,null,null,null,null,"2019-04-17",4]
[null,null,null,null,null,null,null,null,null,null,null,null,null,null,null,null,null,null,null,null,null,null,null,null,null,null,"2019-04-18",4]
[null,null,null,null,null,null,null,null,null,null,null,null,null,null,null,null,null,null,null,null,null,null,null,null,null,null,"2019-04-19",4]
[null,null,null,null,null,null,null,null,null,null,null,null,null,null,null,null,null,null,null,null,null,null,null,null,null,null,"2019-04-20",4]
[null,null,null,null,null,null,null,null,null,null,null,null,null,null,null,null,null,null,null,null,null,null,null,null,null,null,"2019-04-21",4]
[null,null,null,null,null,null,null,null,null,null,null,null,null,null,null,null,null,null,null,null,null,null,null,null,null,null,"2019-04-22",4]
[null,null,null,null,null,null,null,null,null,null,null,null,null,null,null,null,null,null,null,null,null,null,null,null,null,null,"2019-04-23",4]
[null,null,null,null,null,null,null,null,null,null,null,null,null,null,null,null,null,null,null,null,null,null,null,null,null,null,"2019-04-24",4]
[null,null,null,null,null,null,null,null,null,null,null,null,null,null,null,null,null,null,null,null,null,null,null,null,null,null,"2019-04-25",4]
[null,null,null,null,null,null,null,null,null,null,null,null,null,null,null,null,null,null,null,null,null,null,null,null,null,null,"2019-04-26",4]
[null,null,null,null,null,null,null,null,null,null,null,null,null,null,null,null,null,null,null,null,null,null,null,null,null,null,"2019-04-27",4]
[null,null,null,null,null,null,null,null,null,null,null,null,null,null,null,null,null,null,null,null,null,null,null,null,null,null,"2019-04-28",4]
[null,null,null,null,null,null,null,null,null,null,null,null,null,null,null,null,null,null,null,null,null,null,null,null,null,null,"2019-04-29",4]
[null,null,null,null,null,null,null,null,null,null,null,null,null,null,null,null,null,null,null,null,null,null,null,null,null,null,"2019-04-30",4]
[null,null,null,null,null,null,null,null,null,null,null,null,null,null,null,null,null,null,null,null,null,null,null,null,null,null,"2019-05-01",5]
[null,null,null,null,null,null,null,null,null,null,null,null,null,null,null,null,null,null,null,null,null,null,null,null,null,null,"2019-05-02",5]
[null,null,null,null,null,null,null,null,null,null,null,null,null,null,null,null,null,null,null,null,null,null,null,null,null,null,"2019-05-03",5]
[null,null,null,null,null,null,null,null,null,null,null,null,null,null,null,null,null,null,null,null,null,null,null,null,null,null,"2019-05-04",5]
[null,null,null,null,null,null,null,null,null,null,null,null,null,null,null,null,null,null,null,null,null,null,null,null,null,null,"2019-05-05",5]
[null,null,null,null,null,null,null,null,null,null,null,null,null,null,null,null,null,null,null,null,null,null,null,null,null,null,"2019-05-06",5]
[null,null,null,null,null,null,null,null,null,null,null,null,null,null,null,null,null,null,null,null,null,null,null,null,null,null,"2019-05-07",5]
[null,null,null,null,null,null,null,null,null,null,null,null,null,null,null,null,null,null,null,null,null,null,null,null,null,null,"2019-05-08",5]
[null,null,null,null,null,null,null,null,null,null,null,null,null,null,null,null,null,null,null,null,null,null,null,null,null,null,"2019-05-09",5]
[null,null,null,null,null,null,null,null,null,null,null,null,null,null,null,null,null,null,null,null,null,null,null,null,null,null,"2019-05-10",5]
[null,null,null,null,null,null,null,null,null,null,null,null,null,null,null,null,null,null,null,null,null,null,null,null,null,null,"2019-05-11",5]
[null,null,null,null,null,null,null,null,null,null,null,null,null,null,null,null,null,null,null,null,null,null,null,null,null,null,"2019-05-12",5]
[null,null,null,null,null,null,null,null,null,null,null,null,null,null,null,null,null,null,null,null,null,null,null,null,null,null,"2019-05-13",5]
[null,null,null,null,null,null,null,null,null,null,null,null,null,null,null,null,null,null,null,null,null,null,null,null,null,null,"2019-05-14",5]
[null,null,null,null,null,null,null,null,null,null,null,null,null,null,null,null,null,null,null,null,null,null,null,null,null,null,"2019-05-15",5]
[null,null,null,null,null,null,null,null,null,null,null,null,null,null,null,null,null,null,null,null,null,null,null,null,null,null,"2019-05-16",5]
[null,null,null,null,null,null,null,null,null,null,null,null,null,null,null,null,null,null,null,null,null,null,null,null,null,null,"2019-05-17",5]
[null,null,null,null,null,null,null,null,null,null,null,null,null,null,null,null,null,null,null,null,null,null,null,null,null,null,"2019-05-18",5]
[null,null,null,null,null,null,null,null,null,null,null,null,null,null,null,null,null,null,null,null,null,null,null,null,null,null,"2019-05-19",5]
[null,null,null,null,null,null,null,null,null,null,null,null,null,null,null,null,null,null,null,null,null,null,null,null,null,null,"2019-05-20",5]
[null,null,null,null,null,null,null,null,null,null,null,null,null,null,null,null,null,null,null,null,null,null,null,null,null,null,"2019-05-21",5]
[null,null,null,null,null,null,null,null,null,null,null,null,null,null,null,null,null,null,null,null,null,null,null,null,null,null,"2019-05-22",5]
[null,null,null,null,null,null,null,null,null,null,null,null,null,null,null,null,null,null,null,null,null,null,null,null,null,null,"2019-05-23",5]
[null,null,null,null,null,null,null,null,null,null,null,null,null,null,null,null,null,null,null,null,null,null,null,null,null,null,"2019-05-24",5]
[null,null,null,null,null,null,null,null,null,null,null,null,null,null,null,null,null,null,null,null,null,null,null,null,null,null,"2019-05-25",5]
[null,null,null,null,null,null,null,null,null,null,null,null,null,null,null,null,null,null,null,null,null,null,null,null,null,null,"2019-05-26",5]
[null,null,null,null,null,null,null,null,null,null,null,null,null,null,null,null,null,null,null,null,null,null,null,null,null,null,"2019-05-27",5]
[null,null,null,null,null,null,null,null,null,null,null,null,null,null,null,null,null,null,null,null,null,null,null,null,null,null,"2019-05-28",5]
[null,null,null,null,null,null,null,null,null,null,null,null,null,null,null,null,null,null,null,null,null,null,null,null,null,null,"2019-05-29",5]
[null,null,null,null,null,null,null,null,null,null,null,null,null,null,null,null,null,null,null,null,null,null,null,null,null,null,"2019-05-30",5]
[null,null,null,null,null,null,null,null,null,null,null,null,null,null,null,null,null,null,null,null,null,null,null,null,null,null,"2019-05-31",5]
[null,null,null,null,null,null,null,null,null,null,null,null,null,null,null,null,null,null,null,null,null,null,null,null,null,null,"2019-06-01",6]
[null,null,null,null,null,null,null,null,null,null,null,null,null,null,null,null,null,null,null,null,null,null,null,null,null,null,"2019-06-02",6]
[null,null,null,null,null,null,null,null,null,null,null,null,null,null,null,null,null,null,null,null,null,null,null,null,null,null,"2019-06-03",6]
[null,null,null,null,null,null,null,null,null,null,null,null,null,null,null,null,null,null,null,null,null,null,null,null,null,null,"2019-06-04",6]
[null,null,null,null,null,null,null,null,null,null,null,null,null,null,null,null,null,null,null,null,null,null,null,null,null,null,"2019-06-05",6]
[null,null,null,null,null,null,null,null,null,null,null,null,null,null,null,null,null,null,null,null,null,null,null,null,null,null,"2019-06-06",6]
[null,null,null,null,null,null,null,null,null,null,null,null,null,null,null,null,null,null,null,null,null,null,null,null,null,null,"2019-06-07",6]
[null,null,null,null,null,null,null,null,null,null,null,null,null,null,null,null,null,null,null,null,null,null,null,null,null,null,"2019-06-08",6]
[null,null,null,null,null,null,null,null,null,null,null,null,null,null,null,null,null,null,null,null,null,null,null,null,null,null,"2019-06-09",6]
[null,null,null,null,null,null,null,null,null,null,null,null,null,null,null,null,null,null,null,null,null,null,null,null,null,null,"2019-06-10",6]
[null,null,null,null,null,null,null,null,null,null,null,null,null,null,null,null,null,null,null,null,null,null,null,null,null,null,"2019-06-11",6]
[null,null,null,null,null,null,null,null,null,null,null,null,null,null,null,null,null,null,null,null,null,null,null,null,null,null,"2019-06-12",6]
[null,null,null,null,null,null,null,null,null,null,null,null,null,null,null,null,null,null,null,null,null,null,null,null,null,null,"2019-06-13",6]
[null,null,null,null,null,null,null,null,null,null,null,null,null,null,null,null,null,null,null,null,null,null,null,null,null,null,"2019-06-14",6]
[null,null,null,null,null,null,null,null,null,null,null,null,null,null,null,null,null,null,null,null,null,null,null,null,null,null,"2019-06-15",6]
[null,null,null,null,null,null,null,null,null,null,null,null,null,null,null,null,null,null,null,null,null,null,null,null,null,null,"2019-06-16",6]
[null,null,null,null,null,null,null,null,null,null,null,null,null,null,null,null,null,null,null,null,null,null,null,null,null,null,"2019-06-17",6]
[null,null,null,null,null,null,null,null,null,null,null,null,null,null,null,null,null,null,null,null,null,null,null,null,null,null,"2019-06-18",6]
[null,null,null,null,null,null,null,null,null,null,null,null,null,null,null,null,null,null,null,null,null,null,null,null,null,null,"2019-06-19",6]
[null,null,null,null,null,null,null,null,null,null,null,null,null,null,null,null,null,null,null,null,null,null,null,null,null,null,"2019-06-20",6]
[null,null,null,null,null,null,null,null,null,null,null,null,null,null,null,null,null,null,null,null,null,null,null,null,null,null,"2019-06-21",6]
[null,null,null,null,null,null,null,null,null,null,null,null,null,null,null,null,null,null,null,null,null,null,null,null,null,null,"2019-06-22",6]
[null,null,null,null,null,null,null,null,null,null,null,null,null,null,null,null,null,null,null,null,null,null,null,null,null,null,"2019-06-23",6]
[null,null,null,null,null,null,null,null,null,null,null,null,null,null,null,null,null,null,null,null,null,null,null,null,null,null,"2019-06-24",6]
[null,null,null,null,null,null,null,null,null,null,null,null,null,null,null,null,null,null,null,null,null,null,null,null,null,null,"2019-06-25",6]
[null,null,null,null,null,null,null,null,null,null,null,null,null,null,null,null,null,null,null,null,null,null,null,null,null,null,"2019-06-26",6]
[null,null,null,null,null,null,null,null,null,null,null,null,null,null,null,null,null,null,null,null,null,null,null,null,null,null,"2019-06-27",6]
[null,null,null,null,null,null,null,null,null,null,null,null,null,null,null,null,null,null,null,null,null,null,null,null,null,null,"2019-06-28",6]
[null,null,null,null,null,null,null,null,null,null,null,null,null,null,null,null,null,null,null,null,null,null,null,null,null,null,"2019-06-29",6]
[null,null,null,null,null,null,null,null,null,null,null,null,null,null,null,null,null,null,null,null,null,null,null,null,null,null,"2019-06-30",6]
[null,null,null,null,null,null,null,null,null,null,null,null,null,null,null,null,null,null,null,null,null,null,null,null,null,null,"2019-07-01",7]
[null,null,null,null,null,null,null,null,null,null,null,null,null,null,null,null,null,null,null,null,null,null,null,null,null,null,"2019-07-02",7]
[null,null,null,null,null,null,null,null,null,null,null,null,null,null,null,null,null,null,null,null,null,null,null,null,null,null,"2019-07-03",7]
[null,null,null,null,null,null,null,null,null,null,null,null,null,null,null,null,null,null,null,null,null,null,null,null,null,null,"2019-07-04",7]
[null,null,null,null,null,null,null,null,null,null,null,null,null,null,null,null,null,null,null,null,null,null,null,null,null,null,"2019-07-05",7]
[null,null,null,null,null,null,null,null,null,null,null,null,null,null,null,null,null,null,null,null,null,null,null,null,null,null,"2019-07-06",7]
[null,null,null,null,null,null,null,null,null,null,null,null,null,null,null,null,null,null,null,null,null,null,null,null,null,null,"2019-07-07",7]
[null,null,null,null,null,null,null,null,null,null,null,null,null,null,null,null,null,null,null,null,null,null,null,null,null,null,"2019-07-08",7]
[null,null,null,null,null,null,null,null,null,null,null,null,null,null,null,null,null,null,null,null,null,null,null,null,null,null,"2019-07-09",7]
[null,null,null,null,null,null,null,null,null,null,null,null,null,null,null,null,null,null,null,null,null,null,null,null,null,null,"2019-07-10",7]
[null,null,null,null,null,null,null,null,null,null,null,null,null,null,null,null,null,null,null,null,null,null,null,null,null,null,"2019-07-11",7]
[null,null,null,null,null,null,null,null,null,null,null,null,null,null,null,null,null,null,null,null,null,null,null,null,null,null,"2019-07-12",7]
[null,null,null,null,null,null,null,null,null,null,null,null,null,null,null,null,null,null,null,null,null,null,null,null,null,null,"2019-07-13",7]
[null,null,null,null,null,null,null,null,null,null,null,null,null,null,null,null,null,null,null,null,null,null,null,null,null,null,"2019-07-14",7]
[null,null,null,null,null,null,null,null,null,null,null,null,null,null,null,null,null,null,null,null,null,null,null,null,null,null,"2019-07-15",7]
[null,null,null,null,null,null,null,null,null,null,null,null,null,null,null,null,null,null,null,null,null,null,null,null,null,null,"2019-07-16",7]
[null,null,null,null,null,null,null,null,null,null,null,null,null,null,null,null,null,null,null,null,null,null,null,null,null,null,"2019-07-17",7]
[null,null,null,null,null,null,null,null,null,null,null,null,null,null,null,null,null,null,null,null,null,null,null,null,null,null,"2019-07-18",7]
[null,null,null,null,null,null,null,null,null,null,null,null,null,null,null,null,null,null,null,null,null,null,null,null,null,null,"2019-07-19",7]
[null,null,null,null,null,null,null,null,null,null,null,null,null,null,null,null,null,null,null,null,null,null,null,null,null,null,"2019-07-20",7]
[null,null,null,null,null,null,null,null,null,null,null,null,null,null,null,null,null,null,null,null,null,null,null,null,null,null,"2019-07-21",7]
[null,null,null,null,null,null,null,null,null,null,null,null,null,null,null,null,null,null,null,null,null,null,null,null,null,null,"2019-07-22",7]
[null,null,null,null,null,null,null,null,null,null,null,null,null,null,null,null,null,null,null,null,null,null,null,null,null,null,"2019-07-23",7]
[null,null,null,null,null,null,null,null,null,null,null,null,null,null,null,null,null,null,null,null,null,null,null,null,null,null,"2019-07-24",7]
[null,null,null,null,null,null,null,null,null,null,null,null,null,null,null,null,null,null,null,null,null,null,null,null,null,null,"2019-07-25",7]
[null,null,null,null,null,null,null,null,null,null,null,null,null,null,null,null,null,null,null,null,null,null,null,null,null,null,"2019-07-26",7]
[null,null,null,null,null,null,null,null,null,null,null,null,null,null,null,null,null,null,null,null,null,null,null,null,null,null,"2019-07-27",7]
[null,null,null,null,null,null,null,null,null,null,null,null,null,null,null,null,null,null,null,null,null,null,null,null,null,null,"2019-07-28",7]
[null,null,null,null,null,null,null,null,null,null,null,null,null,null,null,null,null,null,null,null,null,null,null,null,null,null,"2019-07-29",7]
[null,null,null,null,null,null,null,null,null,null,null,null,null,null,null,null,null,null,null,null,null,null,null,null,null,null,"2019-07-30",7]
[null,null,null,null,null,null,null,null,null,null,null,null,null,null,null,null,null,null,null,null,null,null,null,null,null,null,"2019-07-31",7]
[null,null,null,null,null,null,null,null,null,null,null,null,null,null,null,null,null,null,null,null,null,null,null,null,null,null,"2019-08-01",8]
[null,null,null,null,null,null,null,null,null,null,null,null,null,null,null,null,null,null,null,null,null,null,null,null,null,null,"2019-08-02",8]
[null,null,null,null,null,null,null,null,null,null,null,null,null,null,null,null,null,null,null,null,null,null,null,null,null,null,"2019-08-03",8]
[null,null,null,null,null,null,null,null,null,null,null,null,null,null,null,null,null,null,null,null,null,null,null,null,null,null,"2019-08-04",8]
[null,null,null,null,null,null,null,null,null,null,null,null,null,null,null,null,null,null,null,null,null,null,null,null,null,null,"2019-08-05",8]
[null,null,null,null,null,null,null,null,null,null,null,null,null,null,null,null,null,null,null,null,null,null,null,null,null,null,"2019-08-06",8]
[null,null,null,null,null,null,null,null,null,null,null,null,null,null,null,null,null,null,null,null,null,null,null,null,null,null,"2019-08-07",8]
[null,null,null,null,null,null,null,null,null,null,null,null,null,null,null,null,null,null,null,null,null,null,null,null,null,null,"2019-08-08",8]
[null,null,null,null,null,null,null,null,null,null,null,null,null,null,null,null,null,null,null,null,null,null,null,null,null,null,"2019-08-09",8]
[null,null,null,null,null,null,null,null,null,null,null,null,null,null,null,null,null,null,null,null,null,null,null,null,null,null,"2019-08-10",8]
[null,null,null,null,null,null,null,null,null,null,null,null,null,null,null,null,null,null,null,null,null,null,null,null,null,null,"2019-08-11",8]
[null,null,null,null,null,null,null,null,null,null,null,null,null,null,null,null,null,null,null,null,null,null,null,null,null,null,"2019-08-12",8]
[null,null,null,null,null,null,null,null,null,null,null,null,null,null,null,null,null,null,null,null,null,null,null,null,null,null,"2019-08-13",8]
[null,null,null,null,null,null,null,null,null,null,null,null,null,null,null,null,null,null,null,null,null,null,null,null,null,null,"2019-08-14",8]
[null,null,null,null,null,null,null,null,null,null,null,null,null,null,null,null,null,null,null,null,null,null,null,null,null,null,"2019-08-15",8]
[null,null,null,null,null,null,null,null,null,null,null,null,null,null,null,null,null,null,null,null,null,null,null,null,null,null,"2019-08-16",8]
[null,null,null,null,null,null,null,null,null,null,null,null,null,null,null,null,null,null,null,null,null,null,null,null,null,null,"2019-08-17",8]
[null,null,null,null,null,null,null,null,null,null,null,null,null,null,null,null,null,null,null,null,null,null,null,null,null,null,"2019-08-18",8]
[null,null,null,null,null,null,null,null,null,null,null,null,null,null,null,null,null,null,null,null,null,null,null,null,null,null,"2019-08-19",8]
[null,null,null,null,null,null,null,null,null,null,null,null,null,null,null,null,null,null,null,null,null,null,null,null,null,null,"2019-08-20",8]
[null,null,null,null,null,null,null,null,null,null,null,null,null,null,null,null,null,null,null,null,null,null,null,null,null,null,"2019-08-21",8]
[null,null,null,null,null,null,null,null,null,null,null,null,null,null,null,null,null,null,null,null,null,null,null,null,null,null,"2019-08-22",8]
[null,null,null,null,null,null,null,null,null,null,null,null,null,null,null,null,null,null,null,null,null,null,null,null,null,null,"2019-08-23",8]
[null,null,null,null,null,null,null,null,null,null,null,null,null,null,null,null,null,null,null,null,null,null,null,null,null,null,"2019-08-24",8]
[null,null,null,null,null,null,null,null,null,null,null,null,null,null,null,null,null,null,null,null,null,null,null,null,null,null,"2019-08-25",8]
[null,null,null,null,null,null,null,null,null,null,null,null,null,null,null,null,null,null,null,null,null,null,null,null,null,null,"2019-08-26",8]
[null,null,null,null,null,null,null,null,null,null,null,null,null,null,null,null,null,null,null,null,null,null,null,null,null,null,"2019-08-27",8]
[null,null,null,null,null,null,null,null,null,null,null,null,null,null,null,null,null,null,null,null,null,null,null,null,null,null,"2019-08-28",8]
[null,null,null,null,null,null,null,null,null,null,null,null,null,null,null,null,null,null,null,null,null,null,null,null,null,null,"2019-08-29",8]
[null,null,null,null,null,null,null,null,null,null,null,null,null,null,null,null,null,null,null,null,null,null,null,null,null,null,"2019-08-30",8]
[null,null,null,null,null,null,null,null,null,null,null,null,null,null,null,null,null,null,null,null,null,null,null,null,null,null,"2019-08-31",8]
[null,null,null,null,null,null,null,null,null,null,null,null,null,null,null,null,null,null,null,null,null,null,null,null,null,null,"2019-09-01",9]
[null,null,null,null,null,null,null,null,null,null,null,null,null,null,null,null,null,null,null,null,null,null,null,null,null,null,"2019-09-02",9]
[null,null,null,null,null,null,null,null,null,null,null,null,null,null,null,null,null,null,null,null,null,null,null,null,null,null,"2019-09-03",9]
[null,null,null,null,null,null,null,null,null,null,null,null,null,null,null,null,null,null,null,null,null,null,null,null,null,null,"2019-09-04",9]
[null,null,null,null,null,null,null,null,null,null,null,null,null,null,null,null,null,null,null,null,null,null,null,null,null,null,"2019-09-05",9]
[null,null,null,null,null,null,null,null,null,null,null,null,null,null,null,null,null,null,null,null,null,null,null,null,null,null,"2019-09-06",9]
[null,null,null,null,null,null,null,null,null,null,null,null,null,null,null,null,null,null,null,null,null,null,null,null,null,null,"2019-09-07",9]
[null,null,null,null,null,null,null,null,null,null,null,null,null,null,null,null,null,null,null,null,null,null,null,null,null,null,"2019-09-08",9]
[null,null,null,null,null,null,null,null,null,null,null,null,null,null,null,null,null,null,null,null,null,null,null,null,null,null,"2019-09-09",9]
[null,null,null,null,null,null,null,null,null,null,null,null,null,null,null,null,null,null,null,null,null,null,null,null,null,null,"2019-09-10",9]
[null,null,null,null,null,null,null,null,null,null,null,null,null,null,null,null,null,null,null,null,null,null,null,null,null,null,"2019-09-11",9]
[null,null,null,null,null,null,null,null,null,null,null,null,null,null,null,null,null,null,null,null,null,null,null,null,null,null,"2019-09-12",9]
[null,null,null,null,null,null,null,null,null,null,null,null,null,null,null,null,null,null,null,null,null,null,null,null,null,null,"2019-09-13",9]
[null,null,null,null,null,null,null,null,null,null,null,null,null,null,null,null,null,null,null,null,null,null,null,null,null,null,"2019-09-14",9]
[null,null,null,null,null,null,null,null,null,null,null,null,null,null,null,null,null,null,null,null,null,null,null,null,null,null,"2019-09-15",9]
[null,null,null,null,null,null,null,null,null,null,null,null,null,null,null,null,null,null,null,null,null,null,null,null,null,null,"2019-09-16",9]
[null,null,null,null,null,null,null,null,null,null,null,null,null,null,null,null,null,null,null,null,null,null,null,null,null,null,"2019-09-17",9]
[null,null,null,null,null,null,null,null,null,null,null,null,null,null,null,null,null,null,null,null,null,null,null,null,null,null,"2019-09-18",9]
[null,null,null,null,null,null,null,null,null,null,null,null,null,null,null,null,null,null,null,null,null,null,null,null,null,null,"2019-09-19",9]
[null,null,null,null,null,null,null,null,null,null,null,null,null,null,null,null,null,null,null,null,null,null,null,null,null,null,"2019-09-20",9]
[null,null,null,null,null,null,null,null,null,null,null,null,null,null,null,null,null,null,null,null,null,null,null,null,null,null,"2019-09-21",9]
[null,null,null,null,null,null,null,null,null,null,null,null,null,null,null,null,null,null,null,null,null,null,null,null,null,null,"2019-09-22",9]
[null,null,null,null,null,null,null,null,null,null,null,null,null,null,null,null,null,null,null,null,null,null,null,null,null,null,"2019-09-23",9]
[null,null,null,null,null,null,null,null,null,null,null,null,null,null,null,null,null,null,null,null,null,null,null,null,null,null,"2019-09-24",9]
[null,null,null,null,null,null,null,null,null,null,null,null,null,null,null,null,null,null,null,null,null,null,null,null,null,null,"2019-09-25",9]
[null,null,null,null,null,null,null,null,null,null,null,null,null,null,null,null,null,null,null,null,null,null,null,null,null,null,"2019-09-26",9]
[null,null,null,null,null,null,null,null,null,null,null,null,null,null,null,null,null,null,null,null,null,null,null,null,null,null,"2019-09-27",9]
[null,null,null,null,null,null,null,null,null,null,null,null,null,null,null,null,null,null,null,null,null,null,null,null,null,null,"2019-09-28",9]
[null,null,null,null,null,null,null,null,null,null,null,null,null,null,null,null,null,null,null,null,null,null,null,null,null,null,"2019-09-29",9]
[null,null,null,null,null,null,null,null,null,null,null,null,null,null,null,null,null,null,null,null,null,null,null,null,null,null,"2019-09-30",9]
[null,null,null,null,null,null,null,null,null,null,null,null,null,null,null,null,null,null,null,null,null,null,null,null,null,null,"2019-10-01",10]
[null,null,null,null,null,null,null,null,null,null,null,null,null,null,null,null,null,null,null,null,null,null,null,null,null,null,"2019-10-02",10]
[null,null,null,null,null,null,null,null,null,null,null,null,null,null,null,null,null,null,null,null,null,null,null,null,null,null,"2019-10-03",10]
[null,null,null,null,null,null,null,null,null,null,null,null,null,null,null,null,null,null,null,null,null,null,null,null,null,null,"2019-10-04",10]
[null,null,null,null,null,null,null,null,null,null,null,null,null,null,null,null,null,null,null,null,null,null,null,null,null,null,"2019-10-05",10]
[null,null,null,null,null,null,null,null,null,null,null,null,null,null,null,null,null,null,null,null,null,null,null,null,null,null,"2019-10-06",10]
[null,null,null,null,null,null,null,null,null,null,null,null,null,null,null,null,null,null,null,null,null,null,null,null,null,null,"2019-10-07",10]
[null,null,null,null,null,null,null,null,null,null,null,null,null,null,null,null,null,null,null,null,null,null,null,null,null,null,"2019-10-08",10]
[null,null,null,null,null,null,null,null,null,null,null,null,null,null,null,null,null,null,null,null,null,null,null,null,null,null,"2019-10-09",10]
[null,null,null,null,null,null,null,null,null,null,null,null,null,null,null,null,null,null,null,null,null,null,null,null,null,null,"2019-10-10",10]
[null,null,null,null,null,null,null,null,null,null,null,null,null,null,null,null,null,null,null,null,null,null,null,null,null,null,"2019-10-11",10]
[null,null,null,null,null,null,null,null,null,null,null,null,null,null,null,null,null,null,null,null,null,null,null,null,null,null,"2019-10-12",10]
[null,null,null,null,null,null,null,null,null,null,null,null,null,null,null,null,null,null,null,null,null,null,null,null,null,null,"2019-10-13",10]
[null,null,null,null,null,null,null,null,null,null,null,null,null,null,null,null,null,null,null,null,null,null,null,null,null,null,"2019-10-14",10]
[null,null,null,null,null,null,null,null,null,null,null,null,null,null,null,null,null,null,null,null,null,null,null,null,null,null,"2019-10-15",10]
[null,null,null,null,null,null,null,null,null,null,null,null,null,null,null,null,null,null,null,null,null,null,null,null,null,null,"2019-10-16",10]
[null,null,null,null,null,null,null,null,null,null,null,null,null,null,null,null,null,null,null,null,null,null,null,null,null,null,"2019-10-17",10]
[null,null,null,null,null,null,null,null,null,null,null,null,null,null,null,null,null,null,null,null,null,null,null,null,null,null,"2019-10-18",10]
[null,null,null,null,null,null,null,null,null,null,null,null,null,null,null,null,null,null,null,null,null,null,null,null,null,null,"2019-10-19",10]
[null,null,null,null,null,null,null,null,null,null,null,null,null,null,null,null,null,null,null,null,null,null,null,null,null,null,"2019-10-20",10]
[null,null,null,null,null,null,null,null,null,null,null,null,null,null,null,null,null,null,null,null,null,null,null,null,null,null,"2019-10-21",10]
[null,null,null,null,null,null,null,null,null,null,null,null,null,null,null,null,null,null,null,null,null,null,null,null,null,null,"2019-10-22",10]
[null,null,null,null,null,null,null,null,null,null,null,null,null,null,null,null,null,null,null,null,null,null,null,null,null,null,"2019-10-23",10]
[null,null,null,null,null,null,null,null,null,null,null,null,null,null,null,null,null,null,null,null,null,null,null,null,null,null,"2019-10-24",10]
[null,null,null,null,null,null,null,null,null,null,null,null,null,null,null,null,null,null,null,null,null,null,null,null,null,null,"2019-10-25",10]
[null,null,null,null,null,null,null,null,null,null,null,null,null,null,null,null,null,null,null,null,null,null,null,null,null,null,"2019-10-26",10]
[null,null,null,null,null,null,null,null,null,null,null,null,null,null,null,null,null,null,null,null,null,null,null,null,null,null,"2019-10-27",10]
[null,null,null,null,null,null,null,null,null,null,null,null,null,null,null,null,null,null,null,null,null,null,null,null,null,null,"2019-10-28",10]
[null,null,null,null,null,null,null,null,null,null,null,null,null,null,null,null,null,null,null,null,null,null,null,null,null,null,"2019-10-29",10]
[null,null,null,null,null,null,null,null,null,null,null,null,null,null,null,null,null,null,null,null,null,null,null,null,null,null,"2019-10-30",10]
[null,null,null,null,null,null,null,null,null,null,null,null,null,null,null,null,null,null,null,null,null,null,null,null,null,null,"2019-10-31",10]
[null,null,null,null,null,null,null,null,null,null,null,null,null,null,null,null,null,null,null,null,null,null,null,null,null,null,"2019-11-01",11]
[null,null,null,null,null,null,null,null,null,null,null,null,null,null,null,null,null,null,null,null,null,null,null,null,null,null,"2019-11-02",11]
[null,null,null,null,null,null,null,null,null,null,null,null,null,null,null,null,null,null,null,null,null,null,null,null,null,null,"2019-11-03",11]
[null,null,null,null,null,null,null,null,null,null,null,null,null,null,null,null,null,null,null,null,null,null,null,null,null,null,"2019-11-04",11]
[null,null,null,null,null,null,null,null,null,null,null,null,null,null,null,null,null,null,null,null,null,null,null,null,null,null,"2019-11-05",11]
[null,null,null,null,null,null,null,null,null,null,null,null,null,null,null,null,null,null,null,null,null,null,null,null,null,null,"2019-11-06",11]
[null,null,null,null,null,null,null,null,null,null,null,null,null,null,null,null,null,null,null,null,null,null,null,null,null,null,"2019-11-07",11]
[null,null,null,null,null,null,null,null,null,null,null,null,null,null,null,null,null,null,null,null,null,null,null,null,null,null,"2019-11-08",11]
[null,null,null,null,null,null,null,null,null,null,null,null,null,null,null,null,null,null,null,null,null,null,null,null,null,null,"2019-11-09",11]
[null,null,null,null,null,null,null,null,null,null,null,null,null,null,null,null,null,null,null,null,null,null,null,null,null,null,"2019-11-10",11]
[null,null,null,null,null,null,null,null,null,null,null,null,null,null,null,null,null,null,null,null,null,null,null,null,null,null,"2019-11-11",11]
[null,null,null,null,null,null,null,null,null,null,null,null,null,null,null,null,null,null,null,null,null,null,null,null,null,null,"2019-11-12",11]
[null,null,null,null,null,null,null,null,null,null,null,null,null,null,null,null,null,null,null,null,null,null,null,null,null,null,"2019-11-13",11]
[null,null,null,null,null,null,null,null,null,null,null,null,null,null,null,null,null,null,null,null,null,null,null,null,null,null,"2019-11-14",11]
[null,null,null,null,null,null,null,null,null,null,null,null,null,null,null,null,null,null,null,null,null,null,null,null,null,null,"2019-11-15",11]
[null,null,null,null,null,null,null,null,null,null,null,null,null,null,null,null,null,null,null,null,null,null,null,null,null,null,"2019-11-16",11]
[null,null,null,null,null,null,null,null,null,null,null,null,null,null,null,null,null,null,null,null,null,null,null,null,null,null,"2019-11-17",11]
[null,null,null,null,null,null,null,null,null,null,null,null,null,null,null,null,null,null,null,null,null,null,null,null,null,null,"2019-11-18",11]
[null,null,null,null,null,null,null,null,null,null,null,null,null,null,null,null,null,null,null,null,null,null,null,null,null,null,"2019-11-19",11]
[null,null,null,null,null,null,null,null,null,null,null,null,null,null,null,null,null,null,null,null,null,null,null,null,null,null,"2019-11-20",11]
[null,null,null,null,null,null,null,null,null,null,null,null,null,null,null,null,null,null,null,null,null,null,null,null,null,null,"2019-11-21",11]
[null,null,null,null,null,null,null,null,null,null,null,null,null,null,null,null,null,null,null,null,null,null,null,null,null,null,"2019-11-22",11]
[null,null,null,null,null,null,null,null,null,null,null,null,null,null,null,null,null,null,null,null,null,null,null,null,null,null,"2019-11-23",11]
[null,null,null,null,null,null,null,null,null,null,null,null,null,null,null,null,null,null,null,null,null,null,null,null,null,null,"2019-11-24",11]
[null,null,null,null,null,null,null,null,null,null,null,null,null,null,null,null,null,null,null,null,null,null,null,null,null,null,"2019-11-25",11]
[null,null,null,null,null,null,null,null,null,null,null,null,null,null,null,null,null,null,null,null,null,null,null,null,null,null,"2019-11-26",11]
[null,null,null,null,null,null,null,null,null,null,null,null,null,null,null,null,null,null,null,null,null,null,null,null,null,null,"2019-11-27",11]
[null,null,null,null,null,null,null,null,null,null,null,null,null,null,null,null,null,null,null,null,null,null,null,null,null,null,"2019-11-28",11]
[null,null,null,null,null,null,null,null,null,null,null,null,null,null,null,null,null,null,null,null,null,null,null,null,null,null,"2019-11-29",11]
[null,null,null,null,null,null,null,null,null,null,null,null,null,null,null,null,null,null,null,null,null,null,null,null,null,null,"2019-11-30",11]
[null,null,null,null,null,null,null,null,null,null,null,null,null,null,null,null,null,null,null,null,null,null,null,null,null,null,"2019-12-01",12]
[null,null,null,null,null,null,null,null,null,null,null,null,null,null,null,null,null,null,null,null,null,null,null,null,null,null,"2019-12-02",12]
[null,null,null,null,null,null,null,null,null,null,null,null,null,null,null,null,null,null,null,null,null,null,null,null,null,null,"2019-12-03",12]
[null,null,null,null,null,null,null,null,null,null,null,null,null,null,null,null,null,null,null,null,null,null,null,null,null,null,"2019-12-04",12]
[null,null,null,null,null,null,null,null,null,null,null,null,null,null,null,null,null,null,null,null,null,null,null,null,null,null,"2019-12-05",12]
[null,null,null,null,null,null,null,null,null,null,null,null,null,null,null,null,null,null,null,null,null,null,null,null,null,null,"2019-12-06",12]
[null,null,null,null,null,null,null,null,null,null,null,null,null,null,null,null,null,null,null,null,null,null,null,null,null,null,"2019-12-07",12]
[null,null,null,null,null,null,null,null,null,null,null,null,null,null,null,null,null,null,null,null,null,null,null,null,null,null,"2019-12-08",12]
[null,null,null,null,null,null,null,null,null,null,null,null,null,null,null,null,null,null,null,null,null,null,null,null,null,null,"2019-12-09",12]
[null,null,null,null,null,null,null,null,null,null,null,null,null,null,null,null,null,null,null,null,null,null,null,null,null,null,"2019-12-10",12]
[null,null,null,null,null,null,null,null,null,null,null,null,null,null,null,null,null,null,null,null,null,null,null,null,null,null,"2019-12-11",12]
[null,null,null,null,null,null,null,null,null,null,null,null,null,null,null,null,null,null,null,null,null,null,null,null,null,null,"2019-12-12",12]
[null,null,null,null,null,null,null,null,null,null,null,null,null,null,null,null,null,null,null,null,null,null,null,null,null,null,"2019-12-13",12]
[null,null,null,null,null,null,null,null,null,null,null,null,null,null,null,null,null,null,null,null,null,null,null,null,null,null,"2019-12-14",12]
[null,null,null,null,null,null,null,null,null,null,null,null,null,null,null,null,null,null,null,null,null,null,null,null,null,null,"2019-12-15",12]
[null,null,null,null,null,null,null,null,null,null,null,null,null,null,null,null,null,null,null,null,null,null,null,null,null,null,"2019-12-16",12]
[null,null,null,null,null,null,null,null,null,null,null,null,null,null,null,null,null,null,null,null,null,null,null,null,null,null,"2019-12-17",12]
[null,null,null,null,null,null,null,null,null,null,null,null,null,null,null,null,null,null,null,null,null,null,null,null,null,null,"2019-12-18",12]
[null,null,null,null,null,null,null,null,null,null,null,null,null,null,null,null,null,null,null,null,null,null,null,null,null,null,"2019-12-19",12]
[null,null,null,null,null,null,null,null,null,null,null,null,null,null,null,null,null,null,null,null,null,null,null,null,null,null,"2019-12-20",12]
[null,null,null,null,null,null,null,null,null,null,null,null,null,null,null,null,null,null,null,null,null,null,null,null,null,null,"2019-12-21",12]
[null,null,null,null,null,null,null,null,null,null,null,null,null,null,null,null,null,null,null,null,null,null,null,null,null,null,"2019-12-22",12]
[null,null,null,null,null,null,null,null,null,null,null,null,null,null,null,null,null,null,null,null,null,null,null,null,null,null,"2019-12-23",12]
[null,null,null,null,null,null,null,null,null,null,null,null,null,null,null,null,null,null,null,null,null,null,null,null,null,null,"2019-12-24",12]
[null,null,null,null,null,null,null,null,null,null,null,null,null,null,null,null,null,null,null,null,null,null,null,null,null,null,"2019-12-25",12]
[null,null,null,null,null,null,null,null,null,null,null,null,null,null,null,null,null,null,null,null,null,null,null,null,null,null,"2019-12-26",12]
[null,null,null,null,null,null,null,null,null,null,null,null,null,null,null,null,null,null,null,null,null,null,null,null,null,null,"2019-12-27",12]
[null,null,null,null,null,null,null,null,null,null,null,null,null,null,null,null,null,null,null,null,null,null,null,null,null,null,"2019-12-28",12]
[null,null,null,null,null,null,null,null,null,null,null,null,null,null,null,null,null,null,null,null,null,null,null,null,null,null,"2019-12-29",12]
[null,null,null,null,null,null,null,null,null,null,null,null,null,null,null,null,null,null,null,null,null,null,null,null,null,null,"2019-12-30",12]
[null,null,null,null,null,null,null,null,null,null,null,null,null,null,null,null,null,null,null,null,null,null,null,null,null,null,"2019-12-31",12]
[null,null,null,null,null,null,null,null,null,null,null,null,null,null,null,null,null,null,null,null,null,null,null,null,null,null,"2020-01-01",1]
[null,null,null,null,null,null,null,null,null,null,null,null,null,null,null,null,null,null,null,null,null,null,null,null,null,null,"2020-01-02",1]
[null,null,null,null,null,null,null,null,null,null,null,null,null,null,null,null,null,null,null,null,null,null,null,null,null,null,"2020-01-03",1]
[null,null,null,null,null,null,null,null,null,null,null,null,null,null,null,null,null,null,null,null,null,null,null,null,null,null,"2020-01-04",1]
[null,null,null,null,null,null,null,null,null,null,null,null,null,null,null,null,null,null,null,null,null,null,null,null,null,null,"2020-01-05",1]
[null,null,null,null,null,null,null,null,null,null,null,null,null,null,null,null,null,null,null,null,null,null,null,null,null,null,"2020-01-06",1]
[null,null,null,null,null,null,null,null,null,null,null,null,null,null,null,null,null,null,null,null,null,null,null,null,null,null,"2020-01-07",1]
[null,null,null,null,null,null,null,null,null,null,null,null,null,null,null,null,null,null,null,null,null,null,null,null,null,null,"2020-01-08",1]
[null,null,null,null,null,null,null,null,null,null,null,null,null,null,null,null,null,null,null,null,null,null,null,null,null,null,"2020-01-09",1]
[null,null,null,null,null,null,null,null,null,null,null,null,null,null,null,null,null,null,null,null,null,null,null,null,null,null,"2020-01-10",1]
[null,null,null,null,null,null,null,null,null,null,null,null,null,null,null,null,null,null,null,null,null,null,null,null,null,null,"2020-01-11",1]
[null,null,null,null,null,null,null,null,null,null,null,null,null,null,null,null,null,null,null,null,null,null,null,null,null,null,"2020-01-12",1]
[null,null,null,null,null,null,null,null,null,null,null,null,null,null,null,null,null,null,null,null,null,null,null,null,null,null,"2020-01-13",1]
[null,null,null,null,null,null,null,null,null,null,null,null,null,null,null,null,null,null,null,null,null,null,null,null,null,null,"2020-01-14",1]
[null,null,null,null,null,null,null,null,null,null,null,null,null,null,null,null,null,null,null,null,null,null,null,null,null,null,"2020-01-15",1]
[null,null,null,null,null,null,null,null,null,null,null,null,null,null,null,null,null,null,null,null,null,null,null,null,null,null,"2020-01-16",1]
[null,null,null,null,null,null,null,null,null,null,null,null,null,null,null,null,null,null,null,null,null,null,null,null,null,null,"2020-01-17",1]
[null,null,null,null,null,null,null,null,null,null,null,null,null,null,null,null,null,null,null,null,null,null,null,null,null,null,"2020-01-18",1]
[null,null,null,null,null,null,null,null,null,null,null,null,null,null,null,null,null,null,null,null,null,null,null,null,null,null,"2020-01-19",1]
[null,null,null,null,null,null,null,null,null,null,null,null,null,null,null,null,null,null,null,null,null,null,null,null,null,null,"2020-01-20",1]
[null,null,null,null,null,null,null,null,null,null,null,null,null,null,null,null,null,null,null,null,null,null,null,null,null,null,"2020-01-21",1]
[null,null,null,null,null,null,null,null,null,null,null,null,null,null,null,null,null,null,null,null,null,null,null,null,null,null,"2020-01-22",1]
[null,null,null,null,null,null,null,null,null,null,null,null,null,null,null,null,null,null,null,null,null,null,null,null,null,null,"2020-01-23",1]
[null,null,null,null,null,null,null,null,null,null,null,null,null,null,null,null,null,null,null,null,null,null,null,null,null,null,"2020-01-24",1]
[null,null,null,null,null,null,null,null,null,null,null,null,null,null,null,null,null,null,null,null,null,null,null,null,null,null,"2020-01-25",1]
[null,null,null,null,null,null,null,null,null,null,null,null,null,null,null,null,null,null,null,null,null,null,null,null,null,null,"2020-01-26",1]
[null,null,null,null,null,null,null,null,null,null,null,null,null,null,null,null,null,null,null,null,null,null,null,null,null,null,"2020-01-27",1]
[null,null,null,null,null,null,null,null,null,null,null,null,null,null,null,null,null,null,null,null,null,null,null,null,null,null,"2020-01-28",1]
[null,null,null,null,null,null,null,null,null,null,null,null,null,null,null,null,null,null,null,null,null,null,null,null,null,null,"2020-01-29",1]
[null,null,null,null,null,null,null,null,null,null,null,null,null,null,null,null,null,null,null,null,null,null,null,null,null,null,"2020-01-30",1]
[null,null,null,null,null,null,null,null,null,null,null,null,null,null,null,null,null,null,null,null,null,null,null,null,null,null,"2020-01-31",1]
[null,null,null,null,null,null,null,null,null,null,null,null,null,null,null,null,null,null,null,null,null,null,null,null,null,null,"2020-02-01",2]
[null,null,null,null,null,null,null,null,null,null,null,null,null,null,null,null,null,null,null,null,null,null,null,null,null,null,"2020-02-02",2]
[null,null,null,null,null,null,null,null,null,null,null,null,null,null,null,null,null,null,null,null,null,null,null,null,null,null,"2020-02-03",2]
[null,null,null,null,null,null,null,null,null,null,null,null,null,null,null,null,null,null,null,null,null,null,null,null,null,null,"2020-02-04",2]
[null,null,null,null,null,null,null,null,null,null,null,null,null,null,null,null,null,null,null,null,null,null,null,null,null,null,"2020-02-05",2]
[null,null,null,null,null,null,null,null,null,null,null,null,null,null,null,null,null,null,null,null,null,null,null,null,null,null,"2020-02-06",2]
[null,null,null,null,null,null,null,null,null,null,null,null,null,null,null,null,null,null,null,null,null,null,null,null,null,null,"2020-02-07",2]
[null,null,null,null,null,null,null,null,null,null,null,null,null,null,null,null,null,null,null,null,null,null,null,null,null,null,"2020-02-08",2]
[null,null,null,null,null,null,null,null,null,null,null,null,null,null,null,null,null,null,null,null,null,null,null,null,null,null,"2020-02-09",2]
[null,null,null,null,null,null,null,null,null,null,null,null,null,null,null,null,null,null,null,null,null,null,null,null,null,null,"2020-02-10",2]
[null,null,null,null,null,null,null,null,null,null,null,null,null,null,null,null,null,null,null,null,null,null,null,null,null,null,"2020-02-11",2]
[null,null,null,null,null,null,null,null,null,null,null,null,null,null,null,null,null,null,null,null,null,null,null,null,null,null,"2020-02-12",2]
[null,null,null,null,null,null,null,null,null,null,null,null,null,null,null,null,null,null,null,null,null,null,null,null,null,null,"2020-02-13",2]
[null,null,null,null,null,null,null,null,null,null,null,null,null,null,null,null,null,null,null,null,null,null,null,null,null,null,"2020-02-14",2]
[null,null,null,null,null,null,null,null,null,null,null,null,null,null,null,null,null,null,null,null,null,null,null,null,null,null,"2020-02-15",2]
[null,null,null,null,null,null,null,null,null,null,null,null,null,null,null,null,null,null,null,null,null,null,null,null,null,null,"2020-02-16",2]
[null,null,null,null,null,null,null,null,null,null,null,null,null,null,null,null,null,null,null,null,null,null,null,null,null,null,"2020-02-17",2]
[null,null,null,null,null,null,null,null,null,null,null,null,null,null,null,null,null,null,null,null,null,null,null,null,null,null,"2020-02-18",2]
[null,null,null,null,null,null,null,null,null,null,null,null,null,null,null,null,null,null,null,null,null,null,null,null,null,null,"2020-02-19",2]
[null,null,null,null,null,null,null,null,null,null,null,null,null,null,null,null,null,null,null,null,null,null,null,null,null,null,"2020-02-20",2]
[null,null,null,null,null,null,null,null,null,null,null,null,null,null,null,null,null,null,null,null,null,null,null,null,null,null,"2020-02-21",2]
[null,null,null,null,null,null,null,null,null,null,null,null,null,null,null,null,null,null,null,null,null,null,null,null,null,null,"2020-02-22",2]
[null,null,null,null,null,null,null,null,null,null,null,null,null,null,null,null,null,null,null,null,null,null,null,null,null,null,"2020-02-23",2]
[null,null,null,null,null,null,null,null,null,null,null,null,null,null,null,null,null,null,null,null,null,null,null,null,null,null,"2020-02-24",2]
[null,null,null,null,null,null,null,null,null,null,null,null,null,null,null,null,null,null,null,null,null,null,null,null,null,null,"2020-02-25",2]
[null,null,null,null,null,null,null,null,null,null,null,null,null,null,null,null,null,null,null,null,null,null,null,null,null,null,"2020-02-26",2]
[null,null,null,null,null,null,null,null,null,null,null,null,null,null,null,null,null,null,null,null,null,null,null,null,null,null,"2020-02-27",2]
[null,null,null,null,null,null,null,null,null,null,null,null,null,null,null,null,null,null,null,null,null,null,null,null,null,null,"2020-02-28",2]
[null,null,null,null,null,null,null,null,null,null,null,null,null,null,null,null,null,null,null,null,null,null,null,null,null,null,"2020-02-29",3]
[null,null,null,null,null,null,null,null,null,null,null,null,null,null,null,null,null,null,null,null,null,null,null,null,null,null,"2020-03-01",3]
[null,null,null,null,null,null,null,null,null,null,null,null,null,null,null,null,null,null,null,null,null,null,null,null,null,null,"2020-03-02",3]
[null,null,null,null,null,null,null,null,null,null,null,null,null,null,null,null,null,null,null,null,null,null,null,null,null,null,"2020-03-03",3]
[null,null,null,null,null,null,null,null,null,null,null,null,null,null,null,null,null,null,null,null,null,null,null,null,null,null,"2020-03-04",3]
[null,null,null,null,null,null,null,null,null,null,null,null,null,null,null,null,null,null,null,null,null,null,null,null,null,null,"2020-03-05",3]
[null,null,null,null,null,null,null,null,null,null,null,null,null,null,null,null,null,null,null,null,null,null,null,null,null,null,"2020-03-06",3]
[null,null,null,null,null,null,null,null,null,null,null,null,null,null,null,null,null,null,null,null,null,null,null,null,null,null,"2020-03-07",3]
[null,null,null,null,null,null,null,null,null,null,null,null,null,null,null,null,null,null,null,null,null,null,null,null,null,null,"2020-03-08",3]
[null,null,null,null,null,null,null,null,null,null,null,null,null,null,null,null,null,null,null,null,null,null,null,null,null,null,"2020-03-09",3]
[null,null,null,null,null,null,null,null,null,null,null,null,null,null,null,null,null,null,null,null,null,null,null,null,null,null,"2020-03-10",3]
[null,null,null,null,null,null,null,null,null,null,null,null,null,null,null,null,null,null,null,null,null,null,null,null,null,null,"2020-03-11",3]
[null,null,null,null,null,null,null,null,null,null,null,null,null,null,null,null,null,null,null,null,null,null,null,null,null,null,"2020-03-12",3]
[null,null,null,null,null,null,null,null,null,null,null,null,null,null,null,null,null,null,null,null,null,null,null,null,null,null,"2020-03-13",3]
[null,null,null,null,null,null,null,null,null,null,null,null,null,null,null,null,null,null,null,null,null,null,null,null,null,null,"2020-03-14",3]
[null,null,null,null,null,null,null,null,null,null,null,null,null,null,null,null,null,null,null,null,null,null,null,null,null,null,"2020-03-15",3]
[null,null,null,null,null,null,null,null,null,null,null,null,null,null,null,null,null,null,null,null,null,null,null,null,null,null,"2020-03-16",3]
[null,null,null,null,null,null,null,null,null,null,null,null,null,null,null,null,null,null,null,null,null,null,null,null,null,null,"2020-03-17",3]
[null,null,null,null,null,null,null,null,null,null,null,null,null,null,null,null,null,null,null,null,null,null,null,null,null,null,"2020-03-18",3]
[null,null,null,null,null,null,null,null,null,null,null,null,null,null,null,null,null,null,null,null,null,null,null,null,null,null,"2020-03-19",3]
[null,null,null,null,null,null,null,null,null,null,null,null,null,null,null,null,null,null,null,null,null,null,null,null,null,null,"2020-03-20",3]
[null,null,null,null,null,null,null,null,null,null,null,null,null,null,null,null,null,null,null,null,null,null,null,null,null,null,"2020-03-21",3]
[null,null,null,null,null,null,null,null,null,null,null,null,null,null,null,null,null,null,null,null,null,null,null,null,null,null,"2020-03-22",3]
[null,null,null,null,null,null,null,null,null,null,null,null,null,null,null,null,null,null,null,null,null,null,null,null,null,null,"2020-03-23",3]
[null,null,null,null,null,null,null,null,null,null,null,null,null,null,null,null,null,null,null,null,null,null,null,null,null,null,"2020-03-24",3]
[null,null,null,null,null,null,null,null,null,null,null,null,null,null,null,null,null,null,null,null,null,null,null,null,null,null,"2020-03-25",3]
[null,null,null,null,null,null,null,null,null,null,null,null,null,null,null,null,null,null,null,null,null,null,null,null,null,null,"2020-03-26",3]
[null,null,null,null,null,null,null,null,null,null,null,null,null,null,null,null,null,null,null,null,null,null,null,null,null,null,"2020-03-27",3]
[null,null,null,null,null,null,null,null,null,null,null,null,null,null,null,null,null,null,null,null,null,null,null,null,null,null,"2020-03-28",3]
[null,null,null,null,null,null,null,null,null,null,null,null,null,null,null,null,null,null,null,null,null,null,null,null,null,null,"2020-03-29",3]
[null,null,null,null,null,null,null,null,null,null,null,null,null,null,null,null,null,null,null,null,null,null,null,null,null,null,"2020-03-30",3]
[null,null,null,null,null,null,null,null,null,null,null,null,null,null,null,null,null,null,null,null,null,null,null,null,null,null,"2020-03-31",4]
[null,null,null,null,null,null,null,null,null,null,null,null,null,null,null,null,null,null,null,null,null,null,null,null,null,null,"2020-04-01",4]
[null,null,null,null,null,null,null,null,null,null,null,null,null,null,null,null,null,null,null,null,null,null,null,null,null,null,"2020-04-02",4]
[null,null,null,null,null,null,null,null,null,null,null,null,null,null,null,null,null,null,null,null,null,null,null,null,null,null,"2020-04-03",4]
[null,null,null,null,null,null,null,null,null,null,null,null,null,null,null,null,null,null,null,null,null,null,null,null,null,null,"2020-04-04",4]
[null,null,null,null,null,null,null,null,null,null,null,null,null,null,null,null,null,null,null,null,null,null,null,null,null,null,"2020-04-05",4]
[null,null,null,null,null,null,null,null,null,null,null,null,null,null,null,null,null,null,null,null,null,null,null,null,null,null,"2020-04-06",4]
[null,null,null,null,null,null,null,null,null,null,null,null,null,null,null,null,null,null,null,null,null,null,null,null,null,null,"2020-04-07",4]
[null,null,null,null,null,null,null,null,null,null,null,null,null,null,null,null,null,null,null,null,null,null,null,null,null,null,"2020-04-08",4]
[null,null,null,null,null,null,null,null,null,null,null,null,null,null,null,null,null,null,null,null,null,null,null,null,null,null,"2020-04-09",4]
[null,null,null,null,null,null,null,null,null,null,null,null,null,null,null,null,null,null,null,null,null,null,null,null,null,null,"2020-04-10",4]
[null,null,null,null,null,null,null,null,null,null,null,null,null,null,null,null,null,null,null,null,null,null,null,null,null,null,"2020-04-11",4]
[null,null,null,null,null,null,null,null,null,null,null,null,null,null,null,null,null,null,null,null,null,null,null,null,null,null,"2020-04-12",4]
[null,null,null,null,null,null,null,null,null,null,null,null,null,null,null,null,null,null,null,null,null,null,null,null,null,null,"2020-04-13",4]
[null,null,null,null,null,null,null,null,null,null,null,null,null,null,null,null,null,null,null,null,null,null,null,null,null,null,"2020-04-14",4]
[null,null,null,null,null,null,null,null,null,null,null,null,null,null,null,null,null,null,null,null,null,null,null,null,null,null,"2020-04-15",4]
[null,null,null,null,null,null,null,null,null,null,null,null,null,null,null,null,null,null,null,null,null,null,null,null,null,null,"2020-04-16",4]
[null,null,null,null,null,null,null,null,null,null,null,null,null,null,null,null,null,null,null,null,null,null,null,null,null,null,"2020-04-17",4]
[null,null,null,null,null,null,null,null,null,null,null,null,null,null,null,null,null,null,null,null,null,null,null,null,null,null,"2020-04-18",4]
[null,null,null,null,null,null,null,null,null,null,null,null,null,null,null,null,null,null,null,null,null,null,null,null,null,null,"2020-04-19",4]
[null,null,null,null,null,null,null,null,null,null,null,null,null,null,null,null,null,null,null,null,null,null,null,null,null,null,"2020-04-20",4]
[null,null,null,null,null,null,null,null,null,null,null,null,null,null,null,null,null,null,null,null,null,null,null,null,null,null,"2020-04-21",4]
[null,null,null,null,null,null,null,null,null,null,null,null,null,null,null,null,null,null,null,null,null,null,null,null,null,null,"2020-04-22",4]
[null,null,null,null,null,null,null,null,null,null,null,null,null,null,null,null,null,null,null,null,null,null,null,null,null,null,"2020-04-23",4]
[null,null,null,null,null,null,null,null,null,null,null,null,null,null,null,null,null,null,null,null,null,null,null,null,null,null,"2020-04-24",4]
[null,null,null,null,null,null,null,null,null,null,null,null,null,null,null,null,null,null,null,null,null,null,null,null,null,null,"2020-04-25",4]
[null,null,null,null,null,null,null,null,null,null,null,null,null,null,null,null,null,null,null,null,null,null,null,null,null,null,"2020-04-26",4]
[null,null,null,null,null,null,null,null,null,null,null,null,null,null,null,null,null,null,null,null,null,null,null,null,null,null,"2020-04-27",4]
[null,null,null,null,null,null,null,null,null,null,null,null,null,null,null,null,null,null,null,null,null,null,null,null,null,null,"2020-04-28",4]
[null,null,null,null,null,null,null,null,null,null,null,null,null,null,null,null,null,null,null,null,null,null,null,null,null,null,"2020-04-29",4]
[null,null,null,null,null,null,null,null,null,null,null,null,null,null,null,null,null,null,null,null,null,null,null,null,null,null,"2020-04-30",5]
[null,null,null,null,null,null,null,null,null,null,null,null,null,null,null,null,null,null,null,null,null,null,null,null,null,null,"2020-05-01",5]
[null,null,null,null,null,null,null,null,null,null,null,null,null,null,null,null,null,null,null,null,null,null,null,null,null,null,"2020-05-02",5]
[null,null,null,null,null,null,null,null,null,null,null,null,null,null,null,null,null,null,null,null,null,null,null,null,null,null,"2020-05-03",5]
[null,null,null,null,null,null,null,null,null,null,null,null,null,null,null,null,null,null,null,null,null,null,null,null,null,null,"2020-05-04",5]
[null,null,null,null,null,null,null,null,null,null,null,null,null,null,null,null,null,null,null,null,null,null,null,null,null,null,"2020-05-05",5]
[null,null,null,null,null,null,null,null,null,null,null,null,null,null,null,null,null,null,null,null,null,null,null,null,null,null,"2020-05-06",5]
[null,null,null,null,null,null,null,null,null,null,null,null,null,null,null,null,null,null,null,null,null,null,null,null,null,null,"2020-05-07",5]
[null,null,null,null,null,null,null,null,null,null,null,null,null,null,null,null,null,null,null,null,null,null,null,null,null,null,"2020-05-08",5]
[null,null,null,null,null,null,null,null,null,null,null,null,null,null,null,null,null,null,null,null,null,null,null,null,null,null,"2020-05-09",5]
[null,null,null,null,null,null,null,null,null,null,null,null,null,null,null,null,null,null,null,null,null,null,null,null,null,null,"2020-05-10",5]
[null,null,null,null,null,null,null,null,null,null,null,null,null,null,null,null,null,null,null,null,null,null,null,null,null,null,"2020-05-11",5]
[null,null,null,null,null,null,null,null,null,null,null,null,null,null,null,null,null,null,null,null,null,null,null,null,null,null,"2020-05-12",5]
[null,null,null,null,null,null,null,null,null,null,null,null,null,null,null,null,null,null,null,null,null,null,null,null,null,null,"2020-05-13",5]
[null,null,null,null,null,null,null,null,null,null,null,null,null,null,null,null,null,null,null,null,null,null,null,null,null,null,"2020-05-14",5]
[null,null,null,null,null,null,null,null,null,null,null,null,null,null,null,null,null,null,null,null,null,null,null,null,null,null,"2020-05-15",5]
[null,null,null,null,null,null,null,null,null,null,null,null,null,null,null,null,null,null,null,null,null,null,null,null,null,null,"2020-05-16",5]
[null,null,null,null,null,null,null,null,null,null,null,null,null,null,null,null,null,null,null,null,null,null,null,null,null,null,"2020-05-17",5]
[null,null,null,null,null,null,null,null,null,null,null,null,null,null,null,null,null,null,null,null,null,null,null,null,null,null,"2020-05-18",5]
[null,null,null,null,null,null,null,null,null,null,null,null,null,null,null,null,null,null,null,null,null,null,null,null,null,null,"2020-05-19",5]
[null,null,null,null,null,null,null,null,null,null,null,null,null,null,null,null,null,null,null,null,null,null,null,null,null,null,"2020-05-20",5]
[null,null,null,null,null,null,null,null,null,null,null,null,null,null,null,null,null,null,null,null,null,null,null,null,null,null,"2020-05-21",5]
[null,null,null,null,null,null,null,null,null,null,null,null,null,null,null,null,null,null,null,null,null,null,null,null,null,null,"2020-05-22",5]
[null,null,null,null,null,null,null,null,null,null,null,null,null,null,null,null,null,null,null,null,null,null,null,null,null,null,"2020-05-23",5]
[null,null,null,null,null,null,null,null,null,null,null,null,null,null,null,null,null,null,null,null,null,null,null,null,null,null,"2020-05-24",5]
[null,null,null,null,null,null,null,null,null,null,null,null,null,null,null,null,null,null,null,null,null,null,null,null,null,null,"2020-05-25",5]
[null,null,null,null,null,null,null,null,null,null,null,null,null,null,null,null,null,null,null,null,null,null,null,null,null,null,"2020-05-26",5]
[null,null,null,null,null,null,null,null,null,null,null,null,null,null,null,null,null,null,null,null,null,null,null,null,null,null,"2020-05-27",5]
[null,null,null,null,null,null,null,null,null,null,null,null,null,null,null,null,null,null,null,null,null,null,null,null,null,null,"2020-05-28",5]
[null,null,null,null,null,null,null,null,null,null,null,null,null,null,null,null,null,null,null,null,null,null,null,null,null,null,"2020-05-29",5]
[null,null,null,null,null,null,null,null,null,null,null,null,null,null,null,null,null,null,null,null,null,null,null,null,null,null,"2020-05-30",5]
[null,null,null,null,null,null,null,null,null,null,null,null,null,null,null,null,null,null,null,null,null,null,null,null,null,null,"2020-05-31",6]
[null,null,null,null,null,null,null,null,null,null,null,null,null,null,null,null,null,null,null,null,null,null,null,null,null,null,"2020-06-01",6]
[null,null,null,null,null,null,null,null,null,null,null,null,null,null,null,null,null,null,null,null,null,null,null,null,null,null,"2020-06-02",6]
[null,null,null,null,null,null,null,null,null,null,null,null,null,null,null,null,null,null,null,null,null,null,null,null,null,null,"2020-06-03",6]
[null,null,null,null,null,null,null,null,null,null,null,null,null,null,null,null,null,null,null,null,null,null,null,null,null,null,"2020-06-04",6]
[null,null,null,null,null,null,null,null,null,null,null,null,null,null,null,null,null,null,null,null,null,null,null,null,null,null,"2020-06-05",6]
[null,null,null,null,null,null,null,null,null,null,null,null,null,null,null,null,null,null,null,null,null,null,null,null,null,null,"2020-06-06",6]
[null,null,null,null,null,null,null,null,null,null,null,null,null,null,null,null,null,null,null,null,null,null,null,null,null,null,"2020-06-07",6]
[null,null,null,null,null,null,null,null,null,null,null,null,null,null,null,null,null,null,null,null,null,null,null,null,null,null,"2020-06-08",6]
[null,null,null,null,null,null,null,null,null,null,null,null,null,null,null,null,null,null,null,null,null,null,null,null,null,null,"2020-06-09",6]
[null,null,null,null,null,null,null,null,null,null,null,null,null,null,null,null,null,null,null,null,null,null,null,null,null,null,"2020-06-10",6]
[null,null,null,null,null,null,null,null,null,null,null,null,null,null,null,null,null,null,null,null,null,null,null,null,null,null,"2020-06-11",6]
[null,null,null,null,null,null,null,null,null,null,null,null,null,null,null,null,null,null,null,null,null,null,null,null,null,null,"2020-06-12",6]
[null,null,null,null,null,null,null,null,null,null,null,null,null,null,null,null,null,null,null,null,null,null,null,null,null,null,"2020-06-13",6]
[null,null,null,null,null,null,null,null,null,null,null,null,null,null,null,null,null,null,null,null,null,null,null,null,null,null,"2020-06-14",6]
[null,null,null,null,null,null,null,null,null,null,null,null,null,null,null,null,null,null,null,null,null,null,null,null,null,null,"2020-06-15",6]
[null,null,null,null,null,null,null,null,null,null,null,null,null,null,null,null,null,null,null,null,null,null,null,null,null,null,"2020-06-16",6]
[null,null,null,null,null,null,null,null,null,null,null,null,null,null,null,null,null,null,null,null,null,null,null,null,null,null,"2020-06-17",6]
[null,null,null,null,null,null,null,null,null,null,null,null,null,null,null,null,null,null,null,null,null,null,null,null,null,null,"2020-06-18",6]
[null,null,null,null,null,null,null,null,null,null,null,null,null,null,null,null,null,null,null,null,null,null,null,null,null,null,"2020-06-19",6]
[null,null,null,null,null,null,null,null,null,null,null,null,null,null,null,null,null,null,null,null,null,null,null,null,null,null,"2020-06-20",6]
[null,null,null,null,null,null,null,null,null,null,null,null,null,null,null,null,null,null,null,null,null,null,null,null,null,null,"2020-06-21",6]
[null,null,null,null,null,null,null,null,null,null,null,null,null,null,null,null,null,null,null,null,null,null,null,null,null,null,"2020-06-22",6]
[null,null,null,null,null,null,null,null,null,null,null,null,null,null,null,null,null,null,null,null,null,null,null,null,null,null,"2020-06-23",6]
[null,null,null,null,null,null,null,null,null,null,null,null,null,null,null,null,null,null,null,null,null,null,null,null,null,null,"2020-06-24",6]
[null,null,null,null,null,null,null,null,null,null,null,null,null,null,null,null,null,null,null,null,null,null,null,null,null,null,"2020-06-25",6]
[null,null,null,null,null,null,null,null,null,null,null,null,null,null,null,null,null,null,null,null,null,null,null,null,null,null,"2020-06-26",6]
[null,null,null,null,null,null,null,null,null,null,null,null,null,null,null,null,null,null,null,null,null,null,null,null,null,null,"2020-06-27",6]
[null,null,null,null,null,null,null,null,null,null,null,null,null,null,null,null,null,null,null,null,null,null,null,null,null,null,"2020-06-28",6]
[null,null,null,null,null,null,null,null,null,null,null,null,null,null,null,null,null,null,null,null,null,null,null,null,null,null,"2020-06-29",6]
[null,null,null,null,null,null,null,null,null,null,null,null,null,null,null,null,null,null,null,null,null,null,null,null,null,null,"2020-06-30",7]
[null,null,null,null,null,null,null,null,null,null,null,null,null,null,null,null,null,null,null,null,null,null,null,null,null,null,"2020-07-01",7]
[null,null,null,null,null,null,null,null,null,null,null,null,null,null,null,null,null,null,null,null,null,null,null,null,null,null,"2020-07-02",7]
[null,null,null,null,null,null,null,null,null,null,null,null,null,null,null,null,null,null,null,null,null,null,null,null,null,null,"2020-07-03",7]
[null,null,null,null,null,null,null,null,null,null,null,null,null,null,null,null,null,null,null,null,null,null,null,null,null,null,"2020-07-04",7]
[null,null,null,null,null,null,null,null,null,null,null,null,null,null,null,null,null,null,null,null,null,null,null,null,null,null,"2020-07-05",7]
[null,null,null,null,null,null,null,null,null,null,null,null,null,null,null,null,null,null,null,null,null,null,null,null,null,null,"2020-07-06",7]
[null,null,null,null,null,null,null,null,null,null,null,null,null,null,null,null,null,null,null,null,null,null,null,null,null,null,"2020-07-07",7]
[null,null,null,null,null,null,null,null,null,null,null,null,null,null,null,null,null,null,null,null,null,null,null,null,null,null,"2020-07-08",7]
[null,null,null,null,null,null,null,null,null,null,null,null,null,null,null,null,null,null,null,null,null,null,null,null,null,null,"2020-07-09",7]
[null,null,null,null,null,null,null,null,null,null,null,null,null,null,null,null,null,null,null,null,null,null,null,null,null,null,"2020-07-10",7]
[null,null,null,null,null,null,null,null,null,null,null,null,null,null,null,null,null,null,null,null,null,null,null,null,null,null,"2020-07-11",7]
[null,null,null,null,null,null,null,null,null,null,null,null,null,null,null,null,null,null,null,null,null,null,null,null,null,null,"2020-07-12",7]
[null,null,null,null,null,null,null,null,null,null,null,null,null,null,null,null,null,null,null,null,null,null,null,null,null,null,"2020-07-13",7]
[null,null,null,null,null,null,null,null,null,null,null,null,null,null,null,null,null,null,null,null,null,null,null,null,null,null,"2020-07-14",7]
[null,null,null,null,null,null,null,null,null,null,null,null,null,null,null,null,null,null,null,null,null,null,null,null,null,null,"2020-07-15",7]
[null,null,null,null,null,null,null,null,null,null,null,null,null,null,null,null,null,null,null,null,null,null,null,null,null,null,"2020-07-16",7]
[null,null,null,null,null,null,null,null,null,null,null,null,null,null,null,null,null,null,null,null,null,null,null,null,null,null,"2020-07-17",7]
[null,null,null,null,null,null,null,null,null,null,null,null,null,null,null,null,null,null,null,null,null,null,null,null,null,null,"2020-07-18",7]
[null,null,null,null,null,null,null,null,null,null,null,null,null,null,null,null,null,null,null,null,null,null,null,null,null,null,"2020-07-19",7]
[null,null,null,null,null,null,null,null,null,null,null,null,null,null,null,null,null,null,null,null,null,null,null,null,null,null,"2020-07-20",7]
[null,null,null,null,null,null,null,null,null,null,null,null,null,null,null,null,null,null,null,null,null,null,null,null,null,null,"2020-07-21",7]
[null,null,null,null,null,null,null,null,null,null,null,null,null,null,null,null,null,null,null,null,null,null,null,null,null,null,"2020-07-22",7]
[null,null,null,null,null,null,null,null,null,null,null,null,null,null,null,null,null,null,null,null,null,null,null,null,null,null,"2020-07-23",7]
[null,null,null,null,null,null,null,null,null,null,null,null,null,null,null,null,null,null,null,null,null,null,null,null,null,null,"2020-07-24",7]
[null,null,null,null,null,null,null,null,null,null,null,null,null,null,null,null,null,null,null,null,null,null,null,null,null,null,"2020-07-25",7]
[null,null,null,null,null,null,null,null,null,null,null,null,null,null,null,null,null,null,null,null,null,null,null,null,null,null,"2020-07-26",7]
[null,null,null,null,null,null,null,null,null,null,null,null,null,null,null,null,null,null,null,null,null,null,null,null,null,null,"2020-07-27",7]
[null,null,null,null,null,null,null,null,null,null,null,null,null,null,null,null,null,null,null,null,null,null,null,null,null,null,"2020-07-28",7]
[null,null,null,null,null,null,null,null,null,null,null,null,null,null,null,null,null,null,null,null,null,null,null,null,null,null,"2020-07-29",7]
[null,null,null,null,null,null,null,null,null,null,null,null,null,null,null,null,null,null,null,null,null,null,null,null,null,null,"2020-07-30",7]
[null,null,null,null,null,null,null,null,null,null,null,null,null,null,null,null,null,null,null,null,null,null,null,null,null,null,"2020-07-31",8]
[null,null,null,null,null,null,null,null,null,null,null,null,null,null,null,null,null,null,null,null,null,null,null,null,null,null,"2020-08-01",8]
[null,null,null,null,null,null,null,null,null,null,null,null,null,null,null,null,null,null,null,null,null,null,null,null,null,null,"2020-08-02",8]
[null,null,null,null,null,null,null,null,null,null,null,null,null,null,null,null,null,null,null,null,null,null,null,null,null,null,"2020-08-03",8]
[null,null,null,null,null,null,null,null,null,null,null,null,null,null,null,null,null,null,null,null,null,null,null,null,null,null,"2020-08-04",8]
[null,null,null,null,null,null,null,null,null,null,null,null,null,null,null,null,null,null,null,null,null,null,null,null,null,null,"2020-08-05",8]
[null,null,null,null,null,null,null,null,null,null,null,null,null,null,null,null,null,null,null,null,null,null,null,null,null,null,"2020-08-06",8]
[null,null,null,null,null,null,null,null,null,null,null,null,null,null,null,null,null,null,null,null,null,null,null,null,null,null,"2020-08-07",8]
[null,null,null,null,null,null,null,null,null,null,null,null,null,null,null,null,null,null,null,null,null,null,null,null,null,null,"2020-08-08",8]
[null,null,null,null,null,null,null,null,null,null,null,null,null,null,null,null,null,null,null,null,null,null,null,null,null,null,"2020-08-09",8]
[null,null,null,null,null,null,null,null,null,null,null,null,null,null,null,null,null,null,null,null,null,null,null,null,null,null,"2020-08-10",8]
[null,null,null,null,null,null,null,null,null,null,null,null,null,null,null,null,null,null,null,null,null,null,null,null,null,null,"2020-08-11",8]
[null,null,null,null,null,null,null,null,null,null,null,null,null,null,null,null,null,null,null,null,null,null,null,null,null,null,"2020-08-12",8]
[null,null,null,null,null,null,null,null,null,null,null,null,null,null,null,null,null,null,null,null,null,null,null,null,null,null,"2020-08-13",8]
[null,null,null,null,null,null,null,null,null,null,null,null,null,null,null,null,null,null,null,null,null,null,null,null,null,null,"2020-08-14",8]
[null,null,null,null,null,null,null,null,null,null,null,null,null,null,null,null,null,null,null,null,null,null,null,null,null,null,"2020-08-15",8]
[null,null,null,null,null,null,null,null,null,null,null,null,null,null,null,null,null,null,null,null,null,null,null,null,null,null,"2020-08-16",8]
[null,null,null,null,null,null,null,null,null,null,null,null,null,null,null,null,null,null,null,null,null,null,null,null,null,null,"2020-08-17",8]
[null,null,null,null,null,null,null,null,null,null,null,null,null,null,null,null,null,null,null,null,null,null,null,null,null,null,"2020-08-18",8]
[null,null,null,null,null,null,null,null,null,null,null,null,null,null,null,null,null,null,null,null,null,null,null,null,null,null,"2020-08-19",8]
[null,null,null,null,null,null,null,null,null,null,null,null,null,null,null,null,null,null,null,null,null,null,null,null,null,null,"2020-08-20",8]
[null,null,null,null,null,null,null,null,null,null,null,null,null,null,null,null,null,null,null,null,null,null,null,null,null,null,"2020-08-21",8]
[null,null,null,null,null,null,null,null,null,null,null,null,null,null,null,null,null,null,null,null,null,null,null,null,null,null,"2020-08-22",8]
[null,null,null,null,null,null,null,null,null,null,null,null,null,null,null,null,null,null,null,null,null,null,null,null,null,null,"2020-08-23",8]
[null,null,null,null,null,null,null,null,null,null,null,null,null,null,null,null,null,null,null,null,null,null,null,null,null,null,"2020-08-24",8]
[null,null,null,null,null,null,null,null,null,null,null,null,null,null,null,null,null,null,null,null,null,null,null,null,null,null,"2020-08-25",8]
[null,null,null,null,null,null,null,null,null,null,null,null,null,null,null,null,null,null,null,null,null,null,null,null,null,null,"2020-08-26",8]
[null,null,null,null,null,null,null,null,null,null,null,null,null,null,null,null,null,null,null,null,null,null,null,null,null,null,"2020-08-27",8]
[null,null,null,null,null,null,null,null,null,null,null,null,null,null,null,null,null,null,null,null,null,null,null,null,null,null,"2020-08-28",8]
[null,null,null,null,null,null,null,null,null,null,null,null,null,null,null,null,null,null,null,null,null,null,null,null,null,null,"2020-08-29",8]
[null,null,null,null,null,null,null,null,null,null,null,null,null,null,null,null,null,null,null,null,null,null,null,null,null,null,"2020-08-30",8]
[null,null,null,null,null,null,null,null,null,null,null,null,null,null,null,null,null,null,null,null,null,null,null,null,null,null,"2020-08-31",9]
[null,null,null,null,null,null,null,null,null,null,null,null,null,null,null,null,null,null,null,null,null,null,null,null,null,null,"2020-09-01",9]
[null,null,null,null,null,null,null,null,null,null,null,null,null,null,null,null,null,null,null,null,null,null,null,null,null,null,"2020-09-02",9]
[null,null,null,null,null,null,null,null,null,null,null,null,null,null,null,null,null,null,null,null,null,null,null,null,null,null,"2020-09-03",9]
[null,null,null,null,null,null,null,null,null,null,null,null,null,null,null,null,null,null,null,null,null,null,null,null,null,null,"2020-09-04",9]
[null,null,null,null,null,null,null,null,null,null,null,null,null,null,null,null,null,null,null,null,null,null,null,null,null,null,"2020-09-05",9]
[null,null,null,null,null,null,null,null,null,null,null,null,null,null,null,null,null,null,null,null,null,null,null,null,null,null,"2020-09-06",9]
[null,null,null,null,null,null,null,null,null,null,null,null,null,null,null,null,null,null,null,null,null,null,null,null,null,null,"2020-09-07",9]
[null,null,null,null,null,null,null,null,null,null,null,null,null,null,null,null,null,null,null,null,null,null,null,null,null,null,"2020-09-08",9]
[null,null,null,null,null,null,null,null,null,null,null,null,null,null,null,null,null,null,null,null,null,null,null,null,null,null,"2020-09-09",9]
[null,null,null,null,null,null,null,null,null,null,null,null,null,null,null,null,null,null,null,null,null,null,null,null,null,null,"2020-09-10",9]
[null,null,null,null,null,null,null,null,null,null,null,null,null,null,null,null,null,null,null,null,null,null,null,null,null,null,"2020-09-11",9]
[null,null,null,null,null,null,null,null,null,null,null,null,null,null,null,null,null,null,null,null,null,null,null,null,null,null,"2020-09-12",9]
[null,null,null,null,null,null,null,null,null,null,null,null,null,null,null,null,null,null,null,null,null,null,null,null,null,null,"2020-09-13",9]
[null,null,null,null,null,null,null,null,null,null,null,null,null,null,null,null,null,null,null,null,null,null,null,null,null,null,"2020-09-14",9]
[null,null,null,null,null,null,null,null,null,null,null,null,null,null,null,null,null,null,null,null,null,null,null,null,null,null,"2020-09-15",9]
[null,null,null,null,null,null,null,null,null,null,null,null,null,null,null,null,null,null,null,null,null,null,null,null,null,null,"2020-09-16",9]
[null,null,null,null,null,null,null,null,null,null,null,null,null,null,null,null,null,null,null,null,null,null,null,null,null,null,"2020-09-17",9]
[null,null,null,null,null,null,null,null,null,null,null,null,null,null,null,null,null,null,null,null,null,null,null,null,null,null,"2020-09-18",9]
[null,null,null,null,null,null,null,null,null,null,null,null,null,null,null,null,null,null,null,null,null,null,null,null,null,null,"2020-09-19",9]
[null,null,null,null,null,null,null,null,null,null,null,null,null,null,null,null,null,null,null,null,null,null,null,null,null,null,"2020-09-20",9]
[null,null,null,null,null,null,null,null,null,null,null,null,null,null,null,null,null,null,null,null,null,null,null,null,null,null,"2020-09-21",9]
[null,null,null,null,null,null,null,null,null,null,null,null,null,null,null,null,null,null,null,null,null,null,null,null,null,null,"2020-09-22",9]
[null,null,null,null,null,null,null,null,null,null,null,null,null,null,null,null,null,null,null,null,null,null,null,null,null,null,"2020-09-23",9]
[null,null,null,null,null,null,null,null,null,null,null,null,null,null,null,null,null,null,null,null,null,null,null,null,null,null,"2020-09-24",9]
[null,null,null,null,null,null,null,null,null,null,null,null,null,null,null,null,null,null,null,null,null,null,null,null,null,null,"2020-09-25",9]
[null,null,null,null,null,null,null,null,null,null,null,null,null,null,null,null,null,null,null,null,null,null,null,null,null,null,"2020-09-26",9]
[null,null,null,null,null,null,null,null,null,null,null,null,null,null,null,null,null,null,null,null,null,null,null,null,null,null,"2020-09-27",9]
[null,null,null,null,null,null,null,null,null,null,null,null,null,null,null,null,null,null,null,null,null,null,null,null,null,null,"2020-09-28",9]
[null,null,null,null,null,null,null,null,null,null,null,null,null,null,null,null,null,null,null,null,null,null,null,null,null,null,"2020-09-29",9]
[null,null,null,null,null,null,null,null,null,null,null,null,null,null,null,null,null,null,null,null,null,null,null,null,null,null,"2020-09-30",10]
[null,null,null,null,null,null,null,null,null,null,null,null,null,null,null,null,null,null,null,null,null,null,null,null,null,null,"2020-10-01",10]
[null,null,null,null,null,null,null,null,null,null,null,null,null,null,null,null,null,null,null,null,null,null,null,null,null,null,"2020-10-02",10]
[null,null,null,null,null,null,null,null,null,null,null,null,null,null,null,null,null,null,null,null,null,null,null,null,null,null,"2020-10-03",10]
[null,null,null,null,null,null,null,null,null,null,null,null,null,null,null,null,null,null,null,null,null,null,null,null,null,null,"2020-10-04",10]
[null,null,null,null,null,null,null,null,null,null,null,null,null,null,null,null,null,null,null,null,null,null,null,null,null,null,"2020-10-05",10]
[null,null,null,null,null,null,null,null,null,null,null,null,null,null,null,null,null,null,null,null,null,null,null,null,null,null,"2020-10-06",10]
[null,null,null,null,null,null,null,null,null,null,null,null,null,null,null,null,null,null,null,null,null,null,null,null,null,null,"2020-10-07",10]
[null,null,null,null,null,null,null,null,null,null,null,null,null,null,null,null,null,null,null,null,null,null,null,null,null,null,"2020-10-08",10]
[null,null,null,null,null,null,null,null,null,null,null,null,null,null,null,null,null,null,null,null,null,null,null,null,null,null,"2020-10-09",10]
[null,null,null,null,null,null,null,null,null,null,null,null,null,null,null,null,null,null,null,null,null,null,null,null,null,null,"2020-10-10",10]
[null,null,null,null,null,null,null,null,null,null,null,null,null,null,null,null,null,null,null,null,null,null,null,null,null,null,"2020-10-11",10]
[null,null,null,null,null,null,null,null,null,null,null,null,null,null,null,null,null,null,null,null,null,null,null,null,null,null,"2020-10-12",10]
[null,null,null,null,null,null,null,null,null,null,null,null,null,null,null,null,null,null,null,null,null,null,null,null,null,null,"2020-10-13",10]
[null,null,null,null,null,null,null,null,null,null,null,null,null,null,null,null,null,null,null,null,null,null,null,null,null,null,"2020-10-14",10]
[null,null,null,null,null,null,null,null,null,null,null,null,null,null,null,null,null,null,null,null,null,null,null,null,null,null,"2020-10-15",10]
[null,null,null,null,null,null,null,null,null,null,null,null,null,null,null,null,null,null,null,null,null,null,null,null,null,null,"2020-10-16",10]
[null,null,null,null,null,null,null,null,null,null,null,null,null,null,null,null,null,null,null,null,null,null,null,null,null,null,"2020-10-17",10]
[null,null,null,null,null,null,null,null,null,null,null,null,null,null,null,null,null,null,null,null,null,null,null,null,null,null,"2020-10-18",10]
[null,null,null,null,null,null,null,null,null,null,null,null,null,null,null,null,null,null,null,null,null,null,null,null,null,null,"2020-10-19",10]
[null,null,null,null,null,null,null,null,null,null,null,null,null,null,null,null,null,null,null,null,null,null,null,null,null,null,"2020-10-20",10]
[null,null,null,null,null,null,null,null,null,null,null,null,null,null,null,null,null,null,null,null,null,null,null,null,null,null,"2020-10-21",10]
[null,null,null,null,null,null,null,null,null,null,null,null,null,null,null,null,null,null,null,null,null,null,null,null,null,null,"2020-10-22",10]
[null,null,null,null,null,null,null,null,null,null,null,null,null,null,null,null,null,null,null,null,null,null,null,null,null,null,"2020-10-23",10]
[null,null,null,null,null,null,null,null,null,null,null,null,null,null,null,null,null,null,null,null,null,null,null,null,null,null,"2020-10-24",10]
[null,null,null,null,null,null,null,null,null,null,null,null,null,null,null,null,null,null,null,null,null,null,null,null,null,null,"2020-10-25",10]
[null,null,null,null,null,null,null,null,null,null,null,null,null,null,null,null,null,null,null,null,null,null,null,null,null,null,"2020-10-26",10]
[null,null,null,null,null,null,null,null,null,null,null,null,null,null,null,null,null,null,null,null,null,null,null,null,null,null,"2020-10-27",10]
[null,null,null,null,null,null,null,null,null,null,null,null,null,null,null,null,null,null,null,null,null,null,null,null,null,null,"2020-10-28",10]
[null,null,null,null,null,null,null,null,null,null,null,null,null,null,null,null,null,null,null,null,null,null,null,null,null,null,"2020-10-29",10]
[null,null,null,null,null,null,null,null,null,null,null,null,null,null,null,null,null,null,null,null,null,null,null,null,null,null,"2020-10-30",10]
[null,null,null,null,null,null,null,null,null,null,null,null,null,null,null,null,null,null,null,null,null,null,null,null,null,null,"2020-10-31",11]
[null,null,null,null,null,null,null,null,null,null,null,null,null,null,null,null,null,null,null,null,null,null,null,null,null,null,"2020-11-01",11]
[null,null,null,null,null,null,null,null,null,null,null,null,null,null,null,null,null,null,null,null,null,null,null,null,null,null,"2020-11-02",11]
[null,null,null,null,null,null,null,null,null,null,null,null,null,null,null,null,null,null,null,null,null,null,null,null,null,null,"2020-11-03",11]
[null,null,null,null,null,null,null,null,null,null,null,null,null,null,null,null,null,null,null,null,null,null,null,null,null,null,"2020-11-04",11]
[null,null,null,null,null,null,null,null,null,null,null,null,null,null,null,null,null,null,null,null,null,null,null,null,null,null,"2020-11-05",11]
[null,null,null,null,null,null,null,null,null,null,null,null,null,null,null,null,null,null,null,null,null,null,null,null,null,null,"2020-11-06",11]
[null,null,null,null,null,null,null,null,null,null,null,null,null,null,null,null,null,null,null,null,null,null,null,null,null,null,"2020-11-07",11]
[null,null,null,null,null,null,null,null,null,null,null,null,null,null,null,null,null,null,null,null,null,null,null,null,null,null,"2020-11-08",11]
[null,null,null,null,null,null,null,null,null,null,null,null,null,null,null,null,null,null,null,null,null,null,null,null,null,null,"2020-11-09",11]
[null,null,null,null,null,null,null,null,null,null,null,null,null,null,null,null,null,null,null,null,null,null,null,null,null,null,"2020-11-10",11]
[null,null,null,null,null,null,null,null,null,null,null,null,null,null,null,null,null,null,null,null,null,null,null,null,null,null,"2020-11-11",11]
[null,null,null,null,null,null,null,null,null,null,null,null,null,null,null,null,null,null,null,null,null,null,null,null,null,null,"2020-11-12",11]
[null,null,null,null,null,null,null,null,null,null,null,null,null,null,null,null,null,null,null,null,null,null,null,null,null,null,"2020-11-13",11]
[null,null,null,null,null,null,null,null,null,null,null,null,null,null,null,null,null,null,null,null,null,null,null,null,null,null,"2020-11-14",11]
[null,null,null,null,null,null,null,null,null,null,null,null,null,null,null,null,null,null,null,null,null,null,null,null,null,null,"2020-11-15",11]
[null,null,null,null,null,null,null,null,null,null,null,null,null,null,null,null,null,null,null,null,null,null,null,null,null,null,"2020-11-16",11]
[null,null,null,null,null,null,null,null,null,null,null,null,null,null,null,null,null,null,null,null,null,null,null,null,null,null,"2020-11-17",11]
[null,null,null,null,null,null,null,null,null,null,null,null,null,null,null,null,null,null,null,null,null,null,null,null,null,null,"2020-11-18",11]
[null,null,null,null,null,null,null,null,null,null,null,null,null,null,null,null,null,null,null,null,null,null,null,null,null,null,"2020-11-19",11]
[null,null,null,null,null,null,null,null,null,null,null,null,null,null,null,null,null,null,null,null,null,null,null,null,null,null,"2020-11-20",11]
[null,null,null,null,null,null,null,null,null,null,null,null,null,null,null,null,null,null,null,null,null,null,null,null,null,null,"2020-11-21",11]
[null,null,null,null,null,null,null,null,null,null,null,null,null,null,null,null,null,null,null,null,null,null,null,null,null,null,"2020-11-22",11]
[null,null,null,null,null,null,null,null,null,null,null,null,null,null,null,null,null,null,null,null,null,null,null,null,null,null,"2020-11-23",11]
[null,null,null,null,null,null,null,null,null,null,null,null,null,null,null,null,null,null,null,null,null,null,null,null,null,null,"2020-11-24",11]
[null,null,null,null,null,null,null,null,null,null,null,null,null,null,null,null,null,null,null,null,null,null,null,null,null,null,"2020-11-25",11]
[null,null,null,null,null,null,null,null,null,null,null,null,null,null,null,null,null,null,null,null,null,null,null,null,null,null,"2020-11-26",11]
[null,null,null,null,null,null,null,null,null,null,null,null,null,null,null,null,null,null,null,null,null,null,null,null,null,null,"2020-11-27",11]
[null,null,null,null,null,null,null,null,null,null,null,null,null,null,null,null,null,null,null,null,null,null,null,null,null,null,"2020-11-28",11]
[null,null,null,null,null,null,null,null,null,null,null,null,null,null,null,null,null,null,null,null,null,null,null,null,null,null,"2020-11-29",11]
[null,null,null,null,null,null,null,null,null,null,null,null,null,null,null,null,null,null,null,null,null,null,null,null,null,null,"2020-11-30",12]
[null,null,null,null,null,null,null,null,null,null,null,null,null,null,null,null,null,null,null,null,null,null,null,null,null,null,"2020-12-01",12]
[null,null,null,null,null,null,null,null,null,null,null,null,null,null,null,null,null,null,null,null,null,null,null,null,null,null,"2020-12-02",12]
[null,null,null,null,null,null,null,null,null,null,null,null,null,null,null,null,null,null,null,null,null,null,null,null,null,null,"2020-12-03",12]
[null,null,null,null,null,null,null,null,null,null,null,null,null,null,null,null,null,null,null,null,null,null,null,null,null,null,"2020-12-04",12]
[null,null,null,null,null,null,null,null,null,null,null,null,null,null,null,null,null,null,null,null,null,null,null,null,null,null,"2020-12-05",12]
[null,null,null,null,null,null,null,null,null,null,null,null,null,null,null,null,null,null,null,null,null,null,null,null,null,null,"2020-12-06",12]
[null,null,null,null,null,null,null,null,null,null,null,null,null,null,null,null,null,null,null,null,null,null,null,null,null,null,"2020-12-07",12]
[null,null,null,null,null,null,null,null,null,null,null,null,null,null,null,null,null,null,null,null,null,null,null,null,null,null,"2020-12-08",12]
[null,null,null,null,null,null,null,null,null,null,null,null,null,null,null,null,null,null,null,null,null,null,null,null,null,null,"2020-12-09",12]
[null,null,null,null,null,null,null,null,null,null,null,null,null,null,null,null,null,null,null,null,null,null,null,null,null,null,"2020-12-10",12]
[null,null,null,null,null,null,null,null,null,null,null,null,null,null,null,null,null,null,null,null,null,null,null,null,null,null,"2020-12-11",12]
[null,null,null,null,null,null,null,null,null,null,null,null,null,null,null,null,null,null,null,null,null,null,null,null,null,null,"2020-12-12",12]
[null,null,null,null,null,null,null,null,null,null,null,null,null,null,null,null,null,null,null,null,null,null,null,null,null,null,"2020-12-13",12]
[null,null,null,null,null,null,null,null,null,null,null,null,null,null,null,null,null,null,null,null,null,null,null,null,null,null,"2020-12-14",12]
[null,null,null,null,null,null,null,null,null,null,null,null,null,null,null,null,null,null,null,null,null,null,null,null,null,null,"2020-12-15",12]
[null,null,null,null,null,null,null,null,null,null,null,null,null,null,null,null,null,null,null,null,null,null,null,null,null,null,"2020-12-16",12]
[null,null,null,null,null,null,null,null,null,null,null,null,null,null,null,null,null,null,null,null,null,null,null,null,null,null,"2020-12-17",12]
[null,null,null,null,null,null,null,null,null,null,null,null,null,null,null,null,null,null,null,null,null,null,null,null,null,null,"2020-12-18",12]
[null,null,null,null,null,null,null,null,null,null,null,null,null,null,null,null,null,null,null,null,null,null,null,null,null,null,"2020-12-19",12]
[null,null,null,null,null,null,null,null,null,null,null,null,null,null,null,null,null,null,null,null,null,null,null,null,null,null,"2020-12-20",12]
[null,null,null,null,null,null,null,null,null,null,null,null,null,null,null,null,null,null,null,null,null,null,null,null,null,null,"2020-12-21",12]
[null,null,null,null,null,null,null,null,null,null,null,null,null,null,null,null,null,null,null,null,null,null,null,null,null,null,"2020-12-22",12]
[null,null,null,null,null,null,null,null,null,null,null,null,null,null,null,null,null,null,null,null,null,null,null,null,null,null,"2020-12-23",12]
[null,null,null,null,null,null,null,null,null,null,null,null,null,null,null,null,null,null,null,null,null,null,null,null,null,null,"2020-12-24",12]
[null,null,null,null,null,null,null,null,null,null,null,null,null,null,null,null,null,null,null,null,null,null,null,null,null,null,"2020-12-25",12]
[null,null,null,null,null,null,null,null,null,null,null,null,null,null,null,null,null,null,null,null,null,null,null,null,null,null,"2020-12-26",12]
[null,null,null,null,null,null,null,null,null,null,null,null,null,null,null,null,null,null,null,null,null,null,null,null,null,null,"2020-12-27",12]
[null,null,null,null,null,null,null,null,null,null,null,null,null,null,null,null,null,null,null,null,null,null,null,null,null,null,"2020-12-28",12]
[null,null,null,null,null,null,null,null,null,null,null,null,null,null,null,null,null,null,null,null,null,null,null,null,null,null,"2020-12-29",12]
[null,null,null,null,null,null,null,null,null,null,null,null,null,null,null,null,null,null,null,null,null,null,null,null,null,null,"2020-12-30",12]